{"text_format":"1","workbook":"xlsx","n_sheets":2,"sheets":["DataEntry","Schools List"],"not_rendered":{"charts":0,"images":1,"macros":1,"external_links":0,"defined_names":1,"comments":0,"pivot_tables":0},"unopened":[],"bounds":{"document_bytes":16777216,"sheet_cells":100000,"rows_first":2000,"rows_last":500,"rows_between":2000,"halvings":0,"cell_chars":16384,"cell_head_chars":4096},"cells_cut":0,"cells_raw":0,"read":"whole","date_system":"1900"}

{"sheet":"DataEntry","index":0,"n_rows":2502,"n_cols":16,"rows_kept":2502,"cut":false,"hidden":false,"merged":[[15,12,17,12],[8,3,8,11],[6,1,6,11],[15,3,17,3],[15,11,17,11],[16,10,17,10],[10,1,10,4],[11,5,11,12],[7,1,7,11],[15,0,17,0],[1,2,1,9],[3,2,3,9],[15,1,17,1],[15,2,17,2],[15,4,15,10],[4,1,4,11],[5,1,5,11],[9,1,9,4]]}
[]
[null,null,"2025 BACK TO SCHOOL PAYMENT SCHEME"]
[]
[null,null,"FINANCIAL ACQUITTAL REPORT"]
[null,{"$f":"IF(COUNTIF(N:N,\"False*\"),\"Please review acquittal as Unique Student Numbers (UPNs) are listed more than once\",\"-\")","v":"-"}]
[null,{"$f":"IF(COUNTIF(O:O,\"False*\"),\"Please review acquittal as students are claiming more than the maximum amount of $200.00 per student\",\"-\")","v":"-"}]
[null,{"$f":"IF(COUNTIF(P:P,\"False*\"),\"Please review acquittal as all students have not been allocated a UPN\",\"-\")","v":"-"}]
[null,{"$f":"IF(F12=\"Yes\",IF(INDEX('Schools List'!J:J,MATCH(DataEntry!B10,'Schools List'!I:I,0))=\"Yes\",\"-\", \"Please review option to hold over remaining funds\"),\"-\")","v":"-"}]
[null,null,null,"I certify that the details presented are accurate and adhere to the Back To School Payment Scheme Policy and Guidelines. "]
["School:","Please select your school from this drop-down menu. "]
["Term(s):","Please select the term from this drop-down menu"]
["Do you wish to hold over remaining funds for Term 2 - 4 acquittal? ",null,null,null,null,"Please select from this drop-down menu (Only if your school has a pre-school) ."]
[]
[null,null,null,"Name of Principal",null,null,null,"Signature of Principal",null,null,null,"Date "]
[null,null,null,null,null,null,null,"Please send Excel and signed PDF copy to: ",null,null,null,null,"backtoschool.DET@education.nt.gov.au"]
["Student \nSurname","Student First \nName","Unique Student \nNumber (UPN)","Year Group","How was the \nentitlement used - ",null,null,null,null,null,null,"Amount Acquitted","Balance Remaining per student"]
[null,null,null,null,"Textbooks","Stationery","Uniforms","Excursions","Travel Costs","Other","If Other Specify"]
[null,null,null,null,{"$f":"SUM(E19:E3001)","v":0},{"$f":"SUM(F19:F3001)","v":0},0,0,0,0]
[null,null,null,null,null,null,null,null,null,null,null,{"$f":"SUM(E19:J19)","v":0},{"$f":"200-L19","v":200},{"$f":"IF(COUNTIF(C:C,C19)>1,\"False\",\"True\")","v":"True"},{"$f":"IF(L19>200,\"False\",\"True\")","v":"True"},{"$f":"IF(AND(L19=0,C19=\"\"),\"True\",IF(AND(L19<>0,C19=\"\"),\"False\",\"True\"))","v":"True"}]
[null,null,null,null,null,null,null,null,null,null,null,{"$f":"SUM(E20:J20)","v":0},{"$f":"200-L20","v":200},"True",{"$f":"IF(L20>200,\"False\",\"True\")","v":"True"},{"$f":"IF(AND(L20=0,C20=\"\"),\"True\",IF(AND(L20<>0,C20=\"\"),\"False\",\"True\"))","v":"True"}]
[null,null,null,null,null,null,null,null,null,null,null,0,{"$f":"200-L21","v":200},"True","True","True"]
[null,null,null,null,null,null,null,null,null,null,null,0,200,"True","True","True"]
[null,null,null,null,null,null,null,null,null,null,null,0,200,"True","True","True"]
[null,null,null,null,null,null,null,null,null,null,null,0,200,"True","True","True"]
[null,null,null,null,null,null,null,null,null,null,null,0,200,"True","True","True"]
[null,null,null,null,null,null,null,null,null,null,null,0,200,"True","True","True"]
[null,null,null,null,null,null,null,null,null,null,null,0,200,"True","True","True"]
[null,null,null,null,null,null,null,null,null,null,null,0,200,"True","True","True"]
[null,null,null,null,null,null,null,null,null,null,null,0,200,"True","True","True"]
[null,null,null,null,null,null,null,null,null,null,null,0,200,"True","True","True"]
[null,null,null,null,null,null,null,null,null,null,null,0,200,"True","True","True"]
[null,null,null,null,null,null,null,null,null,null,null,0,200,"True","True","True"]
[null,null,null,null,null,null,null,null,null,null,null,0,200,"True","True","True"]
[null,null,null,null,null,null,null,null,null,null,null,0,200,"True","True","True"]
[null,null,null,null,null,null,null,null,null,null,null,0,200,"True","True","True"]
[null,null,null,null,null,null,null,null,null,null,null,0,200,"True","True","True"]
[null,null,null,null,null,null,null,null,null,null,null,0,200,"True","True","True"]
[null,null,null,null,null,null,null,null,null,null,null,0,200,"True","True","True"]
[null,null,null,null,null,null,null,null,null,null,null,0,200,"True","True","True"]
[null,null,null,null,null,null,null,null,null,null,null,0,200,"True","True","True"]
[null,null,null,null,null,null,null,null,null,null,null,0,200,"True","True","True"]
[null,null,null,null,null,null,null,null,null,null,null,0,200,"True","True","True"]
[null,null,null,null,null,null,null,null,null,null,null,0,200,"True","True","True"]
[null,null,null,null,null,null,null,null,null,null,null,0,200,"True","True","True"]
[null,null,null,null,null,null,null,null,null,null,null,0,200,"True","True","True"]
[null,null,null,null,null,null,null,null,null,null,null,0,200,"True","True","True"]
[null,null,null,null,null,null,null,null,null,null,null,0,200,"True","True","True"]
[null,null,null,null,null,null,null,null,null,null,null,0,200,"True","True","True"]
[null,null,null,null,null,null,null,null,null,null,null,0,200,"True","True","True"]
[null,null,null,null,null,null,null,null,null,null,null,0,200,"True","True","True"]
[null,null,null,null,null,null,null,null,null,null,null,0,200,"True","True","True"]
[null,null,null,null,null,null,null,null,null,null,null,0,200,"True","True","True"]
[null,null,null,null,null,null,null,null,null,null,null,0,200,"True","True","True"]
[null,null,null,null,null,null,null,null,null,null,null,0,200,"True","True","True"]
[null,null,null,null,null,null,null,null,null,null,null,0,200,"True","True","True"]
[null,null,null,null,null,null,null,null,null,null,null,0,200,"True","True","True"]
[null,null,null,null,null,null,null,null,null,null,null,0,200,"True","True","True"]
[null,null,null,null,null,null,null,null,null,null,null,0,200,"True","True","True"]
[null,null,null,null,null,null,null,null,null,null,null,0,200,"True","True","True"]
[null,null,null,null,null,null,null,null,null,null,null,0,200,"True","True","True"]
[null,null,null,null,null,null,null,null,null,null,null,0,200,"True","True","True"]
[null,null,null,null,null,null,null,null,null,null,null,0,200,"True","True","True"]
[null,null,null,null,null,null,null,null,null,null,null,0,200,"True","True","True"]
[null,null,null,null,null,null,null,null,null,null,null,0,200,"True","True","True"]
[null,null,null,null,null,null,null,null,null,null,null,0,200,"True","True","True"]
[null,null,null,null,null,null,null,null,null,null,null,0,200,"True","True","True"]
[null,null,null,null,null,null,null,null,null,null,null,0,200,"True","True","True"]
[null,null,null,null,null,null,null,null,null,null,null,0,200,"True","True","True"]
[null,null,null,null,null,null,null,null,null,null,null,0,200,"True","True","True"]
[null,null,null,null,null,null,null,null,null,null,null,0,200,"True","True","True"]
[null,null,null,null,null,null,null,null,null,null,null,0,200,"True","True","True"]
[null,null,null,null,null,null,null,null,null,null,null,0,200,"True","True","True"]
[null,null,null,null,null,null,null,null,null,null,null,0,200,"True","True","True"]
[null,null,null,null,null,null,null,null,null,null,null,0,200,"True","True","True"]
[null,null,null,null,null,null,null,null,null,null,null,0,200,"True","True","True"]
[null,null,null,null,null,null,null,null,null,null,null,0,200,"True","True","True"]
[null,null,null,null,null,null,null,null,null,null,null,0,200,"True","True","True"]
[null,null,null,null,null,null,null,null,null,null,null,0,200,"True","True","True"]
[null,null,null,null,null,null,null,null,null,null,null,0,200,"True","True","True"]
[null,null,null,null,null,null,null,null,null,null,null,0,200,"True","True","True"]
[null,null,null,null,null,null,null,null,null,null,null,0,200,"True","True","True"]
[null,null,null,null,null,null,null,null,null,null,null,0,200,"True","True","True"]
[null,null,null,null,null,null,null,null,null,null,null,0,200,{"$f":"IF(COUNTIF(C:C,C83)>1,\"False\",\"True\")","v":"True"},"True","True"]
[null,null,null,null,null,null,null,null,null,null,null,{"$f":"SUM(E84:J84)","v":0},200,"True",{"$f":"IF(L84>200,\"False\",\"True\")","v":"True"},{"$f":"IF(AND(L84=0,C84=\"\"),\"True\",IF(AND(L84<>0,C84=\"\"),\"False\",\"True\"))","v":"True"}]
[null,null,null,null,null,null,null,null,null,null,null,0,{"$f":"200-L85","v":200},"True","True","True"]
[null,null,null,null,null,null,null,null,null,null,null,0,200,"True","True","True"]
[null,null,null,null,null,null,null,null,null,null,null,0,200,"True","True","True"]
[null,null,null,null,null,null,null,null,null,null,null,0,200,"True","True","True"]
[null,null,null,null,null,null,null,null,null,null,null,0,200,"True","True","True"]
[null,null,null,null,null,null,null,null,null,null,null,0,200,"True","True","True"]
[null,null,null,null,null,null,null,null,null,null,null,0,200,"True","True","True"]
[null,null,null,null,null,null,null,null,null,null,null,0,200,"True","True","True"]
[null,null,null,null,null,null,null,null,null,null,null,0,200,"True","True","True"]
[null,null,null,null,null,null,null,null,null,null,null,0,200,"True","True","True"]
[null,null,null,null,null,null,null,null,null,null,null,0,200,"True","True","True"]
[null,null,null,null,null,null,null,null,null,null,null,0,200,"True","True","True"]
[null,null,null,null,null,null,null,null,null,null,null,0,200,"True","True","True"]
[null,null,null,null,null,null,null,null,null,null,null,0,200,"True","True","True"]
[null,null,null,null,null,null,null,null,null,null,null,0,200,"True","True","True"]
[null,null,null,null,null,null,null,null,null,null,null,0,200,"True","True","True"]
[null,null,null,null,null,null,null,null,null,null,null,0,200,"True","True","True"]
[null,null,null,null,null,null,null,null,null,null,null,0,200,"True","True","True"]
[null,null,null,null,null,null,null,null,null,null,null,0,200,"True","True","True"]
[null,null,null,null,null,null,null,null,null,null,null,0,200,"True","True","True"]
[null,null,null,null,null,null,null,null,null,null,null,0,200,"True","True","True"]
[null,null,null,null,null,null,null,null,null,null,null,0,200,"True","True","True"]
[null,null,null,null,null,null,null,null,null,null,null,0,200,"True","True","True"]
[null,null,null,null,null,null,null,null,null,null,null,0,200,"True","True","True"]
[null,null,null,null,null,null,null,null,null,null,null,0,200,"True","True","True"]
[null,null,null,null,null,null,null,null,null,null,null,0,200,"True","True","True"]
[null,null,null,null,null,null,null,null,null,null,null,0,200,"True","True","True"]
[null,null,null,null,null,null,null,null,null,null,null,0,200,"True","True","True"]
[null,null,null,null,null,null,null,null,null,null,null,0,200,"True","True","True"]
[null,null,null,null,null,null,null,null,null,null,null,0,200,"True","True","True"]
[null,null,null,null,null,null,null,null,null,null,null,0,200,"True","True","True"]
[null,null,null,null,null,null,null,null,null,null,null,0,200,"True","True","True"]
[null,null,null,null,null,null,null,null,null,null,null,0,200,"True","True","True"]
[null,null,null,null,null,null,null,null,null,null,null,0,200,"True","True","True"]
[null,null,null,null,null,null,null,null,null,null,null,0,200,"True","True","True"]
[null,null,null,null,null,null,null,null,null,null,null,0,200,"True","True","True"]
[null,null,null,null,null,null,null,null,null,null,null,0,200,"True","True","True"]
[null,null,null,null,null,null,null,null,null,null,null,0,200,"True","True","True"]
[null,null,null,null,null,null,null,null,null,null,null,0,200,"True","True","True"]
[null,null,null,null,null,null,null,null,null,null,null,0,200,"True","True","True"]
[null,null,null,null,null,null,null,null,null,null,null,0,200,"True","True","True"]
[null,null,null,null,null,null,null,null,null,null,null,0,200,"True","True","True"]
[null,null,null,null,null,null,null,null,null,null,null,0,200,"True","True","True"]
[null,null,null,null,null,null,null,null,null,null,null,0,200,"True","True","True"]
[null,null,null,null,null,null,null,null,null,null,null,0,200,"True","True","True"]
[null,null,null,null,null,null,null,null,null,null,null,0,200,"True","True","True"]
[null,null,null,null,null,null,null,null,null,null,null,0,200,"True","True","True"]
[null,null,null,null,null,null,null,null,null,null,null,0,200,"True","True","True"]
[null,null,null,null,null,null,null,null,null,null,null,0,200,"True","True","True"]
[null,null,null,null,null,null,null,null,null,null,null,0,200,"True","True","True"]
[null,null,null,null,null,null,null,null,null,null,null,0,200,"True","True","True"]
[null,null,null,null,null,null,null,null,null,null,null,0,200,"True","True","True"]
[null,null,null,null,null,null,null,null,null,null,null,0,200,"True","True","True"]
[null,null,null,null,null,null,null,null,null,null,null,0,200,"True","True","True"]
[null,null,null,null,null,null,null,null,null,null,null,0,200,"True","True","True"]
[null,null,null,null,null,null,null,null,null,null,null,0,200,"True","True","True"]
[null,null,null,null,null,null,null,null,null,null,null,0,200,"True","True","True"]
[null,null,null,null,null,null,null,null,null,null,null,0,200,"True","True","True"]
[null,null,null,null,null,null,null,null,null,null,null,0,200,"True","True","True"]
[null,null,null,null,null,null,null,null,null,null,null,0,200,"True","True","True"]
[null,null,null,null,null,null,null,null,null,null,null,0,200,"True","True","True"]
[null,null,null,null,null,null,null,null,null,null,null,0,200,"True","True","True"]
[null,null,null,null,null,null,null,null,null,null,null,0,200,{"$f":"IF(COUNTIF(C:C,C147)>1,\"False\",\"True\")","v":"True"},"True","True"]
[null,null,null,null,null,null,null,null,null,null,null,{"$f":"SUM(E148:J148)","v":0},200,"True",{"$f":"IF(L148>200,\"False\",\"True\")","v":"True"},{"$f":"IF(AND(L148=0,C148=\"\"),\"True\",IF(AND(L148<>0,C148=\"\"),\"False\",\"True\"))","v":"True"}]
[null,null,null,null,null,null,null,null,null,null,null,0,{"$f":"200-L149","v":200},"True","True","True"]
[null,null,null,null,null,null,null,null,null,null,null,{"$f":"SUM(E200:J200)","v":0},200,"True","True","True"]
[null,null,null,null,null,null,null,null,null,null,null,0,200,"True","True","True"]
[null,null,null,null,null,null,null,null,null,null,null,0,200,"True","True","True"]
[null,null,null,null,null,null,null,null,null,null,null,0,200,"True","True","True"]
[null,null,null,null,null,null,null,null,null,null,null,0,200,"True","True","True"]
[null,null,null,null,null,null,null,null,null,null,null,0,200,"True","True","True"]
[null,null,null,null,null,null,null,null,null,null,null,0,200,"True","True","True"]
[null,null,null,null,null,null,null,null,null,null,null,0,200,"True","True","True"]
[null,null,null,null,null,null,null,null,null,null,null,0,200,"True","True","True"]
[null,null,null,null,null,null,null,null,null,null,null,0,200,"True","True","True"]
[null,null,null,null,null,null,null,null,null,null,null,0,200,"True","True","True"]
[null,null,null,null,null,null,null,null,null,null,null,0,200,"True","True","True"]
[null,null,null,null,null,null,null,null,null,null,null,0,200,"True","True","True"]
[null,null,null,null,null,null,null,null,null,null,null,0,200,"True","True","True"]
[null,null,null,null,null,null,null,null,null,null,null,0,200,"True","True","True"]
[null,null,null,null,null,null,null,null,null,null,null,0,200,"True","True","True"]
[null,null,null,null,null,null,null,null,null,null,null,0,200,"True","True","True"]
[null,null,null,null,null,null,null,null,null,null,null,0,200,"True","True","True"]
[null,null,null,null,null,null,null,null,null,null,null,0,200,"True","True","True"]
[null,null,null,null,null,null,null,null,null,null,null,0,200,"True","True","True"]
[null,null,null,null,null,null,null,null,null,null,null,0,200,"True","True","True"]
[null,null,null,null,null,null,null,null,null,null,null,0,200,"True","True","True"]
[null,null,null,null,null,null,null,null,null,null,null,0,200,"True","True","True"]
[null,null,null,null,null,null,null,null,null,null,null,0,200,"True","True","True"]
[null,null,null,null,null,null,null,null,null,null,null,0,200,"True","True","True"]
[null,null,null,null,null,null,null,null,null,null,null,0,200,"True","True","True"]
[null,null,null,null,null,null,null,null,null,null,null,0,200,"True","True","True"]
[null,null,null,null,null,null,null,null,null,null,null,0,200,"True","True","True"]
[null,null,null,null,null,null,null,null,null,null,null,0,200,"True","True","True"]
[null,null,null,null,null,null,null,null,null,null,null,0,200,"True","True","True"]
[null,null,null,null,null,null,null,null,null,null,null,0,200,"True","True","True"]
[null,null,null,null,null,null,null,null,null,null,null,0,200,"True","True","True"]
[null,null,null,null,null,null,null,null,null,null,null,0,200,"True","True","True"]
[null,null,null,null,null,null,null,null,null,null,null,0,200,"True","True","True"]
[null,null,null,null,null,null,null,null,null,null,null,0,200,"True","True","True"]
[null,null,null,null,null,null,null,null,null,null,null,0,200,"True","True","True"]
[null,null,null,null,null,null,null,null,null,null,null,0,200,"True","True","True"]
[null,null,null,null,null,null,null,null,null,null,null,0,200,"True","True","True"]
[null,null,null,null,null,null,null,null,null,null,null,0,200,"True","True","True"]
[null,null,null,null,null,null,null,null,null,null,null,0,200,"True","True","True"]
[null,null,null,null,null,null,null,null,null,null,null,0,200,"True","True","True"]
[null,null,null,null,null,null,null,null,null,null,null,0,200,"True","True","True"]
[null,null,null,null,null,null,null,null,null,null,null,0,200,"True","True","True"]
[null,null,null,null,null,null,null,null,null,null,null,0,200,"True","True","True"]
[null,null,null,null,null,null,null,null,null,null,null,0,200,"True","True","True"]
[null,null,null,null,null,null,null,null,null,null,null,0,200,"True","True","True"]
[null,null,null,null,null,null,null,null,null,null,null,0,200,"True","True","True"]
[null,null,null,null,null,null,null,null,null,null,null,0,200,"True","True","True"]
[null,null,null,null,null,null,null,null,null,null,null,0,200,"True","True","True"]
[null,null,null,null,null,null,null,null,null,null,null,0,200,"True","True","True"]
[null,null,null,null,null,null,null,null,null,null,null,0,200,"True","True","True"]
[null,null,null,null,null,null,null,null,null,null,null,0,200,"True","True","True"]
[null,null,null,null,null,null,null,null,null,null,null,0,200,"True","True","True"]
[null,null,null,null,null,null,null,null,null,null,null,0,200,"True","True","True"]
[null,null,null,null,null,null,null,null,null,null,null,0,200,"True","True","True"]
[null,null,null,null,null,null,null,null,null,null,null,0,200,"True","True","True"]
[null,null,null,null,null,null,null,null,null,null,null,0,200,"True","True","True"]
[null,null,null,null,null,null,null,null,null,null,null,0,200,"True","True","True"]
[null,null,null,null,null,null,null,null,null,null,null,0,200,"True","True","True"]
[null,null,null,null,null,null,null,null,null,null,null,0,200,"True","True","True"]
[null,null,null,null,null,null,null,null,null,null,null,0,200,"True","True","True"]
[null,null,null,null,null,null,null,null,null,null,null,0,200,{"$f":"IF(COUNTIF(C:C,C211)>1,\"False\",\"True\")","v":"True"},"True","True"]
[null,null,null,null,null,null,null,null,null,null,null,{"$f":"SUM(E212:J212)","v":0},200,"True",{"$f":"IF(L212>200,\"False\",\"True\")","v":"True"},{"$f":"IF(AND(L212=0,C212=\"\"),\"True\",IF(AND(L212<>0,C212=\"\"),\"False\",\"True\"))","v":"True"}]
[null,null,null,null,null,null,null,null,null,null,null,0,{"$f":"200-L213","v":200},"True","True","True"]
[null,null,null,null,null,null,null,null,null,null,null,0,200,"True","True","True"]
[null,null,null,null,null,null,null,null,null,null,null,0,200,"True","True","True"]
[null,null,null,null,null,null,null,null,null,null,null,0,200,"True","True","True"]
[null,null,null,null,null,null,null,null,null,null,null,0,200,"True","True","True"]
[null,null,null,null,null,null,null,null,null,null,null,0,200,"True","True","True"]
[null,null,null,null,null,null,null,null,null,null,null,0,200,"True","True","True"]
[null,null,null,null,null,null,null,null,null,null,null,0,200,"True","True","True"]
[null,null,null,null,null,null,null,null,null,null,null,0,200,"True","True","True"]
[null,null,null,null,null,null,null,null,null,null,null,0,200,"True","True","True"]
[null,null,null,null,null,null,null,null,null,null,null,0,200,"True","True","True"]
[null,null,null,null,null,null,null,null,null,null,null,0,200,"True","True","True"]
[null,null,null,null,null,null,null,null,null,null,null,0,200,"True","True","True"]
[null,null,null,null,null,null,null,null,null,null,null,0,200,"True","True","True"]
[null,null,null,null,null,null,null,null,null,null,null,0,200,"True","True","True"]
[null,null,null,null,null,null,null,null,null,null,null,0,200,"True","True","True"]
[null,null,null,null,null,null,null,null,null,null,null,0,200,"True","True","True"]
[null,null,null,null,null,null,null,null,null,null,null,0,200,"True","True","True"]
[null,null,null,null,null,null,null,null,null,null,null,0,200,"True","True","True"]
[null,null,null,null,null,null,null,null,null,null,null,0,200,"True","True","True"]
[null,null,null,null,null,null,null,null,null,null,null,0,200,"True","True","True"]
[null,null,null,null,null,null,null,null,null,null,null,0,200,"True","True","True"]
[null,null,null,null,null,null,null,null,null,null,null,0,200,"True","True","True"]
[null,null,null,null,null,null,null,null,null,null,null,0,200,"True","True","True"]
[null,null,null,null,null,null,null,null,null,null,null,0,200,"True","True","True"]
[null,null,null,null,null,null,null,null,null,null,null,0,200,"True","True","True"]
[null,null,null,null,null,null,null,null,null,null,null,0,200,"True","True","True"]
[null,null,null,null,null,null,null,null,null,null,null,0,200,"True","True","True"]
[null,null,null,null,null,null,null,null,null,null,null,0,200,"True","True","True"]
[null,null,null,null,null,null,null,null,null,null,null,0,200,"True","True","True"]
[null,null,null,null,null,null,null,null,null,null,null,0,200,"True","True","True"]
[null,null,null,null,null,null,null,null,null,null,null,0,200,"True","True","True"]
[null,null,null,null,null,null,null,null,null,null,null,0,200,"True","True","True"]
[null,null,null,null,null,null,null,null,null,null,null,0,200,"True","True","True"]
[null,null,null,null,null,null,null,null,null,null,null,0,200,"True","True","True"]
[null,null,null,null,null,null,null,null,null,null,null,0,200,"True","True","True"]
[null,null,null,null,null,null,null,null,null,null,null,0,200,"True","True","True"]
[null,null,null,null,null,null,null,null,null,null,null,0,200,"True","True","True"]
[null,null,null,null,null,null,null,null,null,null,null,0,200,"True","True","True"]
[null,null,null,null,null,null,null,null,null,null,null,0,200,"True","True","True"]
[null,null,null,null,null,null,null,null,null,null,null,0,200,"True","True","True"]
[null,null,null,null,null,null,null,null,null,null,null,0,200,"True","True","True"]
[null,null,null,null,null,null,null,null,null,null,null,0,200,"True","True","True"]
[null,null,null,null,null,null,null,null,null,null,null,0,200,"True","True","True"]
[null,null,null,null,null,null,null,null,null,null,null,0,200,"True","True","True"]
[null,null,null,null,null,null,null,null,null,null,null,0,200,"True","True","True"]
[null,null,null,null,null,null,null,null,null,null,null,0,200,"True","True","True"]
[null,null,null,null,null,null,null,null,null,null,null,0,200,"True","True","True"]
[null,null,null,null,null,null,null,null,null,null,null,0,200,"True","True","True"]
[null,null,null,null,null,null,null,null,null,null,null,0,200,"True","True","True"]
[null,null,null,null,null,null,null,null,null,null,null,0,200,"True","True","True"]
[null,null,null,null,null,null,null,null,null,null,null,0,200,"True","True","True"]
[null,null,null,null,null,null,null,null,null,null,null,0,200,"True","True","True"]
[null,null,null,null,null,null,null,null,null,null,null,0,200,"True","True","True"]
[null,null,null,null,null,null,null,null,null,null,null,0,200,"True","True","True"]
[null,null,null,null,null,null,null,null,null,null,null,0,200,"True","True","True"]
[null,null,null,null,null,null,null,null,null,null,null,0,200,"True","True","True"]
[null,null,null,null,null,null,null,null,null,null,null,0,200,"True","True","True"]
[null,null,null,null,null,null,null,null,null,null,null,0,200,"True","True","True"]
[null,null,null,null,null,null,null,null,null,null,null,0,200,"True","True","True"]
[null,null,null,null,null,null,null,null,null,null,null,0,200,"True","True","True"]
[null,null,null,null,null,null,null,null,null,null,null,0,200,"True","True","True"]
[null,null,null,null,null,null,null,null,null,null,null,0,200,{"$f":"IF(COUNTIF(C:C,C275)>1,\"False\",\"True\")","v":"True"},"True","True"]
[null,null,null,null,null,null,null,null,null,null,null,{"$f":"SUM(E276:J276)","v":0},200,"True",{"$f":"IF(L276>200,\"False\",\"True\")","v":"True"},{"$f":"IF(AND(L276=0,C276=\"\"),\"True\",IF(AND(L276<>0,C276=\"\"),\"False\",\"True\"))","v":"True"}]
[null,null,null,null,null,null,null,null,null,null,null,0,{"$f":"200-L277","v":200},"True","True","True"]
[null,null,null,null,null,null,null,null,null,null,null,0,200,"True","True","True"]
[null,null,null,null,null,null,null,null,null,null,null,0,200,"True","True","True"]
[null,null,null,null,null,null,null,null,null,null,null,0,200,"True","True","True"]
[null,null,null,null,null,null,null,null,null,null,null,0,200,"True","True","True"]
[null,null,null,null,null,null,null,null,null,null,null,0,200,"True","True","True"]
[null,null,null,null,null,null,null,null,null,null,null,0,200,"True","True","True"]
[null,null,null,null,null,null,null,null,null,null,null,0,200,"True","True","True"]
[null,null,null,null,null,null,null,null,null,null,null,0,200,"True","True","True"]
[null,null,null,null,null,null,null,null,null,null,null,0,200,"True","True","True"]
[null,null,null,null,null,null,null,null,null,null,null,0,200,"True","True","True"]
[null,null,null,null,null,null,null,null,null,null,null,0,200,"True","True","True"]
[null,null,null,null,null,null,null,null,null,null,null,0,200,"True","True","True"]
[null,null,null,null,null,null,null,null,null,null,null,0,200,"True","True","True"]
[null,null,null,null,null,null,null,null,null,null,null,0,200,"True","True","True"]
[null,null,null,null,null,null,null,null,null,null,null,0,200,"True","True","True"]
[null,null,null,null,null,null,null,null,null,null,null,0,200,"True","True","True"]
[null,null,null,null,null,null,null,null,null,null,null,0,200,"True","True","True"]
[null,null,null,null,null,null,null,null,null,null,null,0,200,"True","True","True"]
[null,null,null,null,null,null,null,null,null,null,null,0,200,"True","True","True"]
[null,null,null,null,null,null,null,null,null,null,null,0,200,"True","True","True"]
[null,null,null,null,null,null,null,null,null,null,null,0,200,"True","True","True"]
[null,null,null,null,null,null,null,null,null,null,null,0,200,"True","True","True"]
[null,null,null,null,null,null,null,null,null,null,null,0,200,"True","True","True"]
[null,null,null,null,null,null,null,null,null,null,null,0,200,"True","True","True"]
[null,null,null,null,null,null,null,null,null,null,null,0,200,"True","True","True"]
[null,null,null,null,null,null,null,null,null,null,null,0,200,"True","True","True"]
[null,null,null,null,null,null,null,null,null,null,null,0,200,"True","True","True"]
[null,null,null,null,null,null,null,null,null,null,null,0,200,"True","True","True"]
[null,null,null,null,null,null,null,null,null,null,null,0,200,"True","True","True"]
[null,null,null,null,null,null,null,null,null,null,null,0,200,"True","True","True"]
[null,null,null,null,null,null,null,null,null,null,null,0,200,"True","True","True"]
[null,null,null,null,null,null,null,null,null,null,null,0,200,"True","True","True"]
[null,null,null,null,null,null,null,null,null,null,null,0,200,"True","True","True"]
[null,null,null,null,null,null,null,null,null,null,null,0,200,"True","True","True"]
[null,null,null,null,null,null,null,null,null,null,null,0,200,"True","True","True"]
[null,null,null,null,null,null,null,null,null,null,null,0,200,"True","True","True"]
[null,null,null,null,null,null,null,null,null,null,null,0,200,"True","True","True"]
[null,null,null,null,null,null,null,null,null,null,null,0,200,"True","True","True"]
[null,null,null,null,null,null,null,null,null,null,null,0,200,"True","True","True"]
[null,null,null,null,null,null,null,null,null,null,null,0,200,"True","True","True"]
[null,null,null,null,null,null,null,null,null,null,null,0,200,"True","True","True"]
[null,null,null,null,null,null,null,null,null,null,null,0,200,"True","True","True"]
[null,null,null,null,null,null,null,null,null,null,null,0,200,"True","True","True"]
[null,null,null,null,null,null,null,null,null,null,null,0,200,"True","True","True"]
[null,null,null,null,null,null,null,null,null,null,null,0,200,"True","True","True"]
[null,null,null,null,null,null,null,null,null,null,null,0,200,"True","True","True"]
[null,null,null,null,null,null,null,null,null,null,null,0,200,"True","True","True"]
[null,null,null,null,null,null,null,null,null,null,null,0,200,"True","True","True"]
[null,null,null,null,null,null,null,null,null,null,null,0,200,"True","True","True"]
[null,null,null,null,null,null,null,null,null,null,null,0,200,"True","True","True"]
[null,null,null,null,null,null,null,null,null,null,null,0,200,"True","True","True"]
[null,null,null,null,null,null,null,null,null,null,null,0,200,"True","True","True"]
[null,null,null,null,null,null,null,null,null,null,null,0,200,"True","True","True"]
[null,null,null,null,null,null,null,null,null,null,null,0,200,"True","True","True"]
[null,null,null,null,null,null,null,null,null,null,null,0,200,"True","True","True"]
[null,null,null,null,null,null,null,null,null,null,null,0,200,"True","True","True"]
[null,null,null,null,null,null,null,null,null,null,null,0,200,"True","True","True"]
[null,null,null,null,null,null,null,null,null,null,null,0,200,"True","True","True"]
[null,null,null,null,null,null,null,null,null,null,null,0,200,"True","True","True"]
[null,null,null,null,null,null,null,null,null,null,null,0,200,"True","True","True"]
[null,null,null,null,null,null,null,null,null,null,null,0,200,"True","True","True"]
[null,null,null,null,null,null,null,null,null,null,null,0,200,{"$f":"IF(COUNTIF(C:C,C339)>1,\"False\",\"True\")","v":"True"},"True","True"]
[null,null,null,null,null,null,null,null,null,null,null,{"$f":"SUM(E340:J340)","v":0},200,"True",{"$f":"IF(L340>200,\"False\",\"True\")","v":"True"},{"$f":"IF(AND(L340=0,C340=\"\"),\"True\",IF(AND(L340<>0,C340=\"\"),\"False\",\"True\"))","v":"True"}]
[null,null,null,null,null,null,null,null,null,null,null,0,{"$f":"200-L341","v":200},"True","True","True"]
[null,null,null,null,null,null,null,null,null,null,null,0,200,"True","True","True"]
[null,null,null,null,null,null,null,null,null,null,null,0,200,"True","True","True"]
[null,null,null,null,null,null,null,null,null,null,null,0,200,"True","True","True"]
[null,null,null,null,null,null,null,null,null,null,null,0,200,"True","True","True"]
[null,null,null,null,null,null,null,null,null,null,null,0,200,"True","True","True"]
[null,null,null,null,null,null,null,null,null,null,null,0,200,"True","True","True"]
[null,null,null,null,null,null,null,null,null,null,null,0,200,"True","True","True"]
[null,null,null,null,null,null,null,null,null,null,null,0,200,"True","True","True"]
[null,null,null,null,null,null,null,null,null,null,null,0,200,"True","True","True"]
[null,null,null,null,null,null,null,null,null,null,null,0,200,"True","True","True"]
[null,null,null,null,null,null,null,null,null,null,null,0,200,"True","True","True"]
[null,null,null,null,null,null,null,null,null,null,null,0,200,"True","True","True"]
[null,null,null,null,null,null,null,null,null,null,null,0,200,"True","True","True"]
[null,null,null,null,null,null,null,null,null,null,null,0,200,"True","True","True"]
[null,null,null,null,null,null,null,null,null,null,null,0,200,"True","True","True"]
[null,null,null,null,null,null,null,null,null,null,null,0,200,"True","True","True"]
[null,null,null,null,null,null,null,null,null,null,null,0,200,"True","True","True"]
[null,null,null,null,null,null,null,null,null,null,null,0,200,"True","True","True"]
[null,null,null,null,null,null,null,null,null,null,null,0,200,"True","True","True"]
[null,null,null,null,null,null,null,null,null,null,null,0,200,"True","True","True"]
[null,null,null,null,null,null,null,null,null,null,null,0,200,"True","True","True"]
[null,null,null,null,null,null,null,null,null,null,null,0,200,"True","True","True"]
[null,null,null,null,null,null,null,null,null,null,null,0,200,"True","True","True"]
[null,null,null,null,null,null,null,null,null,null,null,0,200,"True","True","True"]
[null,null,null,null,null,null,null,null,null,null,null,0,200,"True","True","True"]
[null,null,null,null,null,null,null,null,null,null,null,0,200,"True","True","True"]
[null,null,null,null,null,null,null,null,null,null,null,0,200,"True","True","True"]
[null,null,null,null,null,null,null,null,null,null,null,0,200,"True","True","True"]
[null,null,null,null,null,null,null,null,null,null,null,0,200,"True","True","True"]
[null,null,null,null,null,null,null,null,null,null,null,0,200,"True","True","True"]
[null,null,null,null,null,null,null,null,null,null,null,0,200,"True","True","True"]
[null,null,null,null,null,null,null,null,null,null,null,0,200,"True","True","True"]
[null,null,null,null,null,null,null,null,null,null,null,0,200,"True","True","True"]
[null,null,null,null,null,null,null,null,null,null,null,0,200,"True","True","True"]
[null,null,null,null,null,null,null,null,null,null,null,0,200,"True","True","True"]
[null,null,null,null,null,null,null,null,null,null,null,0,200,"True","True","True"]
[null,null,null,null,null,null,null,null,null,null,null,0,200,"True","True","True"]
[null,null,null,null,null,null,null,null,null,null,null,0,200,"True","True","True"]
[null,null,null,null,null,null,null,null,null,null,null,0,200,"True","True","True"]
[null,null,null,null,null,null,null,null,null,null,null,0,200,"True","True","True"]
[null,null,null,null,null,null,null,null,null,null,null,0,200,"True","True","True"]
[null,null,null,null,null,null,null,null,null,null,null,0,200,"True","True","True"]
[null,null,null,null,null,null,null,null,null,null,null,0,200,"True","True","True"]
[null,null,null,null,null,null,null,null,null,null,null,0,200,"True","True","True"]
[null,null,null,null,null,null,null,null,null,null,null,0,200,"True","True","True"]
[null,null,null,null,null,null,null,null,null,null,null,0,200,"True","True","True"]
[null,null,null,null,null,null,null,null,null,null,null,0,200,"True","True","True"]
[null,null,null,null,null,null,null,null,null,null,null,0,200,"True","True","True"]
[null,null,null,null,null,null,null,null,null,null,null,0,200,"True","True","True"]
[null,null,null,null,null,null,null,null,null,null,null,0,200,"True","True","True"]
[null,null,null,null,null,null,null,null,null,null,null,0,200,"True","True","True"]
[null,null,null,null,null,null,null,null,null,null,null,0,200,"True","True","True"]
[null,null,null,null,null,null,null,null,null,null,null,0,200,"True","True","True"]
[null,null,null,null,null,null,null,null,null,null,null,0,200,"True","True","True"]
[null,null,null,null,null,null,null,null,null,null,null,0,200,"True","True","True"]
[null,null,null,null,null,null,null,null,null,null,null,0,200,"True","True","True"]
[null,null,null,null,null,null,null,null,null,null,null,0,200,"True","True","True"]
[null,null,null,null,null,null,null,null,null,null,null,0,200,"True","True","True"]
[null,null,null,null,null,null,null,null,null,null,null,0,200,"True","True","True"]
[null,null,null,null,null,null,null,null,null,null,null,0,200,"True","True","True"]
[null,null,null,null,null,null,null,null,null,null,null,0,200,"True","True","True"]
[null,null,null,null,null,null,null,null,null,null,null,0,200,{"$f":"IF(COUNTIF(C:C,C403)>1,\"False\",\"True\")","v":"True"},"True","True"]
[null,null,null,null,null,null,null,null,null,null,null,{"$f":"SUM(E404:J404)","v":0},200,"True",{"$f":"IF(L404>200,\"False\",\"True\")","v":"True"},{"$f":"IF(AND(L404=0,C404=\"\"),\"True\",IF(AND(L404<>0,C404=\"\"),\"False\",\"True\"))","v":"True"}]
[null,null,null,null,null,null,null,null,null,null,null,0,{"$f":"200-L405","v":200},"True","True","True"]
[null,null,null,null,null,null,null,null,null,null,null,0,200,"True","True","True"]
[null,null,null,null,null,null,null,null,null,null,null,0,200,"True","True","True"]
[null,null,null,null,null,null,null,null,null,null,null,0,200,"True","True","True"]
[null,null,null,null,null,null,null,null,null,null,null,0,200,"True","True","True"]
[null,null,null,null,null,null,null,null,null,null,null,0,200,"True","True","True"]
[null,null,null,null,null,null,null,null,null,null,null,0,200,"True","True","True"]
[null,null,null,null,null,null,null,null,null,null,null,0,200,"True","True","True"]
[null,null,null,null,null,null,null,null,null,null,null,0,200,"True","True","True"]
[null,null,null,null,null,null,null,null,null,null,null,0,200,"True","True","True"]
[null,null,null,null,null,null,null,null,null,null,null,0,200,"True","True","True"]
[null,null,null,null,null,null,null,null,null,null,null,0,200,"True","True","True"]
[null,null,null,null,null,null,null,null,null,null,null,0,200,"True","True","True"]
[null,null,null,null,null,null,null,null,null,null,null,0,200,"True","True","True"]
[null,null,null,null,null,null,null,null,null,null,null,0,200,"True","True","True"]
[null,null,null,null,null,null,null,null,null,null,null,0,200,"True","True","True"]
[null,null,null,null,null,null,null,null,null,null,null,0,200,"True","True","True"]
[null,null,null,null,null,null,null,null,null,null,null,0,200,"True","True","True"]
[null,null,null,null,null,null,null,null,null,null,null,0,200,"True","True","True"]
[null,null,null,null,null,null,null,null,null,null,null,0,200,"True","True","True"]
[null,null,null,null,null,null,null,null,null,null,null,0,200,"True","True","True"]
[null,null,null,null,null,null,null,null,null,null,null,0,200,"True","True","True"]
[null,null,null,null,null,null,null,null,null,null,null,0,200,"True","True","True"]
[null,null,null,null,null,null,null,null,null,null,null,0,200,"True","True","True"]
[null,null,null,null,null,null,null,null,null,null,null,0,200,"True","True","True"]
[null,null,null,null,null,null,null,null,null,null,null,0,200,"True","True","True"]
[null,null,null,null,null,null,null,null,null,null,null,0,200,"True","True","True"]
[null,null,null,null,null,null,null,null,null,null,null,0,200,"True","True","True"]
[null,null,null,null,null,null,null,null,null,null,null,0,200,"True","True","True"]
[null,null,null,null,null,null,null,null,null,null,null,0,200,"True","True","True"]
[null,null,null,null,null,null,null,null,null,null,null,0,200,"True","True","True"]
[null,null,null,null,null,null,null,null,null,null,null,0,200,"True","True","True"]
[null,null,null,null,null,null,null,null,null,null,null,0,200,"True","True","True"]
[null,null,null,null,null,null,null,null,null,null,null,0,200,"True","True","True"]
[null,null,null,null,null,null,null,null,null,null,null,0,200,"True","True","True"]
[null,null,null,null,null,null,null,null,null,null,null,0,200,"True","True","True"]
[null,null,null,null,null,null,null,null,null,null,null,0,200,"True","True","True"]
[null,null,null,null,null,null,null,null,null,null,null,0,200,"True","True","True"]
[null,null,null,null,null,null,null,null,null,null,null,0,200,"True","True","True"]
[null,null,null,null,null,null,null,null,null,null,null,0,200,"True","True","True"]
[null,null,null,null,null,null,null,null,null,null,null,0,200,"True","True","True"]
[null,null,null,null,null,null,null,null,null,null,null,0,200,"True","True","True"]
[null,null,null,null,null,null,null,null,null,null,null,0,200,"True","True","True"]
[null,null,null,null,null,null,null,null,null,null,null,0,200,"True","True","True"]
[null,null,null,null,null,null,null,null,null,null,null,0,200,"True","True","True"]
[null,null,null,null,null,null,null,null,null,null,null,0,200,"True","True","True"]
[null,null,null,null,null,null,null,null,null,null,null,0,200,"True","True","True"]
[null,null,null,null,null,null,null,null,null,null,null,0,200,"True","True","True"]
[null,null,null,null,null,null,null,null,null,null,null,0,200,"True","True","True"]
[null,null,null,null,null,null,null,null,null,null,null,0,200,"True","True","True"]
[null,null,null,null,null,null,null,null,null,null,null,0,200,"True","True","True"]
[null,null,null,null,null,null,null,null,null,null,null,0,200,"True","True","True"]
[null,null,null,null,null,null,null,null,null,null,null,0,200,"True","True","True"]
[null,null,null,null,null,null,null,null,null,null,null,0,200,"True","True","True"]
[null,null,null,null,null,null,null,null,null,null,null,0,200,"True","True","True"]
[null,null,null,null,null,null,null,null,null,null,null,0,200,"True","True","True"]
[null,null,null,null,null,null,null,null,null,null,null,0,200,"True","True","True"]
[null,null,null,null,null,null,null,null,null,null,null,0,200,"True","True","True"]
[null,null,null,null,null,null,null,null,null,null,null,0,200,"True","True","True"]
[null,null,null,null,null,null,null,null,null,null,null,0,200,"True","True","True"]
[null,null,null,null,null,null,null,null,null,null,null,0,200,"True","True","True"]
[null,null,null,null,null,null,null,null,null,null,null,0,200,"True","True","True"]
[null,null,null,null,null,null,null,null,null,null,null,0,200,{"$f":"IF(COUNTIF(C:C,C467)>1,\"False\",\"True\")","v":"True"},"True","True"]
[null,null,null,null,null,null,null,null,null,null,null,{"$f":"SUM(E468:J468)","v":0},200,"True",{"$f":"IF(L468>200,\"False\",\"True\")","v":"True"},{"$f":"IF(AND(L468=0,C468=\"\"),\"True\",IF(AND(L468<>0,C468=\"\"),\"False\",\"True\"))","v":"True"}]
[null,null,null,null,null,null,null,null,null,null,null,0,{"$f":"200-L469","v":200},"True","True","True"]
[null,null,null,null,null,null,null,null,null,null,null,0,200,"True","True","True"]
[null,null,null,null,null,null,null,null,null,null,null,0,200,"True","True","True"]
[null,null,null,null,null,null,null,null,null,null,null,0,200,"True","True","True"]
[null,null,null,null,null,null,null,null,null,null,null,0,200,"True","True","True"]
[null,null,null,null,null,null,null,null,null,null,null,0,200,"True","True","True"]
[null,null,null,null,null,null,null,null,null,null,null,0,200,"True","True","True"]
[null,null,null,null,null,null,null,null,null,null,null,0,200,"True","True","True"]
[null,null,null,null,null,null,null,null,null,null,null,0,200,"True","True","True"]
[null,null,null,null,null,null,null,null,null,null,null,0,200,"True","True","True"]
[null,null,null,null,null,null,null,null,null,null,null,0,200,"True","True","True"]
[null,null,null,null,null,null,null,null,null,null,null,0,200,"True","True","True"]
[null,null,null,null,null,null,null,null,null,null,null,0,200,"True","True","True"]
[null,null,null,null,null,null,null,null,null,null,null,0,200,"True","True","True"]
[null,null,null,null,null,null,null,null,null,null,null,0,200,"True","True","True"]
[null,null,null,null,null,null,null,null,null,null,null,0,200,"True","True","True"]
[null,null,null,null,null,null,null,null,null,null,null,0,200,"True","True","True"]
[null,null,null,null,null,null,null,null,null,null,null,0,200,"True","True","True"]
[null,null,null,null,null,null,null,null,null,null,null,0,200,"True","True","True"]
[null,null,null,null,null,null,null,null,null,null,null,0,200,"True","True","True"]
[null,null,null,null,null,null,null,null,null,null,null,0,200,"True","True","True"]
[null,null,null,null,null,null,null,null,null,null,null,0,200,"True","True","True"]
[null,null,null,null,null,null,null,null,null,null,null,0,200,"True","True","True"]
[null,null,null,null,null,null,null,null,null,null,null,0,200,"True","True","True"]
[null,null,null,null,null,null,null,null,null,null,null,0,200,"True","True","True"]
[null,null,null,null,null,null,null,null,null,null,null,0,200,"True","True","True"]
[null,null,null,null,null,null,null,null,null,null,null,0,200,"True","True","True"]
[null,null,null,null,null,null,null,null,null,null,null,0,200,"True","True","True"]
[null,null,null,null,null,null,null,null,null,null,null,0,200,"True","True","True"]
[null,null,null,null,null,null,null,null,null,null,null,0,200,"True","True","True"]
[null,null,null,null,null,null,null,null,null,null,null,0,200,"True","True","True"]
[null,null,null,null,null,null,null,null,null,null,null,0,200,"True","True","True"]
[null,null,null,null,null,null,null,null,null,null,null,0,200,"True","True","True"]
[null,null,null,null,null,null,null,null,null,null,null,0,200,"True","True","True"]
[null,null,null,null,null,null,null,null,null,null,null,0,200,"True","True","True"]
[null,null,null,null,null,null,null,null,null,null,null,0,200,"True","True","True"]
[null,null,null,null,null,null,null,null,null,null,null,0,200,"True","True","True"]
[null,null,null,null,null,null,null,null,null,null,null,0,200,"True","True","True"]
[null,null,null,null,null,null,null,null,null,null,null,{"$f":"SUM(E507:J507)","v":0},200,"True","True","True"]
[null,null,null,null,null,null,null,null,null,null,null,{"$f":"SUM(E508:J508)","v":0},200,"True","True","True"]
[null,null,null,null,null,null,null,null,null,null,null,0,200,"True","True","True"]
[null,null,null,null,null,null,null,null,null,null,null,0,200,"True","True","True"]
[null,null,null,null,null,null,null,null,null,null,null,0,200,"True","True","True"]
[null,null,null,null,null,null,null,null,null,null,null,0,200,"True","True","True"]
[null,null,null,null,null,null,null,null,null,null,null,0,200,"True","True","True"]
[null,null,null,null,null,null,null,null,null,null,null,0,200,"True","True","True"]
[null,null,null,null,null,null,null,null,null,null,null,0,200,"True","True","True"]
[null,null,null,null,null,null,null,null,null,null,null,0,200,"True","True","True"]
[null,null,null,null,null,null,null,null,null,null,null,0,200,"True","True","True"]
[null,null,null,null,null,null,null,null,null,null,null,0,200,"True","True","True"]
[null,null,null,null,null,null,null,null,null,null,null,0,200,"True","True","True"]
[null,null,null,null,null,null,null,null,null,null,null,0,200,"True","True","True"]
[null,null,null,null,null,null,null,null,null,null,null,0,200,"True","True","True"]
[null,null,null,null,null,null,null,null,null,null,null,0,200,"True","True","True"]
[null,null,null,null,null,null,null,null,null,null,null,0,200,"True","True","True"]
[null,null,null,null,null,null,null,null,null,null,null,0,200,"True","True","True"]
[null,null,null,null,null,null,null,null,null,null,null,0,200,"True","True","True"]
[null,null,null,null,null,null,null,null,null,null,null,0,200,"True","True","True"]
[null,null,null,null,null,null,null,null,null,null,null,0,200,"True","True","True"]
[null,null,null,null,null,null,null,null,null,null,null,0,200,"True","True","True"]
[null,null,null,null,null,null,null,null,null,null,null,0,200,"True","True","True"]
[null,null,null,null,null,null,null,null,null,null,null,0,200,"True","True","True"]
[null,null,null,null,null,null,null,null,null,null,null,0,200,{"$f":"IF(COUNTIF(C:C,C531)>1,\"False\",\"True\")","v":"True"},"True","True"]
[null,null,null,null,null,null,null,null,null,null,null,0,200,"True",{"$f":"IF(L532>200,\"False\",\"True\")","v":"True"},{"$f":"IF(AND(L532=0,C532=\"\"),\"True\",IF(AND(L532<>0,C532=\"\"),\"False\",\"True\"))","v":"True"}]
[null,null,null,null,null,null,null,null,null,null,null,0,{"$f":"200-L533","v":200},"True","True","True"]
[null,null,null,null,null,null,null,null,null,null,null,0,200,"True","True","True"]
[null,null,null,null,null,null,null,null,null,null,null,0,200,"True","True","True"]
[null,null,null,null,null,null,null,null,null,null,null,0,200,"True","True","True"]
[null,null,null,null,null,null,null,null,null,null,null,0,200,"True","True","True"]
[null,null,null,null,null,null,null,null,null,null,null,0,200,"True","True","True"]
[null,null,null,null,null,null,null,null,null,null,null,0,200,"True","True","True"]
[null,null,null,null,null,null,null,null,null,null,null,0,200,"True","True","True"]
[null,null,null,null,null,null,null,null,null,null,null,0,200,"True","True","True"]
[null,null,null,null,null,null,null,null,null,null,null,0,200,"True","True","True"]
[null,null,null,null,null,null,null,null,null,null,null,0,200,"True","True","True"]
[null,null,null,null,null,null,null,null,null,null,null,0,200,"True","True","True"]
[null,null,null,null,null,null,null,null,null,null,null,0,200,"True","True","True"]
[null,null,null,null,null,null,null,null,null,null,null,0,200,"True","True","True"]
[null,null,null,null,null,null,null,null,null,null,null,0,200,"True","True","True"]
[null,null,null,null,null,null,null,null,null,null,null,0,200,"True","True","True"]
[null,null,null,null,null,null,null,null,null,null,null,0,200,"True","True","True"]
[null,null,null,null,null,null,null,null,null,null,null,0,200,"True","True","True"]
[null,null,null,null,null,null,null,null,null,null,null,0,200,"True","True","True"]
[null,null,null,null,null,null,null,null,null,null,null,0,200,"True","True","True"]
[null,null,null,null,null,null,null,null,null,null,null,0,200,"True","True","True"]
[null,null,null,null,null,null,null,null,null,null,null,0,200,"True","True","True"]
[null,null,null,null,null,null,null,null,null,null,null,0,200,"True","True","True"]
[null,null,null,null,null,null,null,null,null,null,null,0,200,"True","True","True"]
[null,null,null,null,null,null,null,null,null,null,null,0,200,"True","True","True"]
[null,null,null,null,null,null,null,null,null,null,null,0,200,"True","True","True"]
[null,null,null,null,null,null,null,null,null,null,null,0,200,"True","True","True"]
[null,null,null,null,null,null,null,null,null,null,null,0,200,"True","True","True"]
[null,null,null,null,null,null,null,null,null,null,null,0,200,"True","True","True"]
[null,null,null,null,null,null,null,null,null,null,null,0,200,"True","True","True"]
[null,null,null,null,null,null,null,null,null,null,null,0,200,"True","True","True"]
[null,null,null,null,null,null,null,null,null,null,null,0,200,"True","True","True"]
[null,null,null,null,null,null,null,null,null,null,null,0,200,"True","True","True"]
[null,null,null,null,null,null,null,null,null,null,null,0,200,"True","True","True"]
[null,null,null,null,null,null,null,null,null,null,null,0,200,"True","True","True"]
[null,null,null,null,null,null,null,null,null,null,null,0,200,"True","True","True"]
[null,null,null,null,null,null,null,null,null,null,null,0,200,"True","True","True"]
[null,null,null,null,null,null,null,null,null,null,null,0,200,"True","True","True"]
[null,null,null,null,null,null,null,null,null,null,null,0,200,"True","True","True"]
[null,null,null,null,null,null,null,null,null,null,null,{"$f":"SUM(E572:J572)","v":0},200,"True","True","True"]
[null,null,null,null,null,null,null,null,null,null,null,0,200,"True","True","True"]
[null,null,null,null,null,null,null,null,null,null,null,0,200,"True","True","True"]
[null,null,null,null,null,null,null,null,null,null,null,0,200,"True","True","True"]
[null,null,null,null,null,null,null,null,null,null,null,0,200,"True","True","True"]
[null,null,null,null,null,null,null,null,null,null,null,0,200,"True","True","True"]
[null,null,null,null,null,null,null,null,null,null,null,0,200,"True","True","True"]
[null,null,null,null,null,null,null,null,null,null,null,0,200,"True","True","True"]
[null,null,null,null,null,null,null,null,null,null,null,0,200,"True","True","True"]
[null,null,null,null,null,null,null,null,null,null,null,0,200,"True","True","True"]
[null,null,null,null,null,null,null,null,null,null,null,0,200,"True","True","True"]
[null,null,null,null,null,null,null,null,null,null,null,0,200,"True","True","True"]
[null,null,null,null,null,null,null,null,null,null,null,0,200,"True","True","True"]
[null,null,null,null,null,null,null,null,null,null,null,0,200,"True","True","True"]
[null,null,null,null,null,null,null,null,null,null,null,0,200,"True","True","True"]
[null,null,null,null,null,null,null,null,null,null,null,0,200,"True","True","True"]
[null,null,null,null,null,null,null,null,null,null,null,0,200,"True","True","True"]
[null,null,null,null,null,null,null,null,null,null,null,0,200,"True","True","True"]
[null,null,null,null,null,null,null,null,null,null,null,0,200,"True","True","True"]
[null,null,null,null,null,null,null,null,null,null,null,0,200,"True","True","True"]
[null,null,null,null,null,null,null,null,null,null,null,0,200,"True","True","True"]
[null,null,null,null,null,null,null,null,null,null,null,0,200,"True","True","True"]
[null,null,null,null,null,null,null,null,null,null,null,0,200,"True","True","True"]
[null,null,null,null,null,null,null,null,null,null,null,0,200,{"$f":"IF(COUNTIF(C:C,C595)>1,\"False\",\"True\")","v":"True"},"True","True"]
[null,null,null,null,null,null,null,null,null,null,null,0,200,"True",{"$f":"IF(L596>200,\"False\",\"True\")","v":"True"},{"$f":"IF(AND(L596=0,C596=\"\"),\"True\",IF(AND(L596<>0,C596=\"\"),\"False\",\"True\"))","v":"True"}]
[null,null,null,null,null,null,null,null,null,null,null,0,{"$f":"200-L597","v":200},"True","True","True"]
[null,null,null,null,null,null,null,null,null,null,null,0,200,"True","True","True"]
[null,null,null,null,null,null,null,null,null,null,null,0,200,"True","True","True"]
[null,null,null,null,null,null,null,null,null,null,null,0,200,"True","True","True"]
[null,null,null,null,null,null,null,null,null,null,null,0,200,"True","True","True"]
[null,null,null,null,null,null,null,null,null,null,null,0,200,"True","True","True"]
[null,null,null,null,null,null,null,null,null,null,null,0,200,"True","True","True"]
[null,null,null,null,null,null,null,null,null,null,null,0,200,"True","True","True"]
[null,null,null,null,null,null,null,null,null,null,null,0,200,"True","True","True"]
[null,null,null,null,null,null,null,null,null,null,null,0,200,"True","True","True"]
[null,null,null,null,null,null,null,null,null,null,null,0,200,"True","True","True"]
[null,null,null,null,null,null,null,null,null,null,null,0,200,"True","True","True"]
[null,null,null,null,null,null,null,null,null,null,null,0,200,"True","True","True"]
[null,null,null,null,null,null,null,null,null,null,null,0,200,"True","True","True"]
[null,null,null,null,null,null,null,null,null,null,null,0,200,"True","True","True"]
[null,null,null,null,null,null,null,null,null,null,null,0,200,"True","True","True"]
[null,null,null,null,null,null,null,null,null,null,null,0,200,"True","True","True"]
[null,null,null,null,null,null,null,null,null,null,null,0,200,"True","True","True"]
[null,null,null,null,null,null,null,null,null,null,null,0,200,"True","True","True"]
[null,null,null,null,null,null,null,null,null,null,null,0,200,"True","True","True"]
[null,null,null,null,null,null,null,null,null,null,null,0,200,"True","True","True"]
[null,null,null,null,null,null,null,null,null,null,null,0,200,"True","True","True"]
[null,null,null,null,null,null,null,null,null,null,null,0,200,"True","True","True"]
[null,null,null,null,null,null,null,null,null,null,null,0,200,"True","True","True"]
[null,null,null,null,null,null,null,null,null,null,null,0,200,"True","True","True"]
[null,null,null,null,null,null,null,null,null,null,null,0,200,"True","True","True"]
[null,null,null,null,null,null,null,null,null,null,null,0,200,"True","True","True"]
[null,null,null,null,null,null,null,null,null,null,null,0,200,"True","True","True"]
[null,null,null,null,null,null,null,null,null,null,null,0,200,"True","True","True"]
[null,null,null,null,null,null,null,null,null,null,null,0,200,"True","True","True"]
[null,null,null,null,null,null,null,null,null,null,null,0,200,"True","True","True"]
[null,null,null,null,null,null,null,null,null,null,null,0,200,"True","True","True"]
[null,null,null,null,null,null,null,null,null,null,null,0,200,"True","True","True"]
[null,null,null,null,null,null,null,null,null,null,null,0,200,"True","True","True"]
[null,null,null,null,null,null,null,null,null,null,null,0,200,"True","True","True"]
[null,null,null,null,null,null,null,null,null,null,null,0,200,"True","True","True"]
[null,null,null,null,null,null,null,null,null,null,null,0,200,"True","True","True"]
[null,null,null,null,null,null,null,null,null,null,null,0,200,"True","True","True"]
[null,null,null,null,null,null,null,null,null,null,null,0,200,"True","True","True"]
[null,null,null,null,null,null,null,null,null,null,null,{"$f":"SUM(E636:J636)","v":0},200,"True","True","True"]
[null,null,null,null,null,null,null,null,null,null,null,0,200,"True","True","True"]
[null,null,null,null,null,null,null,null,null,null,null,0,200,"True","True","True"]
[null,null,null,null,null,null,null,null,null,null,null,0,200,"True","True","True"]
[null,null,null,null,null,null,null,null,null,null,null,0,200,"True","True","True"]
[null,null,null,null,null,null,null,null,null,null,null,0,200,"True","True","True"]
[null,null,null,null,null,null,null,null,null,null,null,0,200,"True","True","True"]
[null,null,null,null,null,null,null,null,null,null,null,0,200,"True","True","True"]
[null,null,null,null,null,null,null,null,null,null,null,0,200,"True","True","True"]
[null,null,null,null,null,null,null,null,null,null,null,0,200,"True","True","True"]
[null,null,null,null,null,null,null,null,null,null,null,0,200,"True","True","True"]
[null,null,null,null,null,null,null,null,null,null,null,0,200,"True","True","True"]
[null,null,null,null,null,null,null,null,null,null,null,0,200,"True","True","True"]
[null,null,null,null,null,null,null,null,null,null,null,0,200,"True","True","True"]
[null,null,null,null,null,null,null,null,null,null,null,0,200,"True","True","True"]
[null,null,null,null,null,null,null,null,null,null,null,0,200,"True","True","True"]
[null,null,null,null,null,null,null,null,null,null,null,0,200,"True","True","True"]
[null,null,null,null,null,null,null,null,null,null,null,0,200,"True","True","True"]
[null,null,null,null,null,null,null,null,null,null,null,0,200,"True","True","True"]
[null,null,null,null,null,null,null,null,null,null,null,0,200,"True","True","True"]
[null,null,null,null,null,null,null,null,null,null,null,0,200,"True","True","True"]
[null,null,null,null,null,null,null,null,null,null,null,0,200,"True","True","True"]
[null,null,null,null,null,null,null,null,null,null,null,0,200,"True","True","True"]
[null,null,null,null,null,null,null,null,null,null,null,0,200,{"$f":"IF(COUNTIF(C:C,C659)>1,\"False\",\"True\")","v":"True"},"True","True"]
[null,null,null,null,null,null,null,null,null,null,null,0,200,"True",{"$f":"IF(L660>200,\"False\",\"True\")","v":"True"},{"$f":"IF(AND(L660=0,C660=\"\"),\"True\",IF(AND(L660<>0,C660=\"\"),\"False\",\"True\"))","v":"True"}]
[null,null,null,null,null,null,null,null,null,null,null,0,{"$f":"200-L661","v":200},"True","True","True"]
[null,null,null,null,null,null,null,null,null,null,null,0,200,"True","True","True"]
[null,null,null,null,null,null,null,null,null,null,null,0,200,"True","True","True"]
[null,null,null,null,null,null,null,null,null,null,null,0,200,"True","True","True"]
[null,null,null,null,null,null,null,null,null,null,null,0,200,"True","True","True"]
[null,null,null,null,null,null,null,null,null,null,null,0,200,"True","True","True"]
[null,null,null,null,null,null,null,null,null,null,null,0,200,"True","True","True"]
[null,null,null,null,null,null,null,null,null,null,null,0,200,"True","True","True"]
[null,null,null,null,null,null,null,null,null,null,null,0,200,"True","True","True"]
[null,null,null,null,null,null,null,null,null,null,null,0,200,"True","True","True"]
[null,null,null,null,null,null,null,null,null,null,null,0,200,"True","True","True"]
[null,null,null,null,null,null,null,null,null,null,null,0,200,"True","True","True"]
[null,null,null,null,null,null,null,null,null,null,null,0,200,"True","True","True"]
[null,null,null,null,null,null,null,null,null,null,null,0,200,"True","True","True"]
[null,null,null,null,null,null,null,null,null,null,null,0,200,"True","True","True"]
[null,null,null,null,null,null,null,null,null,null,null,0,200,"True","True","True"]
[null,null,null,null,null,null,null,null,null,null,null,0,200,"True","True","True"]
[null,null,null,null,null,null,null,null,null,null,null,0,200,"True","True","True"]
[null,null,null,null,null,null,null,null,null,null,null,0,200,"True","True","True"]
[null,null,null,null,null,null,null,null,null,null,null,0,200,"True","True","True"]
[null,null,null,null,null,null,null,null,null,null,null,0,200,"True","True","True"]
[null,null,null,null,null,null,null,null,null,null,null,0,200,"True","True","True"]
[null,null,null,null,null,null,null,null,null,null,null,0,200,"True","True","True"]
[null,null,null,null,null,null,null,null,null,null,null,0,200,"True","True","True"]
[null,null,null,null,null,null,null,null,null,null,null,0,200,"True","True","True"]
[null,null,null,null,null,null,null,null,null,null,null,0,200,"True","True","True"]
[null,null,null,null,null,null,null,null,null,null,null,0,200,"True","True","True"]
[null,null,null,null,null,null,null,null,null,null,null,0,200,"True","True","True"]
[null,null,null,null,null,null,null,null,null,null,null,0,200,"True","True","True"]
[null,null,null,null,null,null,null,null,null,null,null,0,200,"True","True","True"]
[null,null,null,null,null,null,null,null,null,null,null,0,200,"True","True","True"]
[null,null,null,null,null,null,null,null,null,null,null,0,200,"True","True","True"]
[null,null,null,null,null,null,null,null,null,null,null,0,200,"True","True","True"]
[null,null,null,null,null,null,null,null,null,null,null,0,200,"True","True","True"]
[null,null,null,null,null,null,null,null,null,null,null,0,200,"True","True","True"]
[null,null,null,null,null,null,null,null,null,null,null,0,200,"True","True","True"]
[null,null,null,null,null,null,null,null,null,null,null,0,200,"True","True","True"]
[null,null,null,null,null,null,null,null,null,null,null,0,200,"True","True","True"]
[null,null,null,null,null,null,null,null,null,null,null,0,200,"True","True","True"]
[null,null,null,null,null,null,null,null,null,null,null,{"$f":"SUM(E700:J700)","v":0},200,"True","True","True"]
[null,null,null,null,null,null,null,null,null,null,null,0,200,"True","True","True"]
[null,null,null,null,null,null,null,null,null,null,null,0,200,"True","True","True"]
[null,null,null,null,null,null,null,null,null,null,null,0,200,"True","True","True"]
[null,null,null,null,null,null,null,null,null,null,null,0,200,"True","True","True"]
[null,null,null,null,null,null,null,null,null,null,null,0,200,"True","True","True"]
[null,null,null,null,null,null,null,null,null,null,null,0,200,"True","True","True"]
[null,null,null,null,null,null,null,null,null,null,null,0,200,"True","True","True"]
[null,null,null,null,null,null,null,null,null,null,null,0,200,"True","True","True"]
[null,null,null,null,null,null,null,null,null,null,null,0,200,"True","True","True"]
[null,null,null,null,null,null,null,null,null,null,null,0,200,"True","True","True"]
[null,null,null,null,null,null,null,null,null,null,null,0,200,"True","True","True"]
[null,null,null,null,null,null,null,null,null,null,null,0,200,"True","True","True"]
[null,null,null,null,null,null,null,null,null,null,null,0,200,"True","True","True"]
[null,null,null,null,null,null,null,null,null,null,null,0,200,"True","True","True"]
[null,null,null,null,null,null,null,null,null,null,null,0,200,"True","True","True"]
[null,null,null,null,null,null,null,null,null,null,null,0,200,"True","True","True"]
[null,null,null,null,null,null,null,null,null,null,null,0,200,"True","True","True"]
[null,null,null,null,null,null,null,null,null,null,null,0,200,"True","True","True"]
[null,null,null,null,null,null,null,null,null,null,null,0,200,"True","True","True"]
[null,null,null,null,null,null,null,null,null,null,null,0,200,"True","True","True"]
[null,null,null,null,null,null,null,null,null,null,null,0,200,"True","True","True"]
[null,null,null,null,null,null,null,null,null,null,null,0,200,"True","True","True"]
[null,null,null,null,null,null,null,null,null,null,null,0,200,{"$f":"IF(COUNTIF(C:C,C723)>1,\"False\",\"True\")","v":"True"},"True","True"]
[null,null,null,null,null,null,null,null,null,null,null,0,200,"True",{"$f":"IF(L724>200,\"False\",\"True\")","v":"True"},{"$f":"IF(AND(L724=0,C724=\"\"),\"True\",IF(AND(L724<>0,C724=\"\"),\"False\",\"True\"))","v":"True"}]
[null,null,null,null,null,null,null,null,null,null,null,0,{"$f":"200-L725","v":200},"True","True","True"]
[null,null,null,null,null,null,null,null,null,null,null,0,200,"True","True","True"]
[null,null,null,null,null,null,null,null,null,null,null,0,200,"True","True","True"]
[null,null,null,null,null,null,null,null,null,null,null,0,200,"True","True","True"]
[null,null,null,null,null,null,null,null,null,null,null,0,200,"True","True","True"]
[null,null,null,null,null,null,null,null,null,null,null,0,200,"True","True","True"]
[null,null,null,null,null,null,null,null,null,null,null,0,200,"True","True","True"]
[null,null,null,null,null,null,null,null,null,null,null,0,200,"True","True","True"]
[null,null,null,null,null,null,null,null,null,null,null,0,200,"True","True","True"]
[null,null,null,null,null,null,null,null,null,null,null,0,200,"True","True","True"]
[null,null,null,null,null,null,null,null,null,null,null,0,200,"True","True","True"]
[null,null,null,null,null,null,null,null,null,null,null,0,200,"True","True","True"]
[null,null,null,null,null,null,null,null,null,null,null,0,200,"True","True","True"]
[null,null,null,null,null,null,null,null,null,null,null,0,200,"True","True","True"]
[null,null,null,null,null,null,null,null,null,null,null,0,200,"True","True","True"]
[null,null,null,null,null,null,null,null,null,null,null,0,200,"True","True","True"]
[null,null,null,null,null,null,null,null,null,null,null,0,200,"True","True","True"]
[null,null,null,null,null,null,null,null,null,null,null,0,200,"True","True","True"]
[null,null,null,null,null,null,null,null,null,null,null,0,200,"True","True","True"]
[null,null,null,null,null,null,null,null,null,null,null,0,200,"True","True","True"]
[null,null,null,null,null,null,null,null,null,null,null,0,200,"True","True","True"]
[null,null,null,null,null,null,null,null,null,null,null,0,200,"True","True","True"]
[null,null,null,null,null,null,null,null,null,null,null,0,200,"True","True","True"]
[null,null,null,null,null,null,null,null,null,null,null,0,200,"True","True","True"]
[null,null,null,null,null,null,null,null,null,null,null,0,200,"True","True","True"]
[null,null,null,null,null,null,null,null,null,null,null,0,200,"True","True","True"]
[null,null,null,null,null,null,null,null,null,null,null,0,200,"True","True","True"]
[null,null,null,null,null,null,null,null,null,null,null,0,200,"True","True","True"]
[null,null,null,null,null,null,null,null,null,null,null,0,200,"True","True","True"]
[null,null,null,null,null,null,null,null,null,null,null,0,200,"True","True","True"]
[null,null,null,null,null,null,null,null,null,null,null,0,200,"True","True","True"]
[null,null,null,null,null,null,null,null,null,null,null,0,200,"True","True","True"]
[null,null,null,null,null,null,null,null,null,null,null,0,200,"True","True","True"]
[null,null,null,null,null,null,null,null,null,null,null,0,200,"True","True","True"]
[null,null,null,null,null,null,null,null,null,null,null,0,200,"True","True","True"]
[null,null,null,null,null,null,null,null,null,null,null,0,200,"True","True","True"]
[null,null,null,null,null,null,null,null,null,null,null,0,200,"True","True","True"]
[null,null,null,null,null,null,null,null,null,null,null,0,200,"True","True","True"]
[null,null,null,null,null,null,null,null,null,null,null,0,200,"True","True","True"]
[null,null,null,null,null,null,null,null,null,null,null,{"$f":"SUM(E764:J764)","v":0},200,"True","True","True"]
[null,null,null,null,null,null,null,null,null,null,null,0,200,"True","True","True"]
[null,null,null,null,null,null,null,null,null,null,null,0,200,"True","True","True"]
[null,null,null,null,null,null,null,null,null,null,null,0,200,"True","True","True"]
[null,null,null,null,null,null,null,null,null,null,null,0,200,"True","True","True"]
[null,null,null,null,null,null,null,null,null,null,null,0,200,"True","True","True"]
[null,null,null,null,null,null,null,null,null,null,null,0,200,"True","True","True"]
[null,null,null,null,null,null,null,null,null,null,null,0,200,"True","True","True"]
[null,null,null,null,null,null,null,null,null,null,null,0,200,"True","True","True"]
[null,null,null,null,null,null,null,null,null,null,null,0,200,"True","True","True"]
[null,null,null,null,null,null,null,null,null,null,null,0,200,"True","True","True"]
[null,null,null,null,null,null,null,null,null,null,null,0,200,"True","True","True"]
[null,null,null,null,null,null,null,null,null,null,null,0,200,"True","True","True"]
[null,null,null,null,null,null,null,null,null,null,null,0,200,"True","True","True"]
[null,null,null,null,null,null,null,null,null,null,null,0,200,"True","True","True"]
[null,null,null,null,null,null,null,null,null,null,null,0,200,"True","True","True"]
[null,null,null,null,null,null,null,null,null,null,null,0,200,"True","True","True"]
[null,null,null,null,null,null,null,null,null,null,null,0,200,"True","True","True"]
[null,null,null,null,null,null,null,null,null,null,null,0,200,"True","True","True"]
[null,null,null,null,null,null,null,null,null,null,null,0,200,"True","True","True"]
[null,null,null,null,null,null,null,null,null,null,null,0,200,"True","True","True"]
[null,null,null,null,null,null,null,null,null,null,null,0,200,"True","True","True"]
[null,null,null,null,null,null,null,null,null,null,null,0,200,"True","True","True"]
[null,null,null,null,null,null,null,null,null,null,null,0,200,{"$f":"IF(COUNTIF(C:C,C787)>1,\"False\",\"True\")","v":"True"},"True","True"]
[null,null,null,null,null,null,null,null,null,null,null,0,200,"True",{"$f":"IF(L788>200,\"False\",\"True\")","v":"True"},{"$f":"IF(AND(L788=0,C788=\"\"),\"True\",IF(AND(L788<>0,C788=\"\"),\"False\",\"True\"))","v":"True"}]
[null,null,null,null,null,null,null,null,null,null,null,0,{"$f":"200-L789","v":200},"True","True","True"]
[null,null,null,null,null,null,null,null,null,null,null,0,200,"True","True","True"]
[null,null,null,null,null,null,null,null,null,null,null,0,200,"True","True","True"]
[null,null,null,null,null,null,null,null,null,null,null,0,200,"True","True","True"]
[null,null,null,null,null,null,null,null,null,null,null,0,200,"True","True","True"]
[null,null,null,null,null,null,null,null,null,null,null,0,200,"True","True","True"]
[null,null,null,null,null,null,null,null,null,null,null,0,200,"True","True","True"]
[null,null,null,null,null,null,null,null,null,null,null,0,200,"True","True","True"]
[null,null,null,null,null,null,null,null,null,null,null,0,200,"True","True","True"]
[null,null,null,null,null,null,null,null,null,null,null,0,200,"True","True","True"]
[null,null,null,null,null,null,null,null,null,null,null,0,200,"True","True","True"]
[null,null,null,null,null,null,null,null,null,null,null,0,200,"True","True","True"]
[null,null,null,null,null,null,null,null,null,null,null,0,200,"True","True","True"]
[null,null,null,null,null,null,null,null,null,null,null,0,200,"True","True","True"]
[null,null,null,null,null,null,null,null,null,null,null,0,200,"True","True","True"]
[null,null,null,null,null,null,null,null,null,null,null,0,200,"True","True","True"]
[null,null,null,null,null,null,null,null,null,null,null,0,200,"True","True","True"]
[null,null,null,null,null,null,null,null,null,null,null,0,200,"True","True","True"]
[null,null,null,null,null,null,null,null,null,null,null,0,200,"True","True","True"]
[null,null,null,null,null,null,null,null,null,null,null,0,200,"True","True","True"]
[null,null,null,null,null,null,null,null,null,null,null,0,200,"True","True","True"]
[null,null,null,null,null,null,null,null,null,null,null,0,200,"True","True","True"]
[null,null,null,null,null,null,null,null,null,null,null,0,200,"True","True","True"]
[null,null,null,null,null,null,null,null,null,null,null,0,200,"True","True","True"]
[null,null,null,null,null,null,null,null,null,null,null,0,200,"True","True","True"]
[null,null,null,null,null,null,null,null,null,null,null,0,200,"True","True","True"]
[null,null,null,null,null,null,null,null,null,null,null,0,200,"True","True","True"]
[null,null,null,null,null,null,null,null,null,null,null,0,200,"True","True","True"]
[null,null,null,null,null,null,null,null,null,null,null,0,200,"True","True","True"]
[null,null,null,null,null,null,null,null,null,null,null,0,200,"True","True","True"]
[null,null,null,null,null,null,null,null,null,null,null,0,200,"True","True","True"]
[null,null,null,null,null,null,null,null,null,null,null,0,200,"True","True","True"]
[null,null,null,null,null,null,null,null,null,null,null,0,200,"True","True","True"]
[null,null,null,null,null,null,null,null,null,null,null,0,200,"True","True","True"]
[null,null,null,null,null,null,null,null,null,null,null,0,200,"True","True","True"]
[null,null,null,null,null,null,null,null,null,null,null,0,200,"True","True","True"]
[null,null,null,null,null,null,null,null,null,null,null,0,200,"True","True","True"]
[null,null,null,null,null,null,null,null,null,null,null,0,200,"True","True","True"]
[null,null,null,null,null,null,null,null,null,null,null,0,200,"True","True","True"]
[null,null,null,null,null,null,null,null,null,null,null,{"$f":"SUM(E828:J828)","v":0},200,"True","True","True"]
[null,null,null,null,null,null,null,null,null,null,null,0,200,"True","True","True"]
[null,null,null,null,null,null,null,null,null,null,null,0,200,"True","True","True"]
[null,null,null,null,null,null,null,null,null,null,null,0,200,"True","True","True"]
[null,null,null,null,null,null,null,null,null,null,null,0,200,"True","True","True"]
[null,null,null,null,null,null,null,null,null,null,null,0,200,"True","True","True"]
[null,null,null,null,null,null,null,null,null,null,null,0,200,"True","True","True"]
[null,null,null,null,null,null,null,null,null,null,null,0,200,"True","True","True"]
[null,null,null,null,null,null,null,null,null,null,null,0,200,"True","True","True"]
[null,null,null,null,null,null,null,null,null,null,null,0,200,"True","True","True"]
[null,null,null,null,null,null,null,null,null,null,null,0,200,"True","True","True"]
[null,null,null,null,null,null,null,null,null,null,null,0,200,"True","True","True"]
[null,null,null,null,null,null,null,null,null,null,null,0,200,"True","True","True"]
[null,null,null,null,null,null,null,null,null,null,null,0,200,"True","True","True"]
[null,null,null,null,null,null,null,null,null,null,null,0,200,"True","True","True"]
[null,null,null,null,null,null,null,null,null,null,null,0,200,"True","True","True"]
[null,null,null,null,null,null,null,null,null,null,null,0,200,"True","True","True"]
[null,null,null,null,null,null,null,null,null,null,null,0,200,"True","True","True"]
[null,null,null,null,null,null,null,null,null,null,null,0,200,"True","True","True"]
[null,null,null,null,null,null,null,null,null,null,null,0,200,"True","True","True"]
[null,null,null,null,null,null,null,null,null,null,null,0,200,"True","True","True"]
[null,null,null,null,null,null,null,null,null,null,null,0,200,"True","True","True"]
[null,null,null,null,null,null,null,null,null,null,null,0,200,"True","True","True"]
[null,null,null,null,null,null,null,null,null,null,null,0,200,{"$f":"IF(COUNTIF(C:C,C851)>1,\"False\",\"True\")","v":"True"},"True","True"]
[null,null,null,null,null,null,null,null,null,null,null,0,200,"True",{"$f":"IF(L852>200,\"False\",\"True\")","v":"True"},{"$f":"IF(AND(L852=0,C852=\"\"),\"True\",IF(AND(L852<>0,C852=\"\"),\"False\",\"True\"))","v":"True"}]
[null,null,null,null,null,null,null,null,null,null,null,0,{"$f":"200-L853","v":200},"True","True","True"]
[null,null,null,null,null,null,null,null,null,null,null,0,200,"True","True","True"]
[null,null,null,null,null,null,null,null,null,null,null,0,200,"True","True","True"]
[null,null,null,null,null,null,null,null,null,null,null,0,200,"True","True","True"]
[null,null,null,null,null,null,null,null,null,null,null,0,200,"True","True","True"]
[null,null,null,null,null,null,null,null,null,null,null,0,200,"True","True","True"]
[null,null,null,null,null,null,null,null,null,null,null,0,200,"True","True","True"]
[null,null,null,null,null,null,null,null,null,null,null,0,200,"True","True","True"]
[null,null,null,null,null,null,null,null,null,null,null,0,200,"True","True","True"]
[null,null,null,null,null,null,null,null,null,null,null,0,200,"True","True","True"]
[null,null,null,null,null,null,null,null,null,null,null,0,200,"True","True","True"]
[null,null,null,null,null,null,null,null,null,null,null,0,200,"True","True","True"]
[null,null,null,null,null,null,null,null,null,null,null,0,200,"True","True","True"]
[null,null,null,null,null,null,null,null,null,null,null,0,200,"True","True","True"]
[null,null,null,null,null,null,null,null,null,null,null,0,200,"True","True","True"]
[null,null,null,null,null,null,null,null,null,null,null,0,200,"True","True","True"]
[null,null,null,null,null,null,null,null,null,null,null,0,200,"True","True","True"]
[null,null,null,null,null,null,null,null,null,null,null,0,200,"True","True","True"]
[null,null,null,null,null,null,null,null,null,null,null,0,200,"True","True","True"]
[null,null,null,null,null,null,null,null,null,null,null,0,200,"True","True","True"]
[null,null,null,null,null,null,null,null,null,null,null,0,200,"True","True","True"]
[null,null,null,null,null,null,null,null,null,null,null,0,200,"True","True","True"]
[null,null,null,null,null,null,null,null,null,null,null,0,200,"True","True","True"]
[null,null,null,null,null,null,null,null,null,null,null,0,200,"True","True","True"]
[null,null,null,null,null,null,null,null,null,null,null,0,200,"True","True","True"]
[null,null,null,null,null,null,null,null,null,null,null,0,200,"True","True","True"]
[null,null,null,null,null,null,null,null,null,null,null,0,200,"True","True","True"]
[null,null,null,null,null,null,null,null,null,null,null,0,200,"True","True","True"]
[null,null,null,null,null,null,null,null,null,null,null,0,200,"True","True","True"]
[null,null,null,null,null,null,null,null,null,null,null,0,200,"True","True","True"]
[null,null,null,null,null,null,null,null,null,null,null,0,200,"True","True","True"]
[null,null,null,null,null,null,null,null,null,null,null,0,200,"True","True","True"]
[null,null,null,null,null,null,null,null,null,null,null,0,200,"True","True","True"]
[null,null,null,null,null,null,null,null,null,null,null,0,200,"True","True","True"]
[null,null,null,null,null,null,null,null,null,null,null,0,200,"True","True","True"]
[null,null,null,null,null,null,null,null,null,null,null,0,200,"True","True","True"]
[null,null,null,null,null,null,null,null,null,null,null,0,200,"True","True","True"]
[null,null,null,null,null,null,null,null,null,null,null,0,200,"True","True","True"]
[null,null,null,null,null,null,null,null,null,null,null,0,200,"True","True","True"]
[null,null,null,null,null,null,null,null,null,null,null,{"$f":"SUM(E892:J892)","v":0},200,"True","True","True"]
[null,null,null,null,null,null,null,null,null,null,null,0,200,"True","True","True"]
[null,null,null,null,null,null,null,null,null,null,null,0,200,"True","True","True"]
[null,null,null,null,null,null,null,null,null,null,null,0,200,"True","True","True"]
[null,null,null,null,null,null,null,null,null,null,null,0,200,"True","True","True"]
[null,null,null,null,null,null,null,null,null,null,null,0,200,"True","True","True"]
[null,null,null,null,null,null,null,null,null,null,null,0,200,"True","True","True"]
[null,null,null,null,null,null,null,null,null,null,null,0,200,"True","True","True"]
[null,null,null,null,null,null,null,null,null,null,null,0,200,"True","True","True"]
[null,null,null,null,null,null,null,null,null,null,null,0,200,"True","True","True"]
[null,null,null,null,null,null,null,null,null,null,null,0,200,"True","True","True"]
[null,null,null,null,null,null,null,null,null,null,null,0,200,"True","True","True"]
[null,null,null,null,null,null,null,null,null,null,null,0,200,"True","True","True"]
[null,null,null,null,null,null,null,null,null,null,null,0,200,"True","True","True"]
[null,null,null,null,null,null,null,null,null,null,null,0,200,"True","True","True"]
[null,null,null,null,null,null,null,null,null,null,null,0,200,"True","True","True"]
[null,null,null,null,null,null,null,null,null,null,null,0,200,"True","True","True"]
[null,null,null,null,null,null,null,null,null,null,null,0,200,"True","True","True"]
[null,null,null,null,null,null,null,null,null,null,null,0,200,"True","True","True"]
[null,null,null,null,null,null,null,null,null,null,null,0,200,"True","True","True"]
[null,null,null,null,null,null,null,null,null,null,null,0,200,"True","True","True"]
[null,null,null,null,null,null,null,null,null,null,null,0,200,"True","True","True"]
[null,null,null,null,null,null,null,null,null,null,null,0,200,"True","True","True"]
[null,null,null,null,null,null,null,null,null,null,null,0,200,{"$f":"IF(COUNTIF(C:C,C915)>1,\"False\",\"True\")","v":"True"},"True","True"]
[null,null,null,null,null,null,null,null,null,null,null,0,200,"True",{"$f":"IF(L916>200,\"False\",\"True\")","v":"True"},{"$f":"IF(AND(L916=0,C916=\"\"),\"True\",IF(AND(L916<>0,C916=\"\"),\"False\",\"True\"))","v":"True"}]
[null,null,null,null,null,null,null,null,null,null,null,0,{"$f":"200-L917","v":200},"True","True","True"]
[null,null,null,null,null,null,null,null,null,null,null,0,200,"True","True","True"]
[null,null,null,null,null,null,null,null,null,null,null,0,200,"True","True","True"]
[null,null,null,null,null,null,null,null,null,null,null,0,200,"True","True","True"]
[null,null,null,null,null,null,null,null,null,null,null,0,200,"True","True","True"]
[null,null,null,null,null,null,null,null,null,null,null,0,200,"True","True","True"]
[null,null,null,null,null,null,null,null,null,null,null,0,200,"True","True","True"]
[null,null,null,null,null,null,null,null,null,null,null,0,200,"True","True","True"]
[null,null,null,null,null,null,null,null,null,null,null,0,200,"True","True","True"]
[null,null,null,null,null,null,null,null,null,null,null,0,200,"True","True","True"]
[null,null,null,null,null,null,null,null,null,null,null,0,200,"True","True","True"]
[null,null,null,null,null,null,null,null,null,null,null,0,200,"True","True","True"]
[null,null,null,null,null,null,null,null,null,null,null,0,200,"True","True","True"]
[null,null,null,null,null,null,null,null,null,null,null,0,200,"True","True","True"]
[null,null,null,null,null,null,null,null,null,null,null,0,200,"True","True","True"]
[null,null,null,null,null,null,null,null,null,null,null,0,200,"True","True","True"]
[null,null,null,null,null,null,null,null,null,null,null,0,200,"True","True","True"]
[null,null,null,null,null,null,null,null,null,null,null,0,200,"True","True","True"]
[null,null,null,null,null,null,null,null,null,null,null,0,200,"True","True","True"]
[null,null,null,null,null,null,null,null,null,null,null,0,200,"True","True","True"]
[null,null,null,null,null,null,null,null,null,null,null,0,200,"True","True","True"]
[null,null,null,null,null,null,null,null,null,null,null,0,200,"True","True","True"]
[null,null,null,null,null,null,null,null,null,null,null,0,200,"True","True","True"]
[null,null,null,null,null,null,null,null,null,null,null,0,200,"True","True","True"]
[null,null,null,null,null,null,null,null,null,null,null,0,200,"True","True","True"]
[null,null,null,null,null,null,null,null,null,null,null,0,200,"True","True","True"]
[null,null,null,null,null,null,null,null,null,null,null,0,200,"True","True","True"]
[null,null,null,null,null,null,null,null,null,null,null,0,200,"True","True","True"]
[null,null,null,null,null,null,null,null,null,null,null,0,200,"True","True","True"]
[null,null,null,null,null,null,null,null,null,null,null,0,200,"True","True","True"]
[null,null,null,null,null,null,null,null,null,null,null,0,200,"True","True","True"]
[null,null,null,null,null,null,null,null,null,null,null,0,200,"True","True","True"]
[null,null,null,null,null,null,null,null,null,null,null,0,200,"True","True","True"]
[null,null,null,null,null,null,null,null,null,null,null,0,200,"True","True","True"]
[null,null,null,null,null,null,null,null,null,null,null,0,200,"True","True","True"]
[null,null,null,null,null,null,null,null,null,null,null,0,200,"True","True","True"]
[null,null,null,null,null,null,null,null,null,null,null,0,200,"True","True","True"]
[null,null,null,null,null,null,null,null,null,null,null,0,200,"True","True","True"]
[null,null,null,null,null,null,null,null,null,null,null,0,200,"True","True","True"]
[null,null,null,null,null,null,null,null,null,null,null,{"$f":"SUM(E956:J956)","v":0},200,"True","True","True"]
[null,null,null,null,null,null,null,null,null,null,null,0,200,"True","True","True"]
[null,null,null,null,null,null,null,null,null,null,null,0,200,"True","True","True"]
[null,null,null,null,null,null,null,null,null,null,null,0,200,"True","True","True"]
[null,null,null,null,null,null,null,null,null,null,null,0,200,"True","True","True"]
[null,null,null,null,null,null,null,null,null,null,null,0,200,"True","True","True"]
[null,null,null,null,null,null,null,null,null,null,null,0,200,"True","True","True"]
[null,null,null,null,null,null,null,null,null,null,null,0,200,"True","True","True"]
[null,null,null,null,null,null,null,null,null,null,null,0,200,"True","True","True"]
[null,null,null,null,null,null,null,null,null,null,null,0,200,"True","True","True"]
[null,null,null,null,null,null,null,null,null,null,null,0,200,"True","True","True"]
[null,null,null,null,null,null,null,null,null,null,null,0,200,"True","True","True"]
[null,null,null,null,null,null,null,null,null,null,null,0,200,"True","True","True"]
[null,null,null,null,null,null,null,null,null,null,null,0,200,"True","True","True"]
[null,null,null,null,null,null,null,null,null,null,null,0,200,"True","True","True"]
[null,null,null,null,null,null,null,null,null,null,null,0,200,"True","True","True"]
[null,null,null,null,null,null,null,null,null,null,null,0,200,"True","True","True"]
[null,null,null,null,null,null,null,null,null,null,null,0,200,"True","True","True"]
[null,null,null,null,null,null,null,null,null,null,null,0,200,"True","True","True"]
[null,null,null,null,null,null,null,null,null,null,null,0,200,"True","True","True"]
[null,null,null,null,null,null,null,null,null,null,null,0,200,"True","True","True"]
[null,null,null,null,null,null,null,null,null,null,null,0,200,"True","True","True"]
[null,null,null,null,null,null,null,null,null,null,null,0,200,"True","True","True"]
[null,null,null,null,null,null,null,null,null,null,null,0,200,{"$f":"IF(COUNTIF(C:C,C979)>1,\"False\",\"True\")","v":"True"},"True","True"]
[null,null,null,null,null,null,null,null,null,null,null,0,200,"True",{"$f":"IF(L980>200,\"False\",\"True\")","v":"True"},{"$f":"IF(AND(L980=0,C980=\"\"),\"True\",IF(AND(L980<>0,C980=\"\"),\"False\",\"True\"))","v":"True"}]
[null,null,null,null,null,null,null,null,null,null,null,0,{"$f":"200-L981","v":200},"True","True","True"]
[null,null,null,null,null,null,null,null,null,null,null,0,200,"True","True","True"]
[null,null,null,null,null,null,null,null,null,null,null,0,200,"True","True","True"]
[null,null,null,null,null,null,null,null,null,null,null,0,200,"True","True","True"]
[null,null,null,null,null,null,null,null,null,null,null,0,200,"True","True","True"]
[null,null,null,null,null,null,null,null,null,null,null,0,200,"True","True","True"]
[null,null,null,null,null,null,null,null,null,null,null,0,200,"True","True","True"]
[null,null,null,null,null,null,null,null,null,null,null,0,200,"True","True","True"]
[null,null,null,null,null,null,null,null,null,null,null,0,200,"True","True","True"]
[null,null,null,null,null,null,null,null,null,null,null,0,200,"True","True","True"]
[null,null,null,null,null,null,null,null,null,null,null,0,200,"True","True","True"]
[null,null,null,null,null,null,null,null,null,null,null,0,200,"True","True","True"]
[null,null,null,null,null,null,null,null,null,null,null,0,200,"True","True","True"]
[null,null,null,null,null,null,null,null,null,null,null,0,200,"True","True","True"]
[null,null,null,null,null,null,null,null,null,null,null,{"$f":"SUM(E995:J995)","v":0},200,"True","True","True"]
[null,null,null,null,null,null,null,null,null,null,null,{"$f":"SUM(E996:J996)","v":0},200,"True","True","True"]
[null,null,null,null,null,null,null,null,null,null,null,0,200,"True","True","True"]
[null,null,null,null,null,null,null,null,null,null,null,0,200,"True","True","True"]
[null,null,null,null,null,null,null,null,null,null,null,0,200,"True","True","True"]
[null,null,null,null,null,null,null,null,null,null,null,0,200,"True","True","True"]
[null,null,null,null,null,null,null,null,null,null,null,0,200,"True","True","True"]
[null,null,null,null,null,null,null,null,null,null,null,0,200,"True","True","True"]
[null,null,null,null,null,null,null,null,null,null,null,0,200,"True","True","True"]
[null,null,null,null,null,null,null,null,null,null,null,0,200,"True","True","True"]
[null,null,null,null,null,null,null,null,null,null,null,0,200,"True","True","True"]
[null,null,null,null,null,null,null,null,null,null,null,0,200,"True","True","True"]
[null,null,null,null,null,null,null,null,null,null,null,0,200,"True","True","True"]
[null,null,null,null,null,null,null,null,null,null,null,0,200,"True","True","True"]
[null,null,null,null,null,null,null,null,null,null,null,0,200,"True","True","True"]
[null,null,null,null,null,null,null,null,null,null,null,0,200,"True","True","True"]
[null,null,null,null,null,null,null,null,null,null,null,0,200,"True","True","True"]
[null,null,null,null,null,null,null,null,null,null,null,0,200,"True","True","True"]
[null,null,null,null,null,null,null,null,null,null,null,0,200,"True","True","True"]
[null,null,null,null,null,null,null,null,null,null,null,0,200,"True","True","True"]
[null,null,null,null,null,null,null,null,null,null,null,0,200,"True","True","True"]
[null,null,null,null,null,null,null,null,null,null,null,0,200,"True","True","True"]
[null,null,null,null,null,null,null,null,null,null,null,0,200,"True","True","True"]
[null,null,null,null,null,null,null,null,null,null,null,0,200,"True","True","True"]
[null,null,null,null,null,null,null,null,null,null,null,0,200,"True","True","True"]
[null,null,null,null,null,null,null,null,null,null,null,0,200,"True","True","True"]
[null,null,null,null,null,null,null,null,null,null,null,0,200,"True","True","True"]
[null,null,null,null,null,null,null,null,null,null,null,0,200,"True","True","True"]
[null,null,null,null,null,null,null,null,null,null,null,0,200,"True","True","True"]
[null,null,null,null,null,null,null,null,null,null,null,0,200,"True","True","True"]
[null,null,null,null,null,null,null,null,null,null,null,0,200,"True","True","True"]
[null,null,null,null,null,null,null,null,null,null,null,0,200,"True","True","True"]
[null,null,null,null,null,null,null,null,null,null,null,0,200,"True","True","True"]
[null,null,null,null,null,null,null,null,null,null,null,0,200,"True","True","True"]
[null,null,null,null,null,null,null,null,null,null,null,0,200,"True","True","True"]
[null,null,null,null,null,null,null,null,null,null,null,0,200,"True","True","True"]
[null,null,null,null,null,null,null,null,null,null,null,0,200,"True","True","True"]
[null,null,null,null,null,null,null,null,null,null,null,0,200,"True","True","True"]
[null,null,null,null,null,null,null,null,null,null,null,0,200,"True","True","True"]
[null,null,null,null,null,null,null,null,null,null,null,0,200,"True","True","True"]
[null,null,null,null,null,null,null,null,null,null,null,0,200,"True","True","True"]
[null,null,null,null,null,null,null,null,null,null,null,0,200,"True","True","True"]
[null,null,null,null,null,null,null,null,null,null,null,0,200,"True","True","True"]
[null,null,null,null,null,null,null,null,null,null,null,0,200,"True","True","True"]
[null,null,null,null,null,null,null,null,null,null,null,0,200,"True","True","True"]
[null,null,null,null,null,null,null,null,null,null,null,0,200,"True","True","True"]
[null,null,null,null,null,null,null,null,null,null,null,0,200,"True","True","True"]
[null,null,null,null,null,null,null,null,null,null,null,0,200,"True","True","True"]
[null,null,null,null,null,null,null,null,null,null,null,0,200,{"$f":"IF(COUNTIF(C:C,C1043)>1,\"False\",\"True\")","v":"True"},"True","True"]
[null,null,null,null,null,null,null,null,null,null,null,0,200,"True",{"$f":"IF(L1044>200,\"False\",\"True\")","v":"True"},{"$f":"IF(AND(L1044=0,C1044=\"\"),\"True\",IF(AND(L1044<>0,C1044=\"\"),\"False\",\"True\"))","v":"True"}]
[null,null,null,null,null,null,null,null,null,null,null,0,{"$f":"200-L1045","v":200},"True","True","True"]
[null,null,null,null,null,null,null,null,null,null,null,0,200,"True","True","True"]
[null,null,null,null,null,null,null,null,null,null,null,0,200,"True","True","True"]
[null,null,null,null,null,null,null,null,null,null,null,0,200,"True","True","True"]
[null,null,null,null,null,null,null,null,null,null,null,0,200,"True","True","True"]
[null,null,null,null,null,null,null,null,null,null,null,0,200,"True","True","True"]
[null,null,null,null,null,null,null,null,null,null,null,0,200,"True","True","True"]
[null,null,null,null,null,null,null,null,null,null,null,0,200,"True","True","True"]
[null,null,null,null,null,null,null,null,null,null,null,0,200,"True","True","True"]
[null,null,null,null,null,null,null,null,null,null,null,0,200,"True","True","True"]
[null,null,null,null,null,null,null,null,null,null,null,0,200,"True","True","True"]
[null,null,null,null,null,null,null,null,null,null,null,0,200,"True","True","True"]
[null,null,null,null,null,null,null,null,null,null,null,0,200,"True","True","True"]
[null,null,null,null,null,null,null,null,null,null,null,0,200,"True","True","True"]
[null,null,null,null,null,null,null,null,null,null,null,0,200,"True","True","True"]
[null,null,null,null,null,null,null,null,null,null,null,{"$f":"SUM(E1060:J1060)","v":0},200,"True","True","True"]
[null,null,null,null,null,null,null,null,null,null,null,0,200,"True","True","True"]
[null,null,null,null,null,null,null,null,null,null,null,0,200,"True","True","True"]
[null,null,null,null,null,null,null,null,null,null,null,0,200,"True","True","True"]
[null,null,null,null,null,null,null,null,null,null,null,0,200,"True","True","True"]
[null,null,null,null,null,null,null,null,null,null,null,0,200,"True","True","True"]
[null,null,null,null,null,null,null,null,null,null,null,0,200,"True","True","True"]
[null,null,null,null,null,null,null,null,null,null,null,0,200,"True","True","True"]
[null,null,null,null,null,null,null,null,null,null,null,0,200,"True","True","True"]
[null,null,null,null,null,null,null,null,null,null,null,0,200,"True","True","True"]
[null,null,null,null,null,null,null,null,null,null,null,0,200,"True","True","True"]
[null,null,null,null,null,null,null,null,null,null,null,0,200,"True","True","True"]
[null,null,null,null,null,null,null,null,null,null,null,0,200,"True","True","True"]
[null,null,null,null,null,null,null,null,null,null,null,0,200,"True","True","True"]
[null,null,null,null,null,null,null,null,null,null,null,0,200,"True","True","True"]
[null,null,null,null,null,null,null,null,null,null,null,0,200,"True","True","True"]
[null,null,null,null,null,null,null,null,null,null,null,0,200,"True","True","True"]
[null,null,null,null,null,null,null,null,null,null,null,0,200,"True","True","True"]
[null,null,null,null,null,null,null,null,null,null,null,0,200,"True","True","True"]
[null,null,null,null,null,null,null,null,null,null,null,0,200,"True","True","True"]
[null,null,null,null,null,null,null,null,null,null,null,0,200,"True","True","True"]
[null,null,null,null,null,null,null,null,null,null,null,0,200,"True","True","True"]
[null,null,null,null,null,null,null,null,null,null,null,0,200,"True","True","True"]
[null,null,null,null,null,null,null,null,null,null,null,0,200,"True","True","True"]
[null,null,null,null,null,null,null,null,null,null,null,0,200,"True","True","True"]
[null,null,null,null,null,null,null,null,null,null,null,0,200,"True","True","True"]
[null,null,null,null,null,null,null,null,null,null,null,0,200,"True","True","True"]
[null,null,null,null,null,null,null,null,null,null,null,0,200,"True","True","True"]
[null,null,null,null,null,null,null,null,null,null,null,0,200,"True","True","True"]
[null,null,null,null,null,null,null,null,null,null,null,0,200,"True","True","True"]
[null,null,null,null,null,null,null,null,null,null,null,0,200,"True","True","True"]
[null,null,null,null,null,null,null,null,null,null,null,0,200,"True","True","True"]
[null,null,null,null,null,null,null,null,null,null,null,0,200,"True","True","True"]
[null,null,null,null,null,null,null,null,null,null,null,0,200,"True","True","True"]
[null,null,null,null,null,null,null,null,null,null,null,0,200,"True","True","True"]
[null,null,null,null,null,null,null,null,null,null,null,0,200,"True","True","True"]
[null,null,null,null,null,null,null,null,null,null,null,0,200,"True","True","True"]
[null,null,null,null,null,null,null,null,null,null,null,0,200,"True","True","True"]
[null,null,null,null,null,null,null,null,null,null,null,0,200,"True","True","True"]
[null,null,null,null,null,null,null,null,null,null,null,0,200,"True","True","True"]
[null,null,null,null,null,null,null,null,null,null,null,0,200,"True","True","True"]
[null,null,null,null,null,null,null,null,null,null,null,0,200,"True","True","True"]
[null,null,null,null,null,null,null,null,null,null,null,0,200,"True","True","True"]
[null,null,null,null,null,null,null,null,null,null,null,0,200,"True","True","True"]
[null,null,null,null,null,null,null,null,null,null,null,0,200,"True","True","True"]
[null,null,null,null,null,null,null,null,null,null,null,0,200,"True","True","True"]
[null,null,null,null,null,null,null,null,null,null,null,0,200,"True","True","True"]
[null,null,null,null,null,null,null,null,null,null,null,0,200,{"$f":"IF(COUNTIF(C:C,C1107)>1,\"False\",\"True\")","v":"True"},"True","True"]
[null,null,null,null,null,null,null,null,null,null,null,0,200,"True",{"$f":"IF(L1108>200,\"False\",\"True\")","v":"True"},{"$f":"IF(AND(L1108=0,C1108=\"\"),\"True\",IF(AND(L1108<>0,C1108=\"\"),\"False\",\"True\"))","v":"True"}]
[null,null,null,null,null,null,null,null,null,null,null,0,{"$f":"200-L1109","v":200},"True","True","True"]
[null,null,null,null,null,null,null,null,null,null,null,0,200,"True","True","True"]
[null,null,null,null,null,null,null,null,null,null,null,0,200,"True","True","True"]
[null,null,null,null,null,null,null,null,null,null,null,0,200,"True","True","True"]
[null,null,null,null,null,null,null,null,null,null,null,0,200,"True","True","True"]
[null,null,null,null,null,null,null,null,null,null,null,0,200,"True","True","True"]
[null,null,null,null,null,null,null,null,null,null,null,0,200,"True","True","True"]
[null,null,null,null,null,null,null,null,null,null,null,0,200,"True","True","True"]
[null,null,null,null,null,null,null,null,null,null,null,0,200,"True","True","True"]
[null,null,null,null,null,null,null,null,null,null,null,0,200,"True","True","True"]
[null,null,null,null,null,null,null,null,null,null,null,0,200,"True","True","True"]
[null,null,null,null,null,null,null,null,null,null,null,0,200,"True","True","True"]
[null,null,null,null,null,null,null,null,null,null,null,0,200,"True","True","True"]
[null,null,null,null,null,null,null,null,null,null,null,0,200,"True","True","True"]
[null,null,null,null,null,null,null,null,null,null,null,0,200,"True","True","True"]
[null,null,null,null,null,null,null,null,null,null,null,{"$f":"SUM(E1124:J1124)","v":0},200,"True","True","True"]
[null,null,null,null,null,null,null,null,null,null,null,0,200,"True","True","True"]
[null,null,null,null,null,null,null,null,null,null,null,0,200,"True","True","True"]
[null,null,null,null,null,null,null,null,null,null,null,0,200,"True","True","True"]
[null,null,null,null,null,null,null,null,null,null,null,0,200,"True","True","True"]
[null,null,null,null,null,null,null,null,null,null,null,0,200,"True","True","True"]
[null,null,null,null,null,null,null,null,null,null,null,0,200,"True","True","True"]
[null,null,null,null,null,null,null,null,null,null,null,0,200,"True","True","True"]
[null,null,null,null,null,null,null,null,null,null,null,0,200,"True","True","True"]
[null,null,null,null,null,null,null,null,null,null,null,0,200,"True","True","True"]
[null,null,null,null,null,null,null,null,null,null,null,0,200,"True","True","True"]
[null,null,null,null,null,null,null,null,null,null,null,0,200,"True","True","True"]
[null,null,null,null,null,null,null,null,null,null,null,0,200,"True","True","True"]
[null,null,null,null,null,null,null,null,null,null,null,0,200,"True","True","True"]
[null,null,null,null,null,null,null,null,null,null,null,0,200,"True","True","True"]
[null,null,null,null,null,null,null,null,null,null,null,0,200,"True","True","True"]
[null,null,null,null,null,null,null,null,null,null,null,0,200,"True","True","True"]
[null,null,null,null,null,null,null,null,null,null,null,0,200,"True","True","True"]
[null,null,null,null,null,null,null,null,null,null,null,0,200,"True","True","True"]
[null,null,null,null,null,null,null,null,null,null,null,0,200,"True","True","True"]
[null,null,null,null,null,null,null,null,null,null,null,0,200,"True","True","True"]
[null,null,null,null,null,null,null,null,null,null,null,0,200,"True","True","True"]
[null,null,null,null,null,null,null,null,null,null,null,0,200,"True","True","True"]
[null,null,null,null,null,null,null,null,null,null,null,0,200,"True","True","True"]
[null,null,null,null,null,null,null,null,null,null,null,0,200,"True","True","True"]
[null,null,null,null,null,null,null,null,null,null,null,0,200,"True","True","True"]
[null,null,null,null,null,null,null,null,null,null,null,{"$f":"SUM(E1200:J1200)","v":0},200,"True","True","True"]
[null,null,null,null,null,null,null,null,null,null,null,0,200,"True","True","True"]
[null,null,null,null,null,null,null,null,null,null,null,0,200,"True","True","True"]
[null,null,null,null,null,null,null,null,null,null,null,0,200,"True","True","True"]
[null,null,null,null,null,null,null,null,null,null,null,0,200,"True","True","True"]
[null,null,null,null,null,null,null,null,null,null,null,0,200,"True","True","True"]
[null,null,null,null,null,null,null,null,null,null,null,0,200,"True","True","True"]
[null,null,null,null,null,null,null,null,null,null,null,0,200,"True","True","True"]
[null,null,null,null,null,null,null,null,null,null,null,0,200,"True","True","True"]
[null,null,null,null,null,null,null,null,null,null,null,0,200,"True","True","True"]
[null,null,null,null,null,null,null,null,null,null,null,0,200,"True","True","True"]
[null,null,null,null,null,null,null,null,null,null,null,0,200,"True","True","True"]
[null,null,null,null,null,null,null,null,null,null,null,0,200,"True","True","True"]
[null,null,null,null,null,null,null,null,null,null,null,0,200,"True","True","True"]
[null,null,null,null,null,null,null,null,null,null,null,0,200,"True","True","True"]
[null,null,null,null,null,null,null,null,null,null,null,0,200,"True","True","True"]
[null,null,null,null,null,null,null,null,null,null,null,0,200,"True","True","True"]
[null,null,null,null,null,null,null,null,null,null,null,0,200,"True","True","True"]
[null,null,null,null,null,null,null,null,null,null,null,0,200,"True","True","True"]
[null,null,null,null,null,null,null,null,null,null,null,0,200,"True","True","True"]
[null,null,null,null,null,null,null,null,null,null,null,0,200,"True","True","True"]
[null,null,null,null,null,null,null,null,null,null,null,0,200,{"$f":"IF(COUNTIF(C:C,C1171)>1,\"False\",\"True\")","v":"True"},"True","True"]
[null,null,null,null,null,null,null,null,null,null,null,0,200,"True",{"$f":"IF(L1172>200,\"False\",\"True\")","v":"True"},{"$f":"IF(AND(L1172=0,C1172=\"\"),\"True\",IF(AND(L1172<>0,C1172=\"\"),\"False\",\"True\"))","v":"True"}]
[null,null,null,null,null,null,null,null,null,null,null,0,{"$f":"200-L1173","v":200},"True","True","True"]
[null,null,null,null,null,null,null,null,null,null,null,0,200,"True","True","True"]
[null,null,null,null,null,null,null,null,null,null,null,0,200,"True","True","True"]
[null,null,null,null,null,null,null,null,null,null,null,0,200,"True","True","True"]
[null,null,null,null,null,null,null,null,null,null,null,0,200,"True","True","True"]
[null,null,null,null,null,null,null,null,null,null,null,0,200,"True","True","True"]
[null,null,null,null,null,null,null,null,null,null,null,0,200,"True","True","True"]
[null,null,null,null,null,null,null,null,null,null,null,0,200,"True","True","True"]
[null,null,null,null,null,null,null,null,null,null,null,0,200,"True","True","True"]
[null,null,null,null,null,null,null,null,null,null,null,0,200,"True","True","True"]
[null,null,null,null,null,null,null,null,null,null,null,0,200,"True","True","True"]
[null,null,null,null,null,null,null,null,null,null,null,0,200,"True","True","True"]
[null,null,null,null,null,null,null,null,null,null,null,0,200,"True","True","True"]
[null,null,null,null,null,null,null,null,null,null,null,0,200,"True","True","True"]
[null,null,null,null,null,null,null,null,null,null,null,0,200,"True","True","True"]
[null,null,null,null,null,null,null,null,null,null,null,{"$f":"SUM(E1188:J1188)","v":0},200,"True","True","True"]
[null,null,null,null,null,null,null,null,null,null,null,0,200,"True","True","True"]
[null,null,null,null,null,null,null,null,null,null,null,0,200,"True","True","True"]
[null,null,null,null,null,null,null,null,null,null,null,0,200,"True","True","True"]
[null,null,null,null,null,null,null,null,null,null,null,0,200,"True","True","True"]
[null,null,null,null,null,null,null,null,null,null,null,0,200,"True","True","True"]
[null,null,null,null,null,null,null,null,null,null,null,0,200,"True","True","True"]
[null,null,null,null,null,null,null,null,null,null,null,0,200,"True","True","True"]
[null,null,null,null,null,null,null,null,null,null,null,0,200,"True","True","True"]
[null,null,null,null,null,null,null,null,null,null,null,0,200,"True","True","True"]
[null,null,null,null,null,null,null,null,null,null,null,0,200,"True","True","True"]
[null,null,null,null,null,null,null,null,null,null,null,0,200,"True","True","True"]
[null,null,null,null,null,null,null,null,null,null,null,0,200,"True","True","True"]
[null,null,null,null,null,null,null,null,null,null,null,0,200,"True","True","True"]
[null,null,null,null,null,null,null,null,null,null,null,0,200,"True","True","True"]
[null,null,null,null,null,null,null,null,null,null,null,0,200,"True","True","True"]
[null,null,null,null,null,null,null,null,null,null,null,0,200,"True","True","True"]
[null,null,null,null,null,null,null,null,null,null,null,0,200,"True","True","True"]
[null,null,null,null,null,null,null,null,null,null,null,0,200,"True","True","True"]
[null,null,null,null,null,null,null,null,null,null,null,0,200,"True","True","True"]
[null,null,null,null,null,null,null,null,null,null,null,0,200,"True","True","True"]
[null,null,null,null,null,null,null,null,null,null,null,0,200,"True","True","True"]
[null,null,null,null,null,null,null,null,null,null,null,0,200,"True","True","True"]
[null,null,null,null,null,null,null,null,null,null,null,0,200,"True","True","True"]
[null,null,null,null,null,null,null,null,null,null,null,0,200,"True","True","True"]
[null,null,null,null,null,null,null,null,null,null,null,0,200,"True","True","True"]
[null,null,null,null,null,null,null,null,null,null,null,0,200,"True","True","True"]
[null,null,null,null,null,null,null,null,null,null,null,0,200,"True","True","True"]
[null,null,null,null,null,null,null,null,null,null,null,0,200,"True","True","True"]
[null,null,null,null,null,null,null,null,null,null,null,0,200,"True","True","True"]
[null,null,null,null,null,null,null,null,null,null,null,0,200,"True","True","True"]
[null,null,null,null,null,null,null,null,null,null,null,0,200,"True","True","True"]
[null,null,null,null,null,null,null,null,null,null,null,0,200,"True","True","True"]
[null,null,null,null,null,null,null,null,null,null,null,0,200,"True","True","True"]
[null,null,null,null,null,null,null,null,null,null,null,0,200,"True","True","True"]
[null,null,null,null,null,null,null,null,null,null,null,0,200,"True","True","True"]
[null,null,null,null,null,null,null,null,null,null,null,0,200,"True","True","True"]
[null,null,null,null,null,null,null,null,null,null,null,0,200,"True","True","True"]
[null,null,null,null,null,null,null,null,null,null,null,0,200,"True","True","True"]
[null,null,null,null,null,null,null,null,null,null,null,0,200,"True","True","True"]
[null,null,null,null,null,null,null,null,null,null,null,0,200,"True","True","True"]
[null,null,null,null,null,null,null,null,null,null,null,0,200,"True","True","True"]
[null,null,null,null,null,null,null,null,null,null,null,0,200,"True","True","True"]
[null,null,null,null,null,null,null,null,null,null,null,0,200,"True","True","True"]
[null,null,null,null,null,null,null,null,null,null,null,0,200,"True","True","True"]
[null,null,null,null,null,null,null,null,null,null,null,0,200,"True","True","True"]
[null,null,null,null,null,null,null,null,null,null,null,0,200,"True","True","True"]
[null,null,null,null,null,null,null,null,null,null,null,0,200,{"$f":"IF(COUNTIF(C:C,C1235)>1,\"False\",\"True\")","v":"True"},"True","True"]
[null,null,null,null,null,null,null,null,null,null,null,0,200,"True",{"$f":"IF(L1236>200,\"False\",\"True\")","v":"True"},{"$f":"IF(AND(L1236=0,C1236=\"\"),\"True\",IF(AND(L1236<>0,C1236=\"\"),\"False\",\"True\"))","v":"True"}]
[null,null,null,null,null,null,null,null,null,null,null,0,{"$f":"200-L1237","v":200},"True","True","True"]
[null,null,null,null,null,null,null,null,null,null,null,0,200,"True","True","True"]
[null,null,null,null,null,null,null,null,null,null,null,0,200,"True","True","True"]
[null,null,null,null,null,null,null,null,null,null,null,0,200,"True","True","True"]
[null,null,null,null,null,null,null,null,null,null,null,0,200,"True","True","True"]
[null,null,null,null,null,null,null,null,null,null,null,0,200,"True","True","True"]
[null,null,null,null,null,null,null,null,null,null,null,0,200,"True","True","True"]
[null,null,null,null,null,null,null,null,null,null,null,0,200,"True","True","True"]
[null,null,null,null,null,null,null,null,null,null,null,0,200,"True","True","True"]
[null,null,null,null,null,null,null,null,null,null,null,0,200,"True","True","True"]
[null,null,null,null,null,null,null,null,null,null,null,0,200,"True","True","True"]
[null,null,null,null,null,null,null,null,null,null,null,0,200,"True","True","True"]
[null,null,null,null,null,null,null,null,null,null,null,0,200,"True","True","True"]
[null,null,null,null,null,null,null,null,null,null,null,0,200,"True","True","True"]
[null,null,null,null,null,null,null,null,null,null,null,0,200,"True","True","True"]
[null,null,null,null,null,null,null,null,null,null,null,{"$f":"SUM(E1252:J1252)","v":0},200,"True","True","True"]
[null,null,null,null,null,null,null,null,null,null,null,0,200,"True","True","True"]
[null,null,null,null,null,null,null,null,null,null,null,0,200,"True","True","True"]
[null,null,null,null,null,null,null,null,null,null,null,0,200,"True","True","True"]
[null,null,null,null,null,null,null,null,null,null,null,0,200,"True","True","True"]
[null,null,null,null,null,null,null,null,null,null,null,0,200,"True","True","True"]
[null,null,null,null,null,null,null,null,null,null,null,0,200,"True","True","True"]
[null,null,null,null,null,null,null,null,null,null,null,0,200,"True","True","True"]
[null,null,null,null,null,null,null,null,null,null,null,0,200,"True","True","True"]
[null,null,null,null,null,null,null,null,null,null,null,0,200,"True","True","True"]
[null,null,null,null,null,null,null,null,null,null,null,0,200,"True","True","True"]
[null,null,null,null,null,null,null,null,null,null,null,0,200,"True","True","True"]
[null,null,null,null,null,null,null,null,null,null,null,0,200,"True","True","True"]
[null,null,null,null,null,null,null,null,null,null,null,0,200,"True","True","True"]
[null,null,null,null,null,null,null,null,null,null,null,0,200,"True","True","True"]
[null,null,null,null,null,null,null,null,null,null,null,0,200,"True","True","True"]
[null,null,null,null,null,null,null,null,null,null,null,0,200,"True","True","True"]
[null,null,null,null,null,null,null,null,null,null,null,0,200,"True","True","True"]
[null,null,null,null,null,null,null,null,null,null,null,0,200,"True","True","True"]
[null,null,null,null,null,null,null,null,null,null,null,0,200,"True","True","True"]
[null,null,null,null,null,null,null,null,null,null,null,0,200,"True","True","True"]
[null,null,null,null,null,null,null,null,null,null,null,0,200,"True","True","True"]
[null,null,null,null,null,null,null,null,null,null,null,0,200,"True","True","True"]
[null,null,null,null,null,null,null,null,null,null,null,0,200,"True","True","True"]
[null,null,null,null,null,null,null,null,null,null,null,0,200,"True","True","True"]
[null,null,null,null,null,null,null,null,null,null,null,0,200,"True","True","True"]
[null,null,null,null,null,null,null,null,null,null,null,0,200,"True","True","True"]
[null,null,null,null,null,null,null,null,null,null,null,0,200,"True","True","True"]
[null,null,null,null,null,null,null,null,null,null,null,0,200,"True","True","True"]
[null,null,null,null,null,null,null,null,null,null,null,0,200,"True","True","True"]
[null,null,null,null,null,null,null,null,null,null,null,0,200,"True","True","True"]
[null,null,null,null,null,null,null,null,null,null,null,0,200,"True","True","True"]
[null,null,null,null,null,null,null,null,null,null,null,0,200,"True","True","True"]
[null,null,null,null,null,null,null,null,null,null,null,0,200,"True","True","True"]
[null,null,null,null,null,null,null,null,null,null,null,0,200,"True","True","True"]
[null,null,null,null,null,null,null,null,null,null,null,0,200,"True","True","True"]
[null,null,null,null,null,null,null,null,null,null,null,0,200,"True","True","True"]
[null,null,null,null,null,null,null,null,null,null,null,0,200,"True","True","True"]
[null,null,null,null,null,null,null,null,null,null,null,0,200,"True","True","True"]
[null,null,null,null,null,null,null,null,null,null,null,0,200,"True","True","True"]
[null,null,null,null,null,null,null,null,null,null,null,0,200,"True","True","True"]
[null,null,null,null,null,null,null,null,null,null,null,0,200,"True","True","True"]
[null,null,null,null,null,null,null,null,null,null,null,0,200,"True","True","True"]
[null,null,null,null,null,null,null,null,null,null,null,0,200,"True","True","True"]
[null,null,null,null,null,null,null,null,null,null,null,0,200,"True","True","True"]
[null,null,null,null,null,null,null,null,null,null,null,0,200,"True","True","True"]
[null,null,null,null,null,null,null,null,null,null,null,0,200,"True","True","True"]
[null,null,null,null,null,null,null,null,null,null,null,0,200,{"$f":"IF(COUNTIF(C:C,C1299)>1,\"False\",\"True\")","v":"True"},"True","True"]
[null,null,null,null,null,null,null,null,null,null,null,0,200,"True",{"$f":"IF(L1300>200,\"False\",\"True\")","v":"True"},{"$f":"IF(AND(L1300=0,C1300=\"\"),\"True\",IF(AND(L1300<>0,C1300=\"\"),\"False\",\"True\"))","v":"True"}]
[null,null,null,null,null,null,null,null,null,null,null,0,{"$f":"200-L1301","v":200},"True","True","True"]
[null,null,null,null,null,null,null,null,null,null,null,0,200,"True","True","True"]
[null,null,null,null,null,null,null,null,null,null,null,0,200,"True","True","True"]
[null,null,null,null,null,null,null,null,null,null,null,0,200,"True","True","True"]
[null,null,null,null,null,null,null,null,null,null,null,0,200,"True","True","True"]
[null,null,null,null,null,null,null,null,null,null,null,0,200,"True","True","True"]
[null,null,null,null,null,null,null,null,null,null,null,0,200,"True","True","True"]
[null,null,null,null,null,null,null,null,null,null,null,0,200,"True","True","True"]
[null,null,null,null,null,null,null,null,null,null,null,0,200,"True","True","True"]
[null,null,null,null,null,null,null,null,null,null,null,0,200,"True","True","True"]
[null,null,null,null,null,null,null,null,null,null,null,0,200,"True","True","True"]
[null,null,null,null,null,null,null,null,null,null,null,0,200,"True","True","True"]
[null,null,null,null,null,null,null,null,null,null,null,0,200,"True","True","True"]
[null,null,null,null,null,null,null,null,null,null,null,0,200,"True","True","True"]
[null,null,null,null,null,null,null,null,null,null,null,0,200,"True","True","True"]
[null,null,null,null,null,null,null,null,null,null,null,{"$f":"SUM(E1316:J1316)","v":0},200,"True","True","True"]
[null,null,null,null,null,null,null,null,null,null,null,0,200,"True","True","True"]
[null,null,null,null,null,null,null,null,null,null,null,0,200,"True","True","True"]
[null,null,null,null,null,null,null,null,null,null,null,0,200,"True","True","True"]
[null,null,null,null,null,null,null,null,null,null,null,0,200,"True","True","True"]
[null,null,null,null,null,null,null,null,null,null,null,0,200,"True","True","True"]
[null,null,null,null,null,null,null,null,null,null,null,0,200,"True","True","True"]
[null,null,null,null,null,null,null,null,null,null,null,0,200,"True","True","True"]
[null,null,null,null,null,null,null,null,null,null,null,0,200,"True","True","True"]
[null,null,null,null,null,null,null,null,null,null,null,0,200,"True","True","True"]
[null,null,null,null,null,null,null,null,null,null,null,0,200,"True","True","True"]
[null,null,null,null,null,null,null,null,null,null,null,0,200,"True","True","True"]
[null,null,null,null,null,null,null,null,null,null,null,0,200,"True","True","True"]
[null,null,null,null,null,null,null,null,null,null,null,0,200,"True","True","True"]
[null,null,null,null,null,null,null,null,null,null,null,0,200,"True","True","True"]
[null,null,null,null,null,null,null,null,null,null,null,0,200,"True","True","True"]
[null,null,null,null,null,null,null,null,null,null,null,0,200,"True","True","True"]
[null,null,null,null,null,null,null,null,null,null,null,0,200,"True","True","True"]
[null,null,null,null,null,null,null,null,null,null,null,0,200,"True","True","True"]
[null,null,null,null,null,null,null,null,null,null,null,0,200,"True","True","True"]
[null,null,null,null,null,null,null,null,null,null,null,0,200,"True","True","True"]
[null,null,null,null,null,null,null,null,null,null,null,0,200,"True","True","True"]
[null,null,null,null,null,null,null,null,null,null,null,0,200,"True","True","True"]
[null,null,null,null,null,null,null,null,null,null,null,0,200,"True","True","True"]
[null,null,null,null,null,null,null,null,null,null,null,0,200,"True","True","True"]
[null,null,null,null,null,null,null,null,null,null,null,0,200,"True","True","True"]
[null,null,null,null,null,null,null,null,null,null,null,0,200,"True","True","True"]
[null,null,null,null,null,null,null,null,null,null,null,0,200,"True","True","True"]
[null,null,null,null,null,null,null,null,null,null,null,0,200,"True","True","True"]
[null,null,null,null,null,null,null,null,null,null,null,0,200,"True","True","True"]
[null,null,null,null,null,null,null,null,null,null,null,0,200,"True","True","True"]
[null,null,null,null,null,null,null,null,null,null,null,0,200,"True","True","True"]
[null,null,null,null,null,null,null,null,null,null,null,0,200,"True","True","True"]
[null,null,null,null,null,null,null,null,null,null,null,0,200,"True","True","True"]
[null,null,null,null,null,null,null,null,null,null,null,0,200,"True","True","True"]
[null,null,null,null,null,null,null,null,null,null,null,0,200,"True","True","True"]
[null,null,null,null,null,null,null,null,null,null,null,0,200,"True","True","True"]
[null,null,null,null,null,null,null,null,null,null,null,0,200,"True","True","True"]
[null,null,null,null,null,null,null,null,null,null,null,0,200,"True","True","True"]
[null,null,null,null,null,null,null,null,null,null,null,0,200,"True","True","True"]
[null,null,null,null,null,null,null,null,null,null,null,0,200,"True","True","True"]
[null,null,null,null,null,null,null,null,null,null,null,0,200,"True","True","True"]
[null,null,null,null,null,null,null,null,null,null,null,0,200,"True","True","True"]
[null,null,null,null,null,null,null,null,null,null,null,0,200,"True","True","True"]
[null,null,null,null,null,null,null,null,null,null,null,0,200,"True","True","True"]
[null,null,null,null,null,null,null,null,null,null,null,0,200,"True","True","True"]
[null,null,null,null,null,null,null,null,null,null,null,0,200,"True","True","True"]
[null,null,null,null,null,null,null,null,null,null,null,0,200,{"$f":"IF(COUNTIF(C:C,C1363)>1,\"False\",\"True\")","v":"True"},"True","True"]
[null,null,null,null,null,null,null,null,null,null,null,0,200,"True",{"$f":"IF(L1364>200,\"False\",\"True\")","v":"True"},{"$f":"IF(AND(L1364=0,C1364=\"\"),\"True\",IF(AND(L1364<>0,C1364=\"\"),\"False\",\"True\"))","v":"True"}]
[null,null,null,null,null,null,null,null,null,null,null,0,{"$f":"200-L1365","v":200},"True","True","True"]
[null,null,null,null,null,null,null,null,null,null,null,0,200,"True","True","True"]
[null,null,null,null,null,null,null,null,null,null,null,0,200,"True","True","True"]
[null,null,null,null,null,null,null,null,null,null,null,0,200,"True","True","True"]
[null,null,null,null,null,null,null,null,null,null,null,0,200,"True","True","True"]
[null,null,null,null,null,null,null,null,null,null,null,0,200,"True","True","True"]
[null,null,null,null,null,null,null,null,null,null,null,0,200,"True","True","True"]
[null,null,null,null,null,null,null,null,null,null,null,0,200,"True","True","True"]
[null,null,null,null,null,null,null,null,null,null,null,0,200,"True","True","True"]
[null,null,null,null,null,null,null,null,null,null,null,0,200,"True","True","True"]
[null,null,null,null,null,null,null,null,null,null,null,0,200,"True","True","True"]
[null,null,null,null,null,null,null,null,null,null,null,0,200,"True","True","True"]
[null,null,null,null,null,null,null,null,null,null,null,0,200,"True","True","True"]
[null,null,null,null,null,null,null,null,null,null,null,0,200,"True","True","True"]
[null,null,null,null,null,null,null,null,null,null,null,0,200,"True","True","True"]
[null,null,null,null,null,null,null,null,null,null,null,{"$f":"SUM(E1380:J1380)","v":0},200,"True","True","True"]
[null,null,null,null,null,null,null,null,null,null,null,0,200,"True","True","True"]
[null,null,null,null,null,null,null,null,null,null,null,0,200,"True","True","True"]
[null,null,null,null,null,null,null,null,null,null,null,0,200,"True","True","True"]
[null,null,null,null,null,null,null,null,null,null,null,0,200,"True","True","True"]
[null,null,null,null,null,null,null,null,null,null,null,0,200,"True","True","True"]
[null,null,null,null,null,null,null,null,null,null,null,0,200,"True","True","True"]
[null,null,null,null,null,null,null,null,null,null,null,0,200,"True","True","True"]
[null,null,null,null,null,null,null,null,null,null,null,0,200,"True","True","True"]
[null,null,null,null,null,null,null,null,null,null,null,0,200,"True","True","True"]
[null,null,null,null,null,null,null,null,null,null,null,0,200,"True","True","True"]
[null,null,null,null,null,null,null,null,null,null,null,0,200,"True","True","True"]
[null,null,null,null,null,null,null,null,null,null,null,0,200,"True","True","True"]
[null,null,null,null,null,null,null,null,null,null,null,0,200,"True","True","True"]
[null,null,null,null,null,null,null,null,null,null,null,0,200,"True","True","True"]
[null,null,null,null,null,null,null,null,null,null,null,0,200,"True","True","True"]
[null,null,null,null,null,null,null,null,null,null,null,0,200,"True","True","True"]
[null,null,null,null,null,null,null,null,null,null,null,0,200,"True","True","True"]
[null,null,null,null,null,null,null,null,null,null,null,0,200,"True","True","True"]
[null,null,null,null,null,null,null,null,null,null,null,0,200,"True","True","True"]
[null,null,null,null,null,null,null,null,null,null,null,0,200,"True","True","True"]
[null,null,null,null,null,null,null,null,null,null,null,0,200,"True","True","True"]
[null,null,null,null,null,null,null,null,null,null,null,0,200,"True","True","True"]
[null,null,null,null,null,null,null,null,null,null,null,0,200,"True","True","True"]
[null,null,null,null,null,null,null,null,null,null,null,0,200,"True","True","True"]
[null,null,null,null,null,null,null,null,null,null,null,0,200,"True","True","True"]
[null,null,null,null,null,null,null,null,null,null,null,0,200,"True","True","True"]
[null,null,null,null,null,null,null,null,null,null,null,0,200,"True","True","True"]
[null,null,null,null,null,null,null,null,null,null,null,0,200,"True","True","True"]
[null,null,null,null,null,null,null,null,null,null,null,0,200,"True","True","True"]
[null,null,null,null,null,null,null,null,null,null,null,0,200,"True","True","True"]
[null,null,null,null,null,null,null,null,null,null,null,0,200,"True","True","True"]
[null,null,null,null,null,null,null,null,null,null,null,0,200,"True","True","True"]
[null,null,null,null,null,null,null,null,null,null,null,0,200,"True","True","True"]
[null,null,null,null,null,null,null,null,null,null,null,0,200,"True","True","True"]
[null,null,null,null,null,null,null,null,null,null,null,0,200,"True","True","True"]
[null,null,null,null,null,null,null,null,null,null,null,0,200,"True","True","True"]
[null,null,null,null,null,null,null,null,null,null,null,0,200,"True","True","True"]
[null,null,null,null,null,null,null,null,null,null,null,0,200,"True","True","True"]
[null,null,null,null,null,null,null,null,null,null,null,0,200,"True","True","True"]
[null,null,null,null,null,null,null,null,null,null,null,0,200,"True","True","True"]
[null,null,null,null,null,null,null,null,null,null,null,0,200,"True","True","True"]
[null,null,null,null,null,null,null,null,null,null,null,0,200,"True","True","True"]
[null,null,null,null,null,null,null,null,null,null,null,0,200,"True","True","True"]
[null,null,null,null,null,null,null,null,null,null,null,0,200,"True","True","True"]
[null,null,null,null,null,null,null,null,null,null,null,0,200,"True","True","True"]
[null,null,null,null,null,null,null,null,null,null,null,0,200,"True","True","True"]
[null,null,null,null,null,null,null,null,null,null,null,0,200,{"$f":"IF(COUNTIF(C:C,C1427)>1,\"False\",\"True\")","v":"True"},"True","True"]
[null,null,null,null,null,null,null,null,null,null,null,0,200,"True",{"$f":"IF(L1428>200,\"False\",\"True\")","v":"True"},{"$f":"IF(AND(L1428=0,C1428=\"\"),\"True\",IF(AND(L1428<>0,C1428=\"\"),\"False\",\"True\"))","v":"True"}]
[null,null,null,null,null,null,null,null,null,null,null,0,{"$f":"200-L1429","v":200},"True","True","True"]
[null,null,null,null,null,null,null,null,null,null,null,0,200,"True","True","True"]
[null,null,null,null,null,null,null,null,null,null,null,0,200,"True","True","True"]
[null,null,null,null,null,null,null,null,null,null,null,0,200,"True","True","True"]
[null,null,null,null,null,null,null,null,null,null,null,0,200,"True","True","True"]
[null,null,null,null,null,null,null,null,null,null,null,0,200,"True","True","True"]
[null,null,null,null,null,null,null,null,null,null,null,0,200,"True","True","True"]
[null,null,null,null,null,null,null,null,null,null,null,0,200,"True","True","True"]
[null,null,null,null,null,null,null,null,null,null,null,0,200,"True","True","True"]
[null,null,null,null,null,null,null,null,null,null,null,0,200,"True","True","True"]
[null,null,null,null,null,null,null,null,null,null,null,0,200,"True","True","True"]
[null,null,null,null,null,null,null,null,null,null,null,0,200,"True","True","True"]
[null,null,null,null,null,null,null,null,null,null,null,0,200,"True","True","True"]
[null,null,null,null,null,null,null,null,null,null,null,0,200,"True","True","True"]
[null,null,null,null,null,null,null,null,null,null,null,0,200,"True","True","True"]
[null,null,null,null,null,null,null,null,null,null,null,{"$f":"SUM(E1444:J1444)","v":0},200,"True","True","True"]
[null,null,null,null,null,null,null,null,null,null,null,0,200,"True","True","True"]
[null,null,null,null,null,null,null,null,null,null,null,0,200,"True","True","True"]
[null,null,null,null,null,null,null,null,null,null,null,0,200,"True","True","True"]
[null,null,null,null,null,null,null,null,null,null,null,0,200,"True","True","True"]
[null,null,null,null,null,null,null,null,null,null,null,0,200,"True","True","True"]
[null,null,null,null,null,null,null,null,null,null,null,0,200,"True","True","True"]
[null,null,null,null,null,null,null,null,null,null,null,0,200,"True","True","True"]
[null,null,null,null,null,null,null,null,null,null,null,0,200,"True","True","True"]
[null,null,null,null,null,null,null,null,null,null,null,0,200,"True","True","True"]
[null,null,null,null,null,null,null,null,null,null,null,0,200,"True","True","True"]
[null,null,null,null,null,null,null,null,null,null,null,0,200,"True","True","True"]
[null,null,null,null,null,null,null,null,null,null,null,0,200,"True","True","True"]
[null,null,null,null,null,null,null,null,null,null,null,0,200,"True","True","True"]
[null,null,null,null,null,null,null,null,null,null,null,0,200,"True","True","True"]
[null,null,null,null,null,null,null,null,null,null,null,0,200,"True","True","True"]
[null,null,null,null,null,null,null,null,null,null,null,0,200,"True","True","True"]
[null,null,null,null,null,null,null,null,null,null,null,0,200,"True","True","True"]
[null,null,null,null,null,null,null,null,null,null,null,0,200,"True","True","True"]
[null,null,null,null,null,null,null,null,null,null,null,0,200,"True","True","True"]
[null,null,null,null,null,null,null,null,null,null,null,0,200,"True","True","True"]
[null,null,null,null,null,null,null,null,null,null,null,0,200,"True","True","True"]
[null,null,null,null,null,null,null,null,null,null,null,0,200,"True","True","True"]
[null,null,null,null,null,null,null,null,null,null,null,0,200,"True","True","True"]
[null,null,null,null,null,null,null,null,null,null,null,0,200,"True","True","True"]
[null,null,null,null,null,null,null,null,null,null,null,0,200,"True","True","True"]
[null,null,null,null,null,null,null,null,null,null,null,0,200,"True","True","True"]
[null,null,null,null,null,null,null,null,null,null,null,0,200,"True","True","True"]
[null,null,null,null,null,null,null,null,null,null,null,0,200,"True","True","True"]
[null,null,null,null,null,null,null,null,null,null,null,0,200,"True","True","True"]
[null,null,null,null,null,null,null,null,null,null,null,0,200,"True","True","True"]
[null,null,null,null,null,null,null,null,null,null,null,0,200,"True","True","True"]
[null,null,null,null,null,null,null,null,null,null,null,0,200,"True","True","True"]
[null,null,null,null,null,null,null,null,null,null,null,0,200,"True","True","True"]
[null,null,null,null,null,null,null,null,null,null,null,0,200,"True","True","True"]
[null,null,null,null,null,null,null,null,null,null,null,0,200,"True","True","True"]
[null,null,null,null,null,null,null,null,null,null,null,0,200,"True","True","True"]
[null,null,null,null,null,null,null,null,null,null,null,0,200,"True","True","True"]
[null,null,null,null,null,null,null,null,null,null,null,0,200,"True","True","True"]
[null,null,null,null,null,null,null,null,null,null,null,{"$f":"SUM(E1483:J1483)","v":0},200,"True","True","True"]
[null,null,null,null,null,null,null,null,null,null,null,{"$f":"SUM(E1484:J1484)","v":0},200,"True","True","True"]
[null,null,null,null,null,null,null,null,null,null,null,0,200,"True","True","True"]
[null,null,null,null,null,null,null,null,null,null,null,0,200,"True","True","True"]
[null,null,null,null,null,null,null,null,null,null,null,0,200,"True","True","True"]
[null,null,null,null,null,null,null,null,null,null,null,0,200,"True","True","True"]
[null,null,null,null,null,null,null,null,null,null,null,0,200,"True","True","True"]
[null,null,null,null,null,null,null,null,null,null,null,0,200,"True","True","True"]
[null,null,null,null,null,null,null,null,null,null,null,0,200,{"$f":"IF(COUNTIF(C:C,C1491)>1,\"False\",\"True\")","v":"True"},"True","True"]
[null,null,null,null,null,null,null,null,null,null,null,0,200,"True",{"$f":"IF(L1492>200,\"False\",\"True\")","v":"True"},{"$f":"IF(AND(L1492=0,C1492=\"\"),\"True\",IF(AND(L1492<>0,C1492=\"\"),\"False\",\"True\"))","v":"True"}]
[null,null,null,null,null,null,null,null,null,null,null,0,{"$f":"200-L1493","v":200},"True","True","True"]
[null,null,null,null,null,null,null,null,null,null,null,0,200,"True","True","True"]
[null,null,null,null,null,null,null,null,null,null,null,0,200,"True","True","True"]
[null,null,null,null,null,null,null,null,null,null,null,0,200,"True","True","True"]
[null,null,null,null,null,null,null,null,null,null,null,0,200,"True","True","True"]
[null,null,null,null,null,null,null,null,null,null,null,0,200,"True","True","True"]
[null,null,null,null,null,null,null,null,null,null,null,0,200,"True","True","True"]
[null,null,null,null,null,null,null,null,null,null,null,{"$f":"SUM(E2000:J2000)","v":0},200,"True","True","True"]
[null,null,null,null,null,null,null,null,null,null,null,0,200,"True","True","True"]
[null,null,null,null,null,null,null,null,null,null,null,0,200,"True","True","True"]
[null,null,null,null,null,null,null,null,null,null,null,0,200,"True","True","True"]
[null,null,null,null,null,null,null,null,null,null,null,0,200,"True","True","True"]
[null,null,null,null,null,null,null,null,null,null,null,0,200,"True","True","True"]
[null,null,null,null,null,null,null,null,null,null,null,0,200,"True","True","True"]
[null,null,null,null,null,null,null,null,null,null,null,0,200,"True","True","True"]
[null,null,null,null,null,null,null,null,null,null,null,0,200,"True","True","True"]
[null,null,null,null,null,null,null,null,null,null,null,0,200,"True","True","True"]
[null,null,null,null,null,null,null,null,null,null,null,0,200,"True","True","True"]
[null,null,null,null,null,null,null,null,null,null,null,0,200,"True","True","True"]
[null,null,null,null,null,null,null,null,null,null,null,0,200,"True","True","True"]
[null,null,null,null,null,null,null,null,null,null,null,0,200,"True","True","True"]
[null,null,null,null,null,null,null,null,null,null,null,0,200,"True","True","True"]
[null,null,null,null,null,null,null,null,null,null,null,0,200,"True","True","True"]
[null,null,null,null,null,null,null,null,null,null,null,0,200,"True","True","True"]
[null,null,null,null,null,null,null,null,null,null,null,0,200,"True","True","True"]
[null,null,null,null,null,null,null,null,null,null,null,0,200,"True","True","True"]
[null,null,null,null,null,null,null,null,null,null,null,0,200,"True","True","True"]
[null,null,null,null,null,null,null,null,null,null,null,0,200,"True","True","True"]
[null,null,null,null,null,null,null,null,null,null,null,0,200,"True","True","True"]
[null,null,null,null,null,null,null,null,null,null,null,0,200,"True","True","True"]
[null,null,null,null,null,null,null,null,null,null,null,0,200,"True","True","True"]
[null,null,null,null,null,null,null,null,null,null,null,0,200,"True","True","True"]
[null,null,null,null,null,null,null,null,null,null,null,0,200,"True","True","True"]
[null,null,null,null,null,null,null,null,null,null,null,0,200,"True","True","True"]
[null,null,null,null,null,null,null,null,null,null,null,0,200,"True","True","True"]
[null,null,null,null,null,null,null,null,null,null,null,0,200,"True","True","True"]
[null,null,null,null,null,null,null,null,null,null,null,0,200,"True","True","True"]
[null,null,null,null,null,null,null,null,null,null,null,0,200,"True","True","True"]
[null,null,null,null,null,null,null,null,null,null,null,0,200,"True","True","True"]
[null,null,null,null,null,null,null,null,null,null,null,0,200,"True","True","True"]
[null,null,null,null,null,null,null,null,null,null,null,0,200,"True","True","True"]
[null,null,null,null,null,null,null,null,null,null,null,0,200,"True","True","True"]
[null,null,null,null,null,null,null,null,null,null,null,0,200,"True","True","True"]
[null,null,null,null,null,null,null,null,null,null,null,0,200,"True","True","True"]
[null,null,null,null,null,null,null,null,null,null,null,0,200,"True","True","True"]
[null,null,null,null,null,null,null,null,null,null,null,0,200,"True","True","True"]
[null,null,null,null,null,null,null,null,null,null,null,0,200,"True","True","True"]
[null,null,null,null,null,null,null,null,null,null,null,0,200,"True","True","True"]
[null,null,null,null,null,null,null,null,null,null,null,0,200,"True","True","True"]
[null,null,null,null,null,null,null,null,null,null,null,0,200,"True","True","True"]
[null,null,null,null,null,null,null,null,null,null,null,0,200,"True","True","True"]
[null,null,null,null,null,null,null,null,null,null,null,0,200,"True","True","True"]
[null,null,null,null,null,null,null,null,null,null,null,0,200,"True","True","True"]
[null,null,null,null,null,null,null,null,null,null,null,0,200,"True","True","True"]
[null,null,null,null,null,null,null,null,null,null,null,0,200,"True","True","True"]
[null,null,null,null,null,null,null,null,null,null,null,{"$f":"SUM(E1548:J1548)","v":0},200,"True","True","True"]
[null,null,null,null,null,null,null,null,null,null,null,0,200,"True","True","True"]
[null,null,null,null,null,null,null,null,null,null,null,0,200,"True","True","True"]
[null,null,null,null,null,null,null,null,null,null,null,0,200,"True","True","True"]
[null,null,null,null,null,null,null,null,null,null,null,0,200,"True","True","True"]
[null,null,null,null,null,null,null,null,null,null,null,0,200,"True","True","True"]
[null,null,null,null,null,null,null,null,null,null,null,0,200,"True","True","True"]
[null,null,null,null,null,null,null,null,null,null,null,0,200,{"$f":"IF(COUNTIF(C:C,C1555)>1,\"False\",\"True\")","v":"True"},"True","True"]
[null,null,null,null,null,null,null,null,null,null,null,0,200,"True",{"$f":"IF(L1556>200,\"False\",\"True\")","v":"True"},{"$f":"IF(AND(L1556=0,C1556=\"\"),\"True\",IF(AND(L1556<>0,C1556=\"\"),\"False\",\"True\"))","v":"True"}]
[null,null,null,null,null,null,null,null,null,null,null,0,{"$f":"200-L1557","v":200},"True","True","True"]
[null,null,null,null,null,null,null,null,null,null,null,0,200,"True","True","True"]
[null,null,null,null,null,null,null,null,null,null,null,0,200,"True","True","True"]
[null,null,null,null,null,null,null,null,null,null,null,0,200,"True","True","True"]
[null,null,null,null,null,null,null,null,null,null,null,0,200,"True","True","True"]
[null,null,null,null,null,null,null,null,null,null,null,0,200,"True","True","True"]
[null,null,null,null,null,null,null,null,null,null,null,0,200,"True","True","True"]
[null,null,null,null,null,null,null,null,null,null,null,0,200,"True","True","True"]
[null,null,null,null,null,null,null,null,null,null,null,0,200,"True","True","True"]
[null,null,null,null,null,null,null,null,null,null,null,0,200,"True","True","True"]
[null,null,null,null,null,null,null,null,null,null,null,0,200,"True","True","True"]
[null,null,null,null,null,null,null,null,null,null,null,0,200,"True","True","True"]
[null,null,null,null,null,null,null,null,null,null,null,0,200,"True","True","True"]
[null,null,null,null,null,null,null,null,null,null,null,0,200,"True","True","True"]
[null,null,null,null,null,null,null,null,null,null,null,0,200,"True","True","True"]
[null,null,null,null,null,null,null,null,null,null,null,0,200,"True","True","True"]
[null,null,null,null,null,null,null,null,null,null,null,0,200,"True","True","True"]
[null,null,null,null,null,null,null,null,null,null,null,0,200,"True","True","True"]
[null,null,null,null,null,null,null,null,null,null,null,0,200,"True","True","True"]
[null,null,null,null,null,null,null,null,null,null,null,0,200,"True","True","True"]
[null,null,null,null,null,null,null,null,null,null,null,0,200,"True","True","True"]
[null,null,null,null,null,null,null,null,null,null,null,0,200,"True","True","True"]
[null,null,null,null,null,null,null,null,null,null,null,0,200,"True","True","True"]
[null,null,null,null,null,null,null,null,null,null,null,0,200,"True","True","True"]
[null,null,null,null,null,null,null,null,null,null,null,0,200,"True","True","True"]
[null,null,null,null,null,null,null,null,null,null,null,0,200,"True","True","True"]
[null,null,null,null,null,null,null,null,null,null,null,0,200,"True","True","True"]
[null,null,null,null,null,null,null,null,null,null,null,0,200,"True","True","True"]
[null,null,null,null,null,null,null,null,null,null,null,0,200,"True","True","True"]
[null,null,null,null,null,null,null,null,null,null,null,0,200,"True","True","True"]
[null,null,null,null,null,null,null,null,null,null,null,0,200,"True","True","True"]
[null,null,null,null,null,null,null,null,null,null,null,0,200,"True","True","True"]
[null,null,null,null,null,null,null,null,null,null,null,0,200,"True","True","True"]
[null,null,null,null,null,null,null,null,null,null,null,0,200,"True","True","True"]
[null,null,null,null,null,null,null,null,null,null,null,0,200,"True","True","True"]
[null,null,null,null,null,null,null,null,null,null,null,0,200,"True","True","True"]
[null,null,null,null,null,null,null,null,null,null,null,0,200,"True","True","True"]
[null,null,null,null,null,null,null,null,null,null,null,0,200,"True","True","True"]
[null,null,null,null,null,null,null,null,null,null,null,0,200,"True","True","True"]
[null,null,null,null,null,null,null,null,null,null,null,0,200,"True","True","True"]
[null,null,null,null,null,null,null,null,null,null,null,0,200,"True","True","True"]
[null,null,null,null,null,null,null,null,null,null,null,0,200,"True","True","True"]
[null,null,null,null,null,null,null,null,null,null,null,0,200,"True","True","True"]
[null,null,null,null,null,null,null,null,null,null,null,0,200,"True","True","True"]
[null,null,null,null,null,null,null,null,null,null,null,0,200,"True","True","True"]
[null,null,null,null,null,null,null,null,null,null,null,0,200,"True","True","True"]
[null,null,null,null,null,null,null,null,null,null,null,0,200,"True","True","True"]
[null,null,null,null,null,null,null,null,null,null,null,0,200,"True","True","True"]
[null,null,null,null,null,null,null,null,null,null,null,0,200,"True","True","True"]
[null,null,null,null,null,null,null,null,null,null,null,0,200,"True","True","True"]
[null,null,null,null,null,null,null,null,null,null,null,0,200,"True","True","True"]
[null,null,null,null,null,null,null,null,null,null,null,0,200,"True","True","True"]
[null,null,null,null,null,null,null,null,null,null,null,0,200,"True","True","True"]
[null,null,null,null,null,null,null,null,null,null,null,0,200,"True","True","True"]
[null,null,null,null,null,null,null,null,null,null,null,0,200,"True","True","True"]
[null,null,null,null,null,null,null,null,null,null,null,{"$f":"SUM(E1612:J1612)","v":0},200,"True","True","True"]
[null,null,null,null,null,null,null,null,null,null,null,0,200,"True","True","True"]
[null,null,null,null,null,null,null,null,null,null,null,0,200,"True","True","True"]
[null,null,null,null,null,null,null,null,null,null,null,0,200,"True","True","True"]
[null,null,null,null,null,null,null,null,null,null,null,0,200,"True","True","True"]
[null,null,null,null,null,null,null,null,null,null,null,0,200,"True","True","True"]
[null,null,null,null,null,null,null,null,null,null,null,0,200,"True","True","True"]
[null,null,null,null,null,null,null,null,null,null,null,0,200,{"$f":"IF(COUNTIF(C:C,C1619)>1,\"False\",\"True\")","v":"True"},"True","True"]
[null,null,null,null,null,null,null,null,null,null,null,0,200,"True",{"$f":"IF(L1620>200,\"False\",\"True\")","v":"True"},{"$f":"IF(AND(L1620=0,C1620=\"\"),\"True\",IF(AND(L1620<>0,C1620=\"\"),\"False\",\"True\"))","v":"True"}]
[null,null,null,null,null,null,null,null,null,null,null,0,{"$f":"200-L1621","v":200},"True","True","True"]
[null,null,null,null,null,null,null,null,null,null,null,0,200,"True","True","True"]
[null,null,null,null,null,null,null,null,null,null,null,0,200,"True","True","True"]
[null,null,null,null,null,null,null,null,null,null,null,0,200,"True","True","True"]
[null,null,null,null,null,null,null,null,null,null,null,0,200,"True","True","True"]
[null,null,null,null,null,null,null,null,null,null,null,0,200,"True","True","True"]
[null,null,null,null,null,null,null,null,null,null,null,0,200,"True","True","True"]
[null,null,null,null,null,null,null,null,null,null,null,0,200,"True","True","True"]
[null,null,null,null,null,null,null,null,null,null,null,0,200,"True","True","True"]
[null,null,null,null,null,null,null,null,null,null,null,0,200,"True","True","True"]
[null,null,null,null,null,null,null,null,null,null,null,0,200,"True","True","True"]
[null,null,null,null,null,null,null,null,null,null,null,0,200,"True","True","True"]
[null,null,null,null,null,null,null,null,null,null,null,0,200,"True","True","True"]
[null,null,null,null,null,null,null,null,null,null,null,0,200,"True","True","True"]
[null,null,null,null,null,null,null,null,null,null,null,0,200,"True","True","True"]
[null,null,null,null,null,null,null,null,null,null,null,0,200,"True","True","True"]
[null,null,null,null,null,null,null,null,null,null,null,0,200,"True","True","True"]
[null,null,null,null,null,null,null,null,null,null,null,0,200,"True","True","True"]
[null,null,null,null,null,null,null,null,null,null,null,0,200,"True","True","True"]
[null,null,null,null,null,null,null,null,null,null,null,0,200,"True","True","True"]
[null,null,null,null,null,null,null,null,null,null,null,0,200,"True","True","True"]
[null,null,null,null,null,null,null,null,null,null,null,0,200,"True","True","True"]
[null,null,null,null,null,null,null,null,null,null,null,0,200,"True","True","True"]
[null,null,null,null,null,null,null,null,null,null,null,0,200,"True","True","True"]
[null,null,null,null,null,null,null,null,null,null,null,0,200,"True","True","True"]
[null,null,null,null,null,null,null,null,null,null,null,0,200,"True","True","True"]
[null,null,null,null,null,null,null,null,null,null,null,0,200,"True","True","True"]
[null,null,null,null,null,null,null,null,null,null,null,0,200,"True","True","True"]
[null,null,null,null,null,null,null,null,null,null,null,0,200,"True","True","True"]
[null,null,null,null,null,null,null,null,null,null,null,0,200,"True","True","True"]
[null,null,null,null,null,null,null,null,null,null,null,0,200,"True","True","True"]
[null,null,null,null,null,null,null,null,null,null,null,0,200,"True","True","True"]
[null,null,null,null,null,null,null,null,null,null,null,0,200,"True","True","True"]
[null,null,null,null,null,null,null,null,null,null,null,0,200,"True","True","True"]
[null,null,null,null,null,null,null,null,null,null,null,0,200,"True","True","True"]
[null,null,null,null,null,null,null,null,null,null,null,0,200,"True","True","True"]
[null,null,null,null,null,null,null,null,null,null,null,0,200,"True","True","True"]
[null,null,null,null,null,null,null,null,null,null,null,0,200,"True","True","True"]
[null,null,null,null,null,null,null,null,null,null,null,0,200,"True","True","True"]
[null,null,null,null,null,null,null,null,null,null,null,0,200,"True","True","True"]
[null,null,null,null,null,null,null,null,null,null,null,0,200,"True","True","True"]
[null,null,null,null,null,null,null,null,null,null,null,0,200,"True","True","True"]
[null,null,null,null,null,null,null,null,null,null,null,0,200,"True","True","True"]
[null,null,null,null,null,null,null,null,null,null,null,0,200,"True","True","True"]
[null,null,null,null,null,null,null,null,null,null,null,0,200,"True","True","True"]
[null,null,null,null,null,null,null,null,null,null,null,0,200,"True","True","True"]
[null,null,null,null,null,null,null,null,null,null,null,0,200,"True","True","True"]
[null,null,null,null,null,null,null,null,null,null,null,0,200,"True","True","True"]
[null,null,null,null,null,null,null,null,null,null,null,0,200,"True","True","True"]
[null,null,null,null,null,null,null,null,null,null,null,0,200,"True","True","True"]
[null,null,null,null,null,null,null,null,null,null,null,0,200,"True","True","True"]
[null,null,null,null,null,null,null,null,null,null,null,0,200,"True","True","True"]
[null,null,null,null,null,null,null,null,null,null,null,0,200,"True","True","True"]
[null,null,null,null,null,null,null,null,null,null,null,0,200,"True","True","True"]
[null,null,null,null,null,null,null,null,null,null,null,0,200,"True","True","True"]
[null,null,null,null,null,null,null,null,null,null,null,{"$f":"SUM(E1676:J1676)","v":0},200,"True","True","True"]
[null,null,null,null,null,null,null,null,null,null,null,0,200,"True","True","True"]
[null,null,null,null,null,null,null,null,null,null,null,0,200,"True","True","True"]
[null,null,null,null,null,null,null,null,null,null,null,0,200,"True","True","True"]
[null,null,null,null,null,null,null,null,null,null,null,0,200,"True","True","True"]
[null,null,null,null,null,null,null,null,null,null,null,0,200,"True","True","True"]
[null,null,null,null,null,null,null,null,null,null,null,0,200,"True","True","True"]
[null,null,null,null,null,null,null,null,null,null,null,0,200,{"$f":"IF(COUNTIF(C:C,C1683)>1,\"False\",\"True\")","v":"True"},"True","True"]
[null,null,null,null,null,null,null,null,null,null,null,0,200,"True",{"$f":"IF(L1684>200,\"False\",\"True\")","v":"True"},{"$f":"IF(AND(L1684=0,C1684=\"\"),\"True\",IF(AND(L1684<>0,C1684=\"\"),\"False\",\"True\"))","v":"True"}]
[null,null,null,null,null,null,null,null,null,null,null,0,{"$f":"200-L1685","v":200},"True","True","True"]
[null,null,null,null,null,null,null,null,null,null,null,0,200,"True","True","True"]
[null,null,null,null,null,null,null,null,null,null,null,0,200,"True","True","True"]
[null,null,null,null,null,null,null,null,null,null,null,0,200,"True","True","True"]
[null,null,null,null,null,null,null,null,null,null,null,0,200,"True","True","True"]
[null,null,null,null,null,null,null,null,null,null,null,0,200,"True","True","True"]
[null,null,null,null,null,null,null,null,null,null,null,0,200,"True","True","True"]
[null,null,null,null,null,null,null,null,null,null,null,0,200,"True","True","True"]
[null,null,null,null,null,null,null,null,null,null,null,0,200,"True","True","True"]
[null,null,null,null,null,null,null,null,null,null,null,0,200,"True","True","True"]
[null,null,null,null,null,null,null,null,null,null,null,0,200,"True","True","True"]
[null,null,null,null,null,null,null,null,null,null,null,0,200,"True","True","True"]
[null,null,null,null,null,null,null,null,null,null,null,0,200,"True","True","True"]
[null,null,null,null,null,null,null,null,null,null,null,0,200,"True","True","True"]
[null,null,null,null,null,null,null,null,null,null,null,0,200,"True","True","True"]
[null,null,null,null,null,null,null,null,null,null,null,0,200,"True","True","True"]
[null,null,null,null,null,null,null,null,null,null,null,0,200,"True","True","True"]
[null,null,null,null,null,null,null,null,null,null,null,0,200,"True","True","True"]
[null,null,null,null,null,null,null,null,null,null,null,0,200,"True","True","True"]
[null,null,null,null,null,null,null,null,null,null,null,0,200,"True","True","True"]
[null,null,null,null,null,null,null,null,null,null,null,0,200,"True","True","True"]
[null,null,null,null,null,null,null,null,null,null,null,0,200,"True","True","True"]
[null,null,null,null,null,null,null,null,null,null,null,0,200,"True","True","True"]
[null,null,null,null,null,null,null,null,null,null,null,0,200,"True","True","True"]
[null,null,null,null,null,null,null,null,null,null,null,0,200,"True","True","True"]
[null,null,null,null,null,null,null,null,null,null,null,0,200,"True","True","True"]
[null,null,null,null,null,null,null,null,null,null,null,0,200,"True","True","True"]
[null,null,null,null,null,null,null,null,null,null,null,0,200,"True","True","True"]
[null,null,null,null,null,null,null,null,null,null,null,0,200,"True","True","True"]
[null,null,null,null,null,null,null,null,null,null,null,0,200,"True","True","True"]
[null,null,null,null,null,null,null,null,null,null,null,0,200,"True","True","True"]
[null,null,null,null,null,null,null,null,null,null,null,0,200,"True","True","True"]
[null,null,null,null,null,null,null,null,null,null,null,0,200,"True","True","True"]
[null,null,null,null,null,null,null,null,null,null,null,0,200,"True","True","True"]
[null,null,null,null,null,null,null,null,null,null,null,0,200,"True","True","True"]
[null,null,null,null,null,null,null,null,null,null,null,0,200,"True","True","True"]
[null,null,null,null,null,null,null,null,null,null,null,0,200,"True","True","True"]
[null,null,null,null,null,null,null,null,null,null,null,0,200,"True","True","True"]
[null,null,null,null,null,null,null,null,null,null,null,0,200,"True","True","True"]
[null,null,null,null,null,null,null,null,null,null,null,0,200,"True","True","True"]
[null,null,null,null,null,null,null,null,null,null,null,0,200,"True","True","True"]
[null,null,null,null,null,null,null,null,null,null,null,0,200,"True","True","True"]
[null,null,null,null,null,null,null,null,null,null,null,0,200,"True","True","True"]
[null,null,null,null,null,null,null,null,null,null,null,0,200,"True","True","True"]
[null,null,null,null,null,null,null,null,null,null,null,0,200,"True","True","True"]
[null,null,null,null,null,null,null,null,null,null,null,0,200,"True","True","True"]
[null,null,null,null,null,null,null,null,null,null,null,0,200,"True","True","True"]
[null,null,null,null,null,null,null,null,null,null,null,0,200,"True","True","True"]
[null,null,null,null,null,null,null,null,null,null,null,0,200,"True","True","True"]
[null,null,null,null,null,null,null,null,null,null,null,0,200,"True","True","True"]
[null,null,null,null,null,null,null,null,null,null,null,0,200,"True","True","True"]
[null,null,null,null,null,null,null,null,null,null,null,0,200,"True","True","True"]
[null,null,null,null,null,null,null,null,null,null,null,0,200,"True","True","True"]
[null,null,null,null,null,null,null,null,null,null,null,0,200,"True","True","True"]
[null,null,null,null,null,null,null,null,null,null,null,0,200,"True","True","True"]
[null,null,null,null,null,null,null,null,null,null,null,{"$f":"SUM(E1740:J1740)","v":0},200,"True","True","True"]
[null,null,null,null,null,null,null,null,null,null,null,0,200,"True","True","True"]
[null,null,null,null,null,null,null,null,null,null,null,0,200,"True","True","True"]
[null,null,null,null,null,null,null,null,null,null,null,0,200,"True","True","True"]
[null,null,null,null,null,null,null,null,null,null,null,0,200,"True","True","True"]
[null,null,null,null,null,null,null,null,null,null,null,0,200,"True","True","True"]
[null,null,null,null,null,null,null,null,null,null,null,0,200,"True","True","True"]
[null,null,null,null,null,null,null,null,null,null,null,0,200,{"$f":"IF(COUNTIF(C:C,C1747)>1,\"False\",\"True\")","v":"True"},"True","True"]
[null,null,null,null,null,null,null,null,null,null,null,0,200,"True",{"$f":"IF(L1748>200,\"False\",\"True\")","v":"True"},{"$f":"IF(AND(L1748=0,C1748=\"\"),\"True\",IF(AND(L1748<>0,C1748=\"\"),\"False\",\"True\"))","v":"True"}]
[null,null,null,null,null,null,null,null,null,null,null,0,{"$f":"200-L1749","v":200},"True","True","True"]
[null,null,null,null,null,null,null,null,null,null,null,0,200,"True","True","True"]
[null,null,null,null,null,null,null,null,null,null,null,0,200,"True","True","True"]
[null,null,null,null,null,null,null,null,null,null,null,0,200,"True","True","True"]
[null,null,null,null,null,null,null,null,null,null,null,0,200,"True","True","True"]
[null,null,null,null,null,null,null,null,null,null,null,0,200,"True","True","True"]
[null,null,null,null,null,null,null,null,null,null,null,0,200,"True","True","True"]
[null,null,null,null,null,null,null,null,null,null,null,0,200,"True","True","True"]
[null,null,null,null,null,null,null,null,null,null,null,0,200,"True","True","True"]
[null,null,null,null,null,null,null,null,null,null,null,0,200,"True","True","True"]
[null,null,null,null,null,null,null,null,null,null,null,0,200,"True","True","True"]
[null,null,null,null,null,null,null,null,null,null,null,0,200,"True","True","True"]
[null,null,null,null,null,null,null,null,null,null,null,0,200,"True","True","True"]
[null,null,null,null,null,null,null,null,null,null,null,0,200,"True","True","True"]
[null,null,null,null,null,null,null,null,null,null,null,0,200,"True","True","True"]
[null,null,null,null,null,null,null,null,null,null,null,0,200,"True","True","True"]
[null,null,null,null,null,null,null,null,null,null,null,0,200,"True","True","True"]
[null,null,null,null,null,null,null,null,null,null,null,0,200,"True","True","True"]
[null,null,null,null,null,null,null,null,null,null,null,0,200,"True","True","True"]
[null,null,null,null,null,null,null,null,null,null,null,0,200,"True","True","True"]
[null,null,null,null,null,null,null,null,null,null,null,0,200,"True","True","True"]
[null,null,null,null,null,null,null,null,null,null,null,0,200,"True","True","True"]
[null,null,null,null,null,null,null,null,null,null,null,0,200,"True","True","True"]
[null,null,null,null,null,null,null,null,null,null,null,0,200,"True","True","True"]
[null,null,null,null,null,null,null,null,null,null,null,0,200,"True","True","True"]
[null,null,null,null,null,null,null,null,null,null,null,0,200,"True","True","True"]
[null,null,null,null,null,null,null,null,null,null,null,0,200,"True","True","True"]
[null,null,null,null,null,null,null,null,null,null,null,0,200,"True","True","True"]
[null,null,null,null,null,null,null,null,null,null,null,0,200,"True","True","True"]
[null,null,null,null,null,null,null,null,null,null,null,0,200,"True","True","True"]
[null,null,null,null,null,null,null,null,null,null,null,0,200,"True","True","True"]
[null,null,null,null,null,null,null,null,null,null,null,0,200,"True","True","True"]
[null,null,null,null,null,null,null,null,null,null,null,0,200,"True","True","True"]
[null,null,null,null,null,null,null,null,null,null,null,0,200,"True","True","True"]
[null,null,null,null,null,null,null,null,null,null,null,0,200,"True","True","True"]
[null,null,null,null,null,null,null,null,null,null,null,0,200,"True","True","True"]
[null,null,null,null,null,null,null,null,null,null,null,0,200,"True","True","True"]
[null,null,null,null,null,null,null,null,null,null,null,0,200,"True","True","True"]
[null,null,null,null,null,null,null,null,null,null,null,0,200,"True","True","True"]
[null,null,null,null,null,null,null,null,null,null,null,0,200,"True","True","True"]
[null,null,null,null,null,null,null,null,null,null,null,0,200,"True","True","True"]
[null,null,null,null,null,null,null,null,null,null,null,0,200,"True","True","True"]
[null,null,null,null,null,null,null,null,null,null,null,0,200,"True","True","True"]
[null,null,null,null,null,null,null,null,null,null,null,0,200,"True","True","True"]
[null,null,null,null,null,null,null,null,null,null,null,0,200,"True","True","True"]
[null,null,null,null,null,null,null,null,null,null,null,0,200,"True","True","True"]
[null,null,null,null,null,null,null,null,null,null,null,0,200,"True","True","True"]
[null,null,null,null,null,null,null,null,null,null,null,0,200,"True","True","True"]
[null,null,null,null,null,null,null,null,null,null,null,0,200,"True","True","True"]
[null,null,null,null,null,null,null,null,null,null,null,0,200,"True","True","True"]
[null,null,null,null,null,null,null,null,null,null,null,0,200,"True","True","True"]
[null,null,null,null,null,null,null,null,null,null,null,0,200,"True","True","True"]
[null,null,null,null,null,null,null,null,null,null,null,0,200,"True","True","True"]
[null,null,null,null,null,null,null,null,null,null,null,0,200,"True","True","True"]
[null,null,null,null,null,null,null,null,null,null,null,0,200,"True","True","True"]
[null,null,null,null,null,null,null,null,null,null,null,{"$f":"SUM(E1804:J1804)","v":0},200,"True","True","True"]
[null,null,null,null,null,null,null,null,null,null,null,0,200,"True","True","True"]
[null,null,null,null,null,null,null,null,null,null,null,0,200,"True","True","True"]
[null,null,null,null,null,null,null,null,null,null,null,0,200,"True","True","True"]
[null,null,null,null,null,null,null,null,null,null,null,0,200,"True","True","True"]
[null,null,null,null,null,null,null,null,null,null,null,0,200,"True","True","True"]
[null,null,null,null,null,null,null,null,null,null,null,0,200,"True","True","True"]
[null,null,null,null,null,null,null,null,null,null,null,0,200,{"$f":"IF(COUNTIF(C:C,C1811)>1,\"False\",\"True\")","v":"True"},"True","True"]
[null,null,null,null,null,null,null,null,null,null,null,0,200,"True",{"$f":"IF(L1812>200,\"False\",\"True\")","v":"True"},{"$f":"IF(AND(L1812=0,C1812=\"\"),\"True\",IF(AND(L1812<>0,C1812=\"\"),\"False\",\"True\"))","v":"True"}]
[null,null,null,null,null,null,null,null,null,null,null,0,{"$f":"200-L1813","v":200},"True","True","True"]
[null,null,null,null,null,null,null,null,null,null,null,0,200,"True","True","True"]
[null,null,null,null,null,null,null,null,null,null,null,0,200,"True","True","True"]
[null,null,null,null,null,null,null,null,null,null,null,0,200,"True","True","True"]
[null,null,null,null,null,null,null,null,null,null,null,0,200,"True","True","True"]
[null,null,null,null,null,null,null,null,null,null,null,0,200,"True","True","True"]
[null,null,null,null,null,null,null,null,null,null,null,0,200,"True","True","True"]
[null,null,null,null,null,null,null,null,null,null,null,0,200,"True","True","True"]
[null,null,null,null,null,null,null,null,null,null,null,0,200,"True","True","True"]
[null,null,null,null,null,null,null,null,null,null,null,0,200,"True","True","True"]
[null,null,null,null,null,null,null,null,null,null,null,0,200,"True","True","True"]
[null,null,null,null,null,null,null,null,null,null,null,0,200,"True","True","True"]
[null,null,null,null,null,null,null,null,null,null,null,0,200,"True","True","True"]
[null,null,null,null,null,null,null,null,null,null,null,0,200,"True","True","True"]
[null,null,null,null,null,null,null,null,null,null,null,0,200,"True","True","True"]
[null,null,null,null,null,null,null,null,null,null,null,0,200,"True","True","True"]
[null,null,null,null,null,null,null,null,null,null,null,0,200,"True","True","True"]
[null,null,null,null,null,null,null,null,null,null,null,0,200,"True","True","True"]
[null,null,null,null,null,null,null,null,null,null,null,0,200,"True","True","True"]
[null,null,null,null,null,null,null,null,null,null,null,0,200,"True","True","True"]
[null,null,null,null,null,null,null,null,null,null,null,0,200,"True","True","True"]
[null,null,null,null,null,null,null,null,null,null,null,0,200,"True","True","True"]
[null,null,null,null,null,null,null,null,null,null,null,0,200,"True","True","True"]
[null,null,null,null,null,null,null,null,null,null,null,0,200,"True","True","True"]
[null,null,null,null,null,null,null,null,null,null,null,0,200,"True","True","True"]
[null,null,null,null,null,null,null,null,null,null,null,0,200,"True","True","True"]
[null,null,null,null,null,null,null,null,null,null,null,0,200,"True","True","True"]
[null,null,null,null,null,null,null,null,null,null,null,0,200,"True","True","True"]
[null,null,null,null,null,null,null,null,null,null,null,0,200,"True","True","True"]
[null,null,null,null,null,null,null,null,null,null,null,0,200,"True","True","True"]
[null,null,null,null,null,null,null,null,null,null,null,0,200,"True","True","True"]
[null,null,null,null,null,null,null,null,null,null,null,0,200,"True","True","True"]
[null,null,null,null,null,null,null,null,null,null,null,0,200,"True","True","True"]
[null,null,null,null,null,null,null,null,null,null,null,0,200,"True","True","True"]
[null,null,null,null,null,null,null,null,null,null,null,0,200,"True","True","True"]
[null,null,null,null,null,null,null,null,null,null,null,0,200,"True","True","True"]
[null,null,null,null,null,null,null,null,null,null,null,0,200,"True","True","True"]
[null,null,null,null,null,null,null,null,null,null,null,0,200,"True","True","True"]
[null,null,null,null,null,null,null,null,null,null,null,0,200,"True","True","True"]
[null,null,null,null,null,null,null,null,null,null,null,0,200,"True","True","True"]
[null,null,null,null,null,null,null,null,null,null,null,0,200,"True","True","True"]
[null,null,null,null,null,null,null,null,null,null,null,0,200,"True","True","True"]
[null,null,null,null,null,null,null,null,null,null,null,0,200,"True","True","True"]
[null,null,null,null,null,null,null,null,null,null,null,0,200,"True","True","True"]
[null,null,null,null,null,null,null,null,null,null,null,0,200,"True","True","True"]
[null,null,null,null,null,null,null,null,null,null,null,0,200,"True","True","True"]
[null,null,null,null,null,null,null,null,null,null,null,0,200,"True","True","True"]
[null,null,null,null,null,null,null,null,null,null,null,0,200,"True","True","True"]
[null,null,null,null,null,null,null,null,null,null,null,0,200,"True","True","True"]
[null,null,null,null,null,null,null,null,null,null,null,0,200,"True","True","True"]
[null,null,null,null,null,null,null,null,null,null,null,0,200,"True","True","True"]
[null,null,null,null,null,null,null,null,null,null,null,0,200,"True","True","True"]
[null,null,null,null,null,null,null,null,null,null,null,0,200,"True","True","True"]
[null,null,null,null,null,null,null,null,null,null,null,0,200,"True","True","True"]
[null,null,null,null,null,null,null,null,null,null,null,0,200,"True","True","True"]
[null,null,null,null,null,null,null,null,null,null,null,{"$f":"SUM(E1868:J1868)","v":0},200,"True","True","True"]
[null,null,null,null,null,null,null,null,null,null,null,0,200,"True","True","True"]
[null,null,null,null,null,null,null,null,null,null,null,0,200,"True","True","True"]
[null,null,null,null,null,null,null,null,null,null,null,0,200,"True","True","True"]
[null,null,null,null,null,null,null,null,null,null,null,0,200,"True","True","True"]
[null,null,null,null,null,null,null,null,null,null,null,0,200,"True","True","True"]
[null,null,null,null,null,null,null,null,null,null,null,0,200,"True","True","True"]
[null,null,null,null,null,null,null,null,null,null,null,0,200,{"$f":"IF(COUNTIF(C:C,C1875)>1,\"False\",\"True\")","v":"True"},"True","True"]
[null,null,null,null,null,null,null,null,null,null,null,0,200,"True",{"$f":"IF(L1876>200,\"False\",\"True\")","v":"True"},{"$f":"IF(AND(L1876=0,C1876=\"\"),\"True\",IF(AND(L1876<>0,C1876=\"\"),\"False\",\"True\"))","v":"True"}]
[null,null,null,null,null,null,null,null,null,null,null,0,{"$f":"200-L1877","v":200},"True","True","True"]
[null,null,null,null,null,null,null,null,null,null,null,0,200,"True","True","True"]
[null,null,null,null,null,null,null,null,null,null,null,0,200,"True","True","True"]
[null,null,null,null,null,null,null,null,null,null,null,0,200,"True","True","True"]
[null,null,null,null,null,null,null,null,null,null,null,0,200,"True","True","True"]
[null,null,null,null,null,null,null,null,null,null,null,0,200,"True","True","True"]
[null,null,null,null,null,null,null,null,null,null,null,0,200,"True","True","True"]
[null,null,null,null,null,null,null,null,null,null,null,0,200,"True","True","True"]
[null,null,null,null,null,null,null,null,null,null,null,0,200,"True","True","True"]
[null,null,null,null,null,null,null,null,null,null,null,0,200,"True","True","True"]
[null,null,null,null,null,null,null,null,null,null,null,0,200,"True","True","True"]
[null,null,null,null,null,null,null,null,null,null,null,0,200,"True","True","True"]
[null,null,null,null,null,null,null,null,null,null,null,0,200,"True","True","True"]
[null,null,null,null,null,null,null,null,null,null,null,0,200,"True","True","True"]
[null,null,null,null,null,null,null,null,null,null,null,0,200,"True","True","True"]
[null,null,null,null,null,null,null,null,null,null,null,0,200,"True","True","True"]
[null,null,null,null,null,null,null,null,null,null,null,0,200,"True","True","True"]
[null,null,null,null,null,null,null,null,null,null,null,0,200,"True","True","True"]
[null,null,null,null,null,null,null,null,null,null,null,0,200,"True","True","True"]
[null,null,null,null,null,null,null,null,null,null,null,0,200,"True","True","True"]
[null,null,null,null,null,null,null,null,null,null,null,0,200,"True","True","True"]
[null,null,null,null,null,null,null,null,null,null,null,0,200,"True","True","True"]
[null,null,null,null,null,null,null,null,null,null,null,0,200,"True","True","True"]
[null,null,null,null,null,null,null,null,null,null,null,0,200,"True","True","True"]
[null,null,null,null,null,null,null,null,null,null,null,0,200,"True","True","True"]
[null,null,null,null,null,null,null,null,null,null,null,0,200,"True","True","True"]
[null,null,null,null,null,null,null,null,null,null,null,0,200,"True","True","True"]
[null,null,null,null,null,null,null,null,null,null,null,0,200,"True","True","True"]
[null,null,null,null,null,null,null,null,null,null,null,0,200,"True","True","True"]
[null,null,null,null,null,null,null,null,null,null,null,0,200,"True","True","True"]
[null,null,null,null,null,null,null,null,null,null,null,0,200,"True","True","True"]
[null,null,null,null,null,null,null,null,null,null,null,0,200,"True","True","True"]
[null,null,null,null,null,null,null,null,null,null,null,0,200,"True","True","True"]
[null,null,null,null,null,null,null,null,null,null,null,0,200,"True","True","True"]
[null,null,null,null,null,null,null,null,null,null,null,0,200,"True","True","True"]
[null,null,null,null,null,null,null,null,null,null,null,0,200,"True","True","True"]
[null,null,null,null,null,null,null,null,null,null,null,0,200,"True","True","True"]
[null,null,null,null,null,null,null,null,null,null,null,0,200,"True","True","True"]
[null,null,null,null,null,null,null,null,null,null,null,0,200,"True","True","True"]
[null,null,null,null,null,null,null,null,null,null,null,0,200,"True","True","True"]
[null,null,null,null,null,null,null,null,null,null,null,0,200,"True","True","True"]
[null,null,null,null,null,null,null,null,null,null,null,0,200,"True","True","True"]
[null,null,null,null,null,null,null,null,null,null,null,0,200,"True","True","True"]
[null,null,null,null,null,null,null,null,null,null,null,0,200,"True","True","True"]
[null,null,null,null,null,null,null,null,null,null,null,0,200,"True","True","True"]
[null,null,null,null,null,null,null,null,null,null,null,0,200,"True","True","True"]
[null,null,null,null,null,null,null,null,null,null,null,0,200,"True","True","True"]
[null,null,null,null,null,null,null,null,null,null,null,0,200,"True","True","True"]
[null,null,null,null,null,null,null,null,null,null,null,0,200,"True","True","True"]
[null,null,null,null,null,null,null,null,null,null,null,0,200,"True","True","True"]
[null,null,null,null,null,null,null,null,null,null,null,0,200,"True","True","True"]
[null,null,null,null,null,null,null,null,null,null,null,0,200,"True","True","True"]
[null,null,null,null,null,null,null,null,null,null,null,0,200,"True","True","True"]
[null,null,null,null,null,null,null,null,null,null,null,0,200,"True","True","True"]
[null,null,null,null,null,null,null,null,null,null,null,0,200,"True","True","True"]
[null,null,null,null,null,null,null,null,null,null,null,{"$f":"SUM(E1932:J1932)","v":0},200,"True","True","True"]
[null,null,null,null,null,null,null,null,null,null,null,0,200,"True","True","True"]
[null,null,null,null,null,null,null,null,null,null,null,0,200,"True","True","True"]
[null,null,null,null,null,null,null,null,null,null,null,0,200,"True","True","True"]
[null,null,null,null,null,null,null,null,null,null,null,0,200,"True","True","True"]
[null,null,null,null,null,null,null,null,null,null,null,0,200,"True","True","True"]
[null,null,null,null,null,null,null,null,null,null,null,0,200,"True","True","True"]
[null,null,null,null,null,null,null,null,null,null,null,0,200,{"$f":"IF(COUNTIF(C:C,C1939)>1,\"False\",\"True\")","v":"True"},"True","True"]
[null,null,null,null,null,null,null,null,null,null,null,0,200,"True",{"$f":"IF(L1940>200,\"False\",\"True\")","v":"True"},{"$f":"IF(AND(L1940=0,C1940=\"\"),\"True\",IF(AND(L1940<>0,C1940=\"\"),\"False\",\"True\"))","v":"True"}]
[null,null,null,null,null,null,null,null,null,null,null,0,{"$f":"200-L1941","v":200},"True","True","True"]
[null,null,null,null,null,null,null,null,null,null,null,0,200,"True","True","True"]
[null,null,null,null,null,null,null,null,null,null,null,0,200,"True","True","True"]
[null,null,null,null,null,null,null,null,null,null,null,0,200,"True","True","True"]
[null,null,null,null,null,null,null,null,null,null,null,0,200,"True","True","True"]
[null,null,null,null,null,null,null,null,null,null,null,0,200,"True","True","True"]
[null,null,null,null,null,null,null,null,null,null,null,0,200,"True","True","True"]
[null,null,null,null,null,null,null,null,null,null,null,0,200,"True","True","True"]
[null,null,null,null,null,null,null,null,null,null,null,0,200,"True","True","True"]
[null,null,null,null,null,null,null,null,null,null,null,0,200,"True","True","True"]
[null,null,null,null,null,null,null,null,null,null,null,0,200,"True","True","True"]
[null,null,null,null,null,null,null,null,null,null,null,0,200,"True","True","True"]
[null,null,null,null,null,null,null,null,null,null,null,0,200,"True","True","True"]
[null,null,null,null,null,null,null,null,null,null,null,0,200,"True","True","True"]
[null,null,null,null,null,null,null,null,null,null,null,0,200,"True","True","True"]
[null,null,null,null,null,null,null,null,null,null,null,0,200,"True","True","True"]
[null,null,null,null,null,null,null,null,null,null,null,0,200,"True","True","True"]
[null,null,null,null,null,null,null,null,null,null,null,0,200,"True","True","True"]
[null,null,null,null,null,null,null,null,null,null,null,0,200,"True","True","True"]
[null,null,null,null,null,null,null,null,null,null,null,0,200,"True","True","True"]
[null,null,null,null,null,null,null,null,null,null,null,0,200,"True","True","True"]
[null,null,null,null,null,null,null,null,null,null,null,0,200,"True","True","True"]
[null,null,null,null,null,null,null,null,null,null,null,0,200,"True","True","True"]
[null,null,null,null,null,null,null,null,null,null,null,0,200,"True","True","True"]
[null,null,null,null,null,null,null,null,null,null,null,0,200,"True","True","True"]
[null,null,null,null,null,null,null,null,null,null,null,0,200,"True","True","True"]
[null,null,null,null,null,null,null,null,null,null,null,0,200,"True","True","True"]
[null,null,null,null,null,null,null,null,null,null,null,0,200,"True","True","True"]
[null,null,null,null,null,null,null,null,null,null,null,0,200,"True","True","True"]
[null,null,null,null,null,null,null,null,null,null,null,0,200,"True","True","True"]
[null,null,null,null,null,null,null,null,null,null,null,{"$f":"SUM(E1971:J1971)","v":0},200,"True","True","True"]
[null,null,null,null,null,null,null,null,null,null,null,0,200,"True","True","True"]
[null,null,null,null,null,null,null,null,null,null,null,0,200,"True","True","True"]
[null,null,null,null,null,null,null,null,null,null,null,0,200,"True","True","True"]
[null,null,null,null,null,null,null,null,null,null,null,0,200,"True","True","True"]
[null,null,null,null,null,null,null,null,null,null,null,0,200,"True","True","True"]
[null,null,null,null,null,null,null,null,null,null,null,0,200,"True","True","True"]
[null,null,null,null,null,null,null,null,null,null,null,0,200,"True","True","True"]
[null,null,null,null,null,null,null,null,null,null,null,0,200,"True","True","True"]
[null,null,null,null,null,null,null,null,null,null,null,0,200,"True","True","True"]
[null,null,null,null,null,null,null,null,null,null,null,0,200,"True","True","True"]
[null,null,null,null,null,null,null,null,null,null,null,0,200,"True","True","True"]
[null,null,null,null,null,null,null,null,null,null,null,0,200,"True","True","True"]
[null,null,null,null,null,null,null,null,null,null,null,0,200,"True","True","True"]
[null,null,null,null,null,null,null,null,null,null,null,0,200,"True","True","True"]
[null,null,null,null,null,null,null,null,null,null,null,0,200,"True","True","True"]
[null,null,null,null,null,null,null,null,null,null,null,0,200,"True","True","True"]
[null,null,null,null,null,null,null,null,null,null,null,0,200,"True","True","True"]
[null,null,null,null,null,null,null,null,null,null,null,0,200,"True","True","True"]
[null,null,null,null,null,null,null,null,null,null,null,0,200,"True","True","True"]
[null,null,null,null,null,null,null,null,null,null,null,0,200,"True","True","True"]
[null,null,null,null,null,null,null,null,null,null,null,0,200,"True","True","True"]
[null,null,null,null,null,null,null,null,null,null,null,0,200,"True","True","True"]
[null,null,null,null,null,null,null,null,null,null,null,0,200,"True","True","True"]
[null,null,null,null,null,null,null,null,null,null,null,0,200,"True","True","True"]
[null,null,null,null,null,null,null,null,null,null,null,0,200,"True","True","True"]
[null,null,null,null,null,null,null,null,null,null,null,0,200,"True","True","True"]
[null,null,null,null,null,null,null,null,null,null,null,0,200,"True","True","True"]
[null,null,null,null,null,null,null,null,null,null,null,0,200,"True","True","True"]
[null,null,null,null,null,null,null,null,null,null,null,0,200,"True","True","True"]
[null,null,null,null,null,null,null,null,null,null,null,0,200,"True","True","True"]
[null,null,null,null,null,null,null,null,null,null,null,0,200,"True","True","True"]
[null,null,null,null,null,null,null,null,null,null,null,0,200,{"$f":"IF(COUNTIF(C:C,C2003)>1,\"False\",\"True\")","v":"True"},"True","True"]
[null,null,null,null,null,null,null,null,null,null,null,0,200,"True",{"$f":"IF(L2004>200,\"False\",\"True\")","v":"True"},{"$f":"IF(AND(L2004=0,C2004=\"\"),\"True\",IF(AND(L2004<>0,C2004=\"\"),\"False\",\"True\"))","v":"True"}]
[null,null,null,null,null,null,null,null,null,null,null,0,{"$f":"200-L2005","v":200},"True","True","True"]
[null,null,null,null,null,null,null,null,null,null,null,0,200,"True","True","True"]
[null,null,null,null,null,null,null,null,null,null,null,0,200,"True","True","True"]
[null,null,null,null,null,null,null,null,null,null,null,0,200,"True","True","True"]
[null,null,null,null,null,null,null,null,null,null,null,0,200,"True","True","True"]
[null,null,null,null,null,null,null,null,null,null,null,0,200,"True","True","True"]
[null,null,null,null,null,null,null,null,null,null,null,{"$f":"SUM(E2011:J2011)","v":0},200,"True","True","True"]
[null,null,null,null,null,null,null,null,null,null,null,0,200,"True","True","True"]
[null,null,null,null,null,null,null,null,null,null,null,0,200,"True","True","True"]
[null,null,null,null,null,null,null,null,null,null,null,0,200,"True","True","True"]
[null,null,null,null,null,null,null,null,null,null,null,0,200,"True","True","True"]
[null,null,null,null,null,null,null,null,null,null,null,0,200,"True","True","True"]
[null,null,null,null,null,null,null,null,null,null,null,0,200,"True","True","True"]
[null,null,null,null,null,null,null,null,null,null,null,0,200,"True","True","True"]
[null,null,null,null,null,null,null,null,null,null,null,{"$f":"SUM(E2019:J2019)","v":0},200,"True","True","True"]
[null,null,null,null,null,null,null,null,null,null,null,0,200,"True","True","True"]
[null,null,null,null,null,null,null,null,null,null,null,0,200,"True","True","True"]
[null,null,null,null,null,null,null,null,null,null,null,0,200,"True","True","True"]
[null,null,null,null,null,null,null,null,null,null,null,0,200,"True","True","True"]
[null,null,null,null,null,null,null,null,null,null,null,0,200,"True","True","True"]
[null,null,null,null,null,null,null,null,null,null,null,0,200,"True","True","True"]
[null,null,null,null,null,null,null,null,null,null,null,0,200,"True","True","True"]
[null,null,null,null,null,null,null,null,null,null,null,0,200,"True","True","True"]
[null,null,null,null,null,null,null,null,null,null,null,0,200,"True","True","True"]
[null,null,null,null,null,null,null,null,null,null,null,0,200,"True","True","True"]
[null,null,null,null,null,null,null,null,null,null,null,0,200,"True","True","True"]
[null,null,null,null,null,null,null,null,null,null,null,0,200,"True","True","True"]
[null,null,null,null,null,null,null,null,null,null,null,0,200,"True","True","True"]
[null,null,null,null,null,null,null,null,null,null,null,0,200,"True","True","True"]
[null,null,null,null,null,null,null,null,null,null,null,0,200,"True","True","True"]
[null,null,null,null,null,null,null,null,null,null,null,0,200,"True","True","True"]
[null,null,null,null,null,null,null,null,null,null,null,0,200,"True","True","True"]
[null,null,null,null,null,null,null,null,null,null,null,0,200,"True","True","True"]
[null,null,null,null,null,null,null,null,null,null,null,0,200,"True","True","True"]
[null,null,null,null,null,null,null,null,null,null,null,0,200,"True","True","True"]
[null,null,null,null,null,null,null,null,null,null,null,0,200,"True","True","True"]
[null,null,null,null,null,null,null,null,null,null,null,0,200,"True","True","True"]
[null,null,null,null,null,null,null,null,null,null,null,0,200,"True","True","True"]
[null,null,null,null,null,null,null,null,null,null,null,0,200,"True","True","True"]
[null,null,null,null,null,null,null,null,null,null,null,0,200,"True","True","True"]
[null,null,null,null,null,null,null,null,null,null,null,0,200,"True","True","True"]
[null,null,null,null,null,null,null,null,null,null,null,0,200,"True","True","True"]
[null,null,null,null,null,null,null,null,null,null,null,0,200,"True","True","True"]
[null,null,null,null,null,null,null,null,null,null,null,0,200,"True","True","True"]
[null,null,null,null,null,null,null,null,null,null,null,0,200,"True","True","True"]
[null,null,null,null,null,null,null,null,null,null,null,0,200,"True","True","True"]
[null,null,null,null,null,null,null,null,null,null,null,0,200,"True","True","True"]
[null,null,null,null,null,null,null,null,null,null,null,0,200,"True","True","True"]
[null,null,null,null,null,null,null,null,null,null,null,0,200,"True","True","True"]
[null,null,null,null,null,null,null,null,null,null,null,0,200,"True","True","True"]
[null,null,null,null,null,null,null,null,null,null,null,0,200,"True","True","True"]
[null,null,null,null,null,null,null,null,null,null,null,0,200,"True","True","True"]
[null,null,null,null,null,null,null,null,null,null,null,0,200,"True","True","True"]
[null,null,null,null,null,null,null,null,null,null,null,0,200,"True","True","True"]
[null,null,null,null,null,null,null,null,null,null,null,0,200,"True","True","True"]
[null,null,null,null,null,null,null,null,null,null,null,0,200,"True","True","True"]
[null,null,null,null,null,null,null,null,null,null,null,0,200,"True","True","True"]
[null,null,null,null,null,null,null,null,null,null,null,0,200,"True","True","True"]
[null,null,null,null,null,null,null,null,null,null,null,0,200,"True","True","True"]
[null,null,null,null,null,null,null,null,null,null,null,0,200,"True","True","True"]
[null,null,null,null,null,null,null,null,null,null,null,0,200,"True","True","True"]
[null,null,null,null,null,null,null,null,null,null,null,0,200,"True","True","True"]
[null,null,null,null,null,null,null,null,null,null,null,0,200,{"$f":"IF(COUNTIF(C:C,C2067)>1,\"False\",\"True\")","v":"True"},"True","True"]
[null,null,null,null,null,null,null,null,null,null,null,0,200,"True",{"$f":"IF(L2068>200,\"False\",\"True\")","v":"True"},{"$f":"IF(AND(L2068=0,C2068=\"\"),\"True\",IF(AND(L2068<>0,C2068=\"\"),\"False\",\"True\"))","v":"True"}]
[null,null,null,null,null,null,null,null,null,null,null,0,{"$f":"200-L2069","v":200},"True","True","True"]
[null,null,null,null,null,null,null,null,null,null,null,0,200,"True","True","True"]
[null,null,null,null,null,null,null,null,null,null,null,0,200,"True","True","True"]
[null,null,null,null,null,null,null,null,null,null,null,0,200,"True","True","True"]
[null,null,null,null,null,null,null,null,null,null,null,0,200,"True","True","True"]
[null,null,null,null,null,null,null,null,null,null,null,0,200,"True","True","True"]
[null,null,null,null,null,null,null,null,null,null,null,0,200,"True","True","True"]
[null,null,null,null,null,null,null,null,null,null,null,0,200,"True","True","True"]
[null,null,null,null,null,null,null,null,null,null,null,0,200,"True","True","True"]
[null,null,null,null,null,null,null,null,null,null,null,0,200,"True","True","True"]
[null,null,null,null,null,null,null,null,null,null,null,0,200,"True","True","True"]
[null,null,null,null,null,null,null,null,null,null,null,0,200,"True","True","True"]
[null,null,null,null,null,null,null,null,null,null,null,0,200,"True","True","True"]
[null,null,null,null,null,null,null,null,null,null,null,0,200,"True","True","True"]
[null,null,null,null,null,null,null,null,null,null,null,{"$f":"SUM(E2083:J2083)","v":0},200,"True","True","True"]
[null,null,null,null,null,null,null,null,null,null,null,0,200,"True","True","True"]
[null,null,null,null,null,null,null,null,null,null,null,0,200,"True","True","True"]
[null,null,null,null,null,null,null,null,null,null,null,0,200,"True","True","True"]
[null,null,null,null,null,null,null,null,null,null,null,0,200,"True","True","True"]
[null,null,null,null,null,null,null,null,null,null,null,0,200,"True","True","True"]
[null,null,null,null,null,null,null,null,null,null,null,0,200,"True","True","True"]
[null,null,null,null,null,null,null,null,null,null,null,0,200,"True","True","True"]
[null,null,null,null,null,null,null,null,null,null,null,0,200,"True","True","True"]
[null,null,null,null,null,null,null,null,null,null,null,0,200,"True","True","True"]
[null,null,null,null,null,null,null,null,null,null,null,0,200,"True","True","True"]
[null,null,null,null,null,null,null,null,null,null,null,0,200,"True","True","True"]
[null,null,null,null,null,null,null,null,null,null,null,0,200,"True","True","True"]
[null,null,null,null,null,null,null,null,null,null,null,0,200,"True","True","True"]
[null,null,null,null,null,null,null,null,null,null,null,0,200,"True","True","True"]
[null,null,null,null,null,null,null,null,null,null,null,0,200,"True","True","True"]
[null,null,null,null,null,null,null,null,null,null,null,0,200,"True","True","True"]
[null,null,null,null,null,null,null,null,null,null,null,0,200,"True","True","True"]
[null,null,null,null,null,null,null,null,null,null,null,0,200,"True","True","True"]
[null,null,null,null,null,null,null,null,null,null,null,0,200,"True","True","True"]
[null,null,null,null,null,null,null,null,null,null,null,0,200,"True","True","True"]
[null,null,null,null,null,null,null,null,null,null,null,0,200,"True","True","True"]
[null,null,null,null,null,null,null,null,null,null,null,0,200,"True","True","True"]
[null,null,null,null,null,null,null,null,null,null,null,0,200,"True","True","True"]
[null,null,null,null,null,null,null,null,null,null,null,0,200,"True","True","True"]
[null,null,null,null,null,null,null,null,null,null,null,0,200,"True","True","True"]
[null,null,null,null,null,null,null,null,null,null,null,0,200,"True","True","True"]
[null,null,null,null,null,null,null,null,null,null,null,0,200,"True","True","True"]
[null,null,null,null,null,null,null,null,null,null,null,0,200,"True","True","True"]
[null,null,null,null,null,null,null,null,null,null,null,0,200,"True","True","True"]
[null,null,null,null,null,null,null,null,null,null,null,0,200,"True","True","True"]
[null,null,null,null,null,null,null,null,null,null,null,0,200,"True","True","True"]
[null,null,null,null,null,null,null,null,null,null,null,0,200,"True","True","True"]
[null,null,null,null,null,null,null,null,null,null,null,0,200,"True","True","True"]
[null,null,null,null,null,null,null,null,null,null,null,0,200,"True","True","True"]
[null,null,null,null,null,null,null,null,null,null,null,0,200,"True","True","True"]
[null,null,null,null,null,null,null,null,null,null,null,0,200,"True","True","True"]
[null,null,null,null,null,null,null,null,null,null,null,0,200,"True","True","True"]
[null,null,null,null,null,null,null,null,null,null,null,0,200,"True","True","True"]
[null,null,null,null,null,null,null,null,null,null,null,0,200,"True","True","True"]
[null,null,null,null,null,null,null,null,null,null,null,0,200,"True","True","True"]
[null,null,null,null,null,null,null,null,null,null,null,0,200,"True","True","True"]
[null,null,null,null,null,null,null,null,null,null,null,0,200,"True","True","True"]
[null,null,null,null,null,null,null,null,null,null,null,0,200,"True","True","True"]
[null,null,null,null,null,null,null,null,null,null,null,0,200,"True","True","True"]
[null,null,null,null,null,null,null,null,null,null,null,0,200,"True","True","True"]
[null,null,null,null,null,null,null,null,null,null,null,0,200,"True","True","True"]
[null,null,null,null,null,null,null,null,null,null,null,0,200,"True","True","True"]
[null,null,null,null,null,null,null,null,null,null,null,0,200,{"$f":"IF(COUNTIF(C:C,C2131)>1,\"False\",\"True\")","v":"True"},"True","True"]
[null,null,null,null,null,null,null,null,null,null,null,0,200,"True",{"$f":"IF(L2132>200,\"False\",\"True\")","v":"True"},{"$f":"IF(AND(L2132=0,C2132=\"\"),\"True\",IF(AND(L2132<>0,C2132=\"\"),\"False\",\"True\"))","v":"True"}]
[null,null,null,null,null,null,null,null,null,null,null,0,{"$f":"200-L2133","v":200},"True","True","True"]
[null,null,null,null,null,null,null,null,null,null,null,0,200,"True","True","True"]
[null,null,null,null,null,null,null,null,null,null,null,0,200,"True","True","True"]
[null,null,null,null,null,null,null,null,null,null,null,0,200,"True","True","True"]
[null,null,null,null,null,null,null,null,null,null,null,0,200,"True","True","True"]
[null,null,null,null,null,null,null,null,null,null,null,0,200,"True","True","True"]
[null,null,null,null,null,null,null,null,null,null,null,0,200,"True","True","True"]
[null,null,null,null,null,null,null,null,null,null,null,0,200,"True","True","True"]
[null,null,null,null,null,null,null,null,null,null,null,0,200,"True","True","True"]
[null,null,null,null,null,null,null,null,null,null,null,0,200,"True","True","True"]
[null,null,null,null,null,null,null,null,null,null,null,0,200,"True","True","True"]
[null,null,null,null,null,null,null,null,null,null,null,0,200,"True","True","True"]
[null,null,null,null,null,null,null,null,null,null,null,0,200,"True","True","True"]
[null,null,null,null,null,null,null,null,null,null,null,0,200,"True","True","True"]
[null,null,null,null,null,null,null,null,null,null,null,{"$f":"SUM(E2147:J2147)","v":0},200,"True","True","True"]
[null,null,null,null,null,null,null,null,null,null,null,0,200,"True","True","True"]
[null,null,null,null,null,null,null,null,null,null,null,0,200,"True","True","True"]
[null,null,null,null,null,null,null,null,null,null,null,{"$f":"SUM(E2200:J2200)","v":0},200,"True","True","True"]
[null,null,null,null,null,null,null,null,null,null,null,0,200,"True","True","True"]
[null,null,null,null,null,null,null,null,null,null,null,0,200,"True","True","True"]
[null,null,null,null,null,null,null,null,null,null,null,0,200,"True","True","True"]
[null,null,null,null,null,null,null,null,null,null,null,0,200,"True","True","True"]
[null,null,null,null,null,null,null,null,null,null,null,0,200,"True","True","True"]
[null,null,null,null,null,null,null,null,null,null,null,0,200,"True","True","True"]
[null,null,null,null,null,null,null,null,null,null,null,0,200,"True","True","True"]
[null,null,null,null,null,null,null,null,null,null,null,0,200,"True","True","True"]
[null,null,null,null,null,null,null,null,null,null,null,0,200,"True","True","True"]
[null,null,null,null,null,null,null,null,null,null,null,0,200,"True","True","True"]
[null,null,null,null,null,null,null,null,null,null,null,0,200,"True","True","True"]
[null,null,null,null,null,null,null,null,null,null,null,0,200,"True","True","True"]
[null,null,null,null,null,null,null,null,null,null,null,0,200,"True","True","True"]
[null,null,null,null,null,null,null,null,null,null,null,0,200,"True","True","True"]
[null,null,null,null,null,null,null,null,null,null,null,0,200,"True","True","True"]
[null,null,null,null,null,null,null,null,null,null,null,0,200,"True","True","True"]
[null,null,null,null,null,null,null,null,null,null,null,0,200,"True","True","True"]
[null,null,null,null,null,null,null,null,null,null,null,0,200,"True","True","True"]
[null,null,null,null,null,null,null,null,null,null,null,0,200,"True","True","True"]
[null,null,null,null,null,null,null,null,null,null,null,0,200,"True","True","True"]
[null,null,null,null,null,null,null,null,null,null,null,0,200,"True","True","True"]
[null,null,null,null,null,null,null,null,null,null,null,0,200,"True","True","True"]
[null,null,null,null,null,null,null,null,null,null,null,0,200,"True","True","True"]
[null,null,null,null,null,null,null,null,null,null,null,0,200,"True","True","True"]
[null,null,null,null,null,null,null,null,null,null,null,0,200,"True","True","True"]
[null,null,null,null,null,null,null,null,null,null,null,0,200,"True","True","True"]
[null,null,null,null,null,null,null,null,null,null,null,0,200,"True","True","True"]
[null,null,null,null,null,null,null,null,null,null,null,0,200,"True","True","True"]
[null,null,null,null,null,null,null,null,null,null,null,0,200,"True","True","True"]
[null,null,null,null,null,null,null,null,null,null,null,0,200,"True","True","True"]
[null,null,null,null,null,null,null,null,null,null,null,0,200,"True","True","True"]
[null,null,null,null,null,null,null,null,null,null,null,0,200,"True","True","True"]
[null,null,null,null,null,null,null,null,null,null,null,0,200,"True","True","True"]
[null,null,null,null,null,null,null,null,null,null,null,0,200,"True","True","True"]
[null,null,null,null,null,null,null,null,null,null,null,0,200,"True","True","True"]
[null,null,null,null,null,null,null,null,null,null,null,0,200,"True","True","True"]
[null,null,null,null,null,null,null,null,null,null,null,0,200,"True","True","True"]
[null,null,null,null,null,null,null,null,null,null,null,0,200,"True","True","True"]
[null,null,null,null,null,null,null,null,null,null,null,0,200,"True","True","True"]
[null,null,null,null,null,null,null,null,null,null,null,0,200,"True","True","True"]
[null,null,null,null,null,null,null,null,null,null,null,0,200,"True","True","True"]
[null,null,null,null,null,null,null,null,null,null,null,0,200,"True","True","True"]
[null,null,null,null,null,null,null,null,null,null,null,0,200,"True","True","True"]
[null,null,null,null,null,null,null,null,null,null,null,0,200,"True","True","True"]
[null,null,null,null,null,null,null,null,null,null,null,0,200,{"$f":"IF(COUNTIF(C:C,C2195)>1,\"False\",\"True\")","v":"True"},"True","True"]
[null,null,null,null,null,null,null,null,null,null,null,0,200,"True",{"$f":"IF(L2196>200,\"False\",\"True\")","v":"True"},{"$f":"IF(AND(L2196=0,C2196=\"\"),\"True\",IF(AND(L2196<>0,C2196=\"\"),\"False\",\"True\"))","v":"True"}]
[null,null,null,null,null,null,null,null,null,null,null,0,{"$f":"200-L2197","v":200},"True","True","True"]
[null,null,null,null,null,null,null,null,null,null,null,0,200,"True","True","True"]
[null,null,null,null,null,null,null,null,null,null,null,0,200,"True","True","True"]
[null,null,null,null,null,null,null,null,null,null,null,0,200,"True","True","True"]
[null,null,null,null,null,null,null,null,null,null,null,0,200,"True","True","True"]
[null,null,null,null,null,null,null,null,null,null,null,0,200,"True","True","True"]
[null,null,null,null,null,null,null,null,null,null,null,0,200,"True","True","True"]
[null,null,null,null,null,null,null,null,null,null,null,0,200,"True","True","True"]
[null,null,null,null,null,null,null,null,null,null,null,0,200,"True","True","True"]
[null,null,null,null,null,null,null,null,null,null,null,0,200,"True","True","True"]
[null,null,null,null,null,null,null,null,null,null,null,0,200,"True","True","True"]
[null,null,null,null,null,null,null,null,null,null,null,0,200,"True","True","True"]
[null,null,null,null,null,null,null,null,null,null,null,0,200,"True","True","True"]
[null,null,null,null,null,null,null,null,null,null,null,0,200,"True","True","True"]
[null,null,null,null,null,null,null,null,null,null,null,{"$f":"SUM(E2211:J2211)","v":0},200,"True","True","True"]
[null,null,null,null,null,null,null,null,null,null,null,0,200,"True","True","True"]
[null,null,null,null,null,null,null,null,null,null,null,0,200,"True","True","True"]
[null,null,null,null,null,null,null,null,null,null,null,0,200,"True","True","True"]
[null,null,null,null,null,null,null,null,null,null,null,0,200,"True","True","True"]
[null,null,null,null,null,null,null,null,null,null,null,0,200,"True","True","True"]
[null,null,null,null,null,null,null,null,null,null,null,0,200,"True","True","True"]
[null,null,null,null,null,null,null,null,null,null,null,0,200,"True","True","True"]
[null,null,null,null,null,null,null,null,null,null,null,0,200,"True","True","True"]
[null,null,null,null,null,null,null,null,null,null,null,0,200,"True","True","True"]
[null,null,null,null,null,null,null,null,null,null,null,0,200,"True","True","True"]
[null,null,null,null,null,null,null,null,null,null,null,0,200,"True","True","True"]
[null,null,null,null,null,null,null,null,null,null,null,0,200,"True","True","True"]
[null,null,null,null,null,null,null,null,null,null,null,0,200,"True","True","True"]
[null,null,null,null,null,null,null,null,null,null,null,0,200,"True","True","True"]
[null,null,null,null,null,null,null,null,null,null,null,0,200,"True","True","True"]
[null,null,null,null,null,null,null,null,null,null,null,0,200,"True","True","True"]
[null,null,null,null,null,null,null,null,null,null,null,0,200,"True","True","True"]
[null,null,null,null,null,null,null,null,null,null,null,0,200,"True","True","True"]
[null,null,null,null,null,null,null,null,null,null,null,0,200,"True","True","True"]
[null,null,null,null,null,null,null,null,null,null,null,0,200,"True","True","True"]
[null,null,null,null,null,null,null,null,null,null,null,0,200,"True","True","True"]
[null,null,null,null,null,null,null,null,null,null,null,0,200,"True","True","True"]
[null,null,null,null,null,null,null,null,null,null,null,0,200,"True","True","True"]
[null,null,null,null,null,null,null,null,null,null,null,0,200,"True","True","True"]
[null,null,null,null,null,null,null,null,null,null,null,0,200,"True","True","True"]
[null,null,null,null,null,null,null,null,null,null,null,0,200,"True","True","True"]
[null,null,null,null,null,null,null,null,null,null,null,0,200,"True","True","True"]
[null,null,null,null,null,null,null,null,null,null,null,0,200,"True","True","True"]
[null,null,null,null,null,null,null,null,null,null,null,0,200,"True","True","True"]
[null,null,null,null,null,null,null,null,null,null,null,0,200,"True","True","True"]
[null,null,null,null,null,null,null,null,null,null,null,0,200,"True","True","True"]
[null,null,null,null,null,null,null,null,null,null,null,0,200,"True","True","True"]
[null,null,null,null,null,null,null,null,null,null,null,0,200,"True","True","True"]
[null,null,null,null,null,null,null,null,null,null,null,0,200,"True","True","True"]
[null,null,null,null,null,null,null,null,null,null,null,0,200,"True","True","True"]
[null,null,null,null,null,null,null,null,null,null,null,0,200,"True","True","True"]
[null,null,null,null,null,null,null,null,null,null,null,0,200,"True","True","True"]
[null,null,null,null,null,null,null,null,null,null,null,0,200,"True","True","True"]
[null,null,null,null,null,null,null,null,null,null,null,0,200,"True","True","True"]
[null,null,null,null,null,null,null,null,null,null,null,0,200,"True","True","True"]
[null,null,null,null,null,null,null,null,null,null,null,0,200,"True","True","True"]
[null,null,null,null,null,null,null,null,null,null,null,0,200,"True","True","True"]
[null,null,null,null,null,null,null,null,null,null,null,0,200,"True","True","True"]
[null,null,null,null,null,null,null,null,null,null,null,0,200,"True","True","True"]
[null,null,null,null,null,null,null,null,null,null,null,0,200,"True","True","True"]
[null,null,null,null,null,null,null,null,null,null,null,0,200,"True","True","True"]
[null,null,null,null,null,null,null,null,null,null,null,0,200,"True","True","True"]
[null,null,null,null,null,null,null,null,null,null,null,0,200,{"$f":"IF(COUNTIF(C:C,C2259)>1,\"False\",\"True\")","v":"True"},"True","True"]
[null,null,null,null,null,null,null,null,null,null,null,0,200,"True",{"$f":"IF(L2260>200,\"False\",\"True\")","v":"True"},{"$f":"IF(AND(L2260=0,C2260=\"\"),\"True\",IF(AND(L2260<>0,C2260=\"\"),\"False\",\"True\"))","v":"True"}]
[null,null,null,null,null,null,null,null,null,null,null,0,{"$f":"200-L2261","v":200},"True","True","True"]
[null,null,null,null,null,null,null,null,null,null,null,0,200,"True","True","True"]
[null,null,null,null,null,null,null,null,null,null,null,0,200,"True","True","True"]
[null,null,null,null,null,null,null,null,null,null,null,0,200,"True","True","True"]
[null,null,null,null,null,null,null,null,null,null,null,0,200,"True","True","True"]
[null,null,null,null,null,null,null,null,null,null,null,0,200,"True","True","True"]
[null,null,null,null,null,null,null,null,null,null,null,0,200,"True","True","True"]
[null,null,null,null,null,null,null,null,null,null,null,0,200,"True","True","True"]
[null,null,null,null,null,null,null,null,null,null,null,0,200,"True","True","True"]
[null,null,null,null,null,null,null,null,null,null,null,0,200,"True","True","True"]
[null,null,null,null,null,null,null,null,null,null,null,0,200,"True","True","True"]
[null,null,null,null,null,null,null,null,null,null,null,0,200,"True","True","True"]
[null,null,null,null,null,null,null,null,null,null,null,0,200,"True","True","True"]
[null,null,null,null,null,null,null,null,null,null,null,0,200,"True","True","True"]
[null,null,null,null,null,null,null,null,null,null,null,{"$f":"SUM(E2275:J2275)","v":0},200,"True","True","True"]
[null,null,null,null,null,null,null,null,null,null,null,0,200,"True","True","True"]
[null,null,null,null,null,null,null,null,null,null,null,0,200,"True","True","True"]
[null,null,null,null,null,null,null,null,null,null,null,0,200,"True","True","True"]
[null,null,null,null,null,null,null,null,null,null,null,0,200,"True","True","True"]
[null,null,null,null,null,null,null,null,null,null,null,0,200,"True","True","True"]
[null,null,null,null,null,null,null,null,null,null,null,0,200,"True","True","True"]
[null,null,null,null,null,null,null,null,null,null,null,0,200,"True","True","True"]
[null,null,null,null,null,null,null,null,null,null,null,0,200,"True","True","True"]
[null,null,null,null,null,null,null,null,null,null,null,0,200,"True","True","True"]
[null,null,null,null,null,null,null,null,null,null,null,0,200,"True","True","True"]
[null,null,null,null,null,null,null,null,null,null,null,0,200,"True","True","True"]
[null,null,null,null,null,null,null,null,null,null,null,0,200,"True","True","True"]
[null,null,null,null,null,null,null,null,null,null,null,0,200,"True","True","True"]
[null,null,null,null,null,null,null,null,null,null,null,0,200,"True","True","True"]
[null,null,null,null,null,null,null,null,null,null,null,0,200,"True","True","True"]
[null,null,null,null,null,null,null,null,null,null,null,0,200,"True","True","True"]
[null,null,null,null,null,null,null,null,null,null,null,0,200,"True","True","True"]
[null,null,null,null,null,null,null,null,null,null,null,0,200,"True","True","True"]
[null,null,null,null,null,null,null,null,null,null,null,0,200,"True","True","True"]
[null,null,null,null,null,null,null,null,null,null,null,0,200,"True","True","True"]
[null,null,null,null,null,null,null,null,null,null,null,0,200,"True","True","True"]
[null,null,null,null,null,null,null,null,null,null,null,0,200,"True","True","True"]
[null,null,null,null,null,null,null,null,null,null,null,0,200,"True","True","True"]
[null,null,null,null,null,null,null,null,null,null,null,0,200,"True","True","True"]
[null,null,null,null,null,null,null,null,null,null,null,0,200,"True","True","True"]
[null,null,null,null,null,null,null,null,null,null,null,0,200,"True","True","True"]
[null,null,null,null,null,null,null,null,null,null,null,0,200,"True","True","True"]
[null,null,null,null,null,null,null,null,null,null,null,0,200,"True","True","True"]
[null,null,null,null,null,null,null,null,null,null,null,0,200,"True","True","True"]
[null,null,null,null,null,null,null,null,null,null,null,0,200,"True","True","True"]
[null,null,null,null,null,null,null,null,null,null,null,0,200,"True","True","True"]
[null,null,null,null,null,null,null,null,null,null,null,0,200,"True","True","True"]
[null,null,null,null,null,null,null,null,null,null,null,0,200,"True","True","True"]
[null,null,null,null,null,null,null,null,null,null,null,0,200,"True","True","True"]
[null,null,null,null,null,null,null,null,null,null,null,0,200,"True","True","True"]
[null,null,null,null,null,null,null,null,null,null,null,0,200,"True","True","True"]
[null,null,null,null,null,null,null,null,null,null,null,0,200,"True","True","True"]
[null,null,null,null,null,null,null,null,null,null,null,0,200,"True","True","True"]
[null,null,null,null,null,null,null,null,null,null,null,0,200,"True","True","True"]
[null,null,null,null,null,null,null,null,null,null,null,0,200,"True","True","True"]
[null,null,null,null,null,null,null,null,null,null,null,0,200,"True","True","True"]
[null,null,null,null,null,null,null,null,null,null,null,0,200,"True","True","True"]
[null,null,null,null,null,null,null,null,null,null,null,0,200,"True","True","True"]
[null,null,null,null,null,null,null,null,null,null,null,0,200,"True","True","True"]
[null,null,null,null,null,null,null,null,null,null,null,0,200,"True","True","True"]
[null,null,null,null,null,null,null,null,null,null,null,0,200,"True","True","True"]
[null,null,null,null,null,null,null,null,null,null,null,0,200,"True","True","True"]
[null,null,null,null,null,null,null,null,null,null,null,0,200,{"$f":"IF(COUNTIF(C:C,C2323)>1,\"False\",\"True\")","v":"True"},"True","True"]
[null,null,null,null,null,null,null,null,null,null,null,0,200,"True",{"$f":"IF(L2324>200,\"False\",\"True\")","v":"True"},{"$f":"IF(AND(L2324=0,C2324=\"\"),\"True\",IF(AND(L2324<>0,C2324=\"\"),\"False\",\"True\"))","v":"True"}]
[null,null,null,null,null,null,null,null,null,null,null,0,{"$f":"200-L2325","v":200},"True","True","True"]
[null,null,null,null,null,null,null,null,null,null,null,0,200,"True","True","True"]
[null,null,null,null,null,null,null,null,null,null,null,0,200,"True","True","True"]
[null,null,null,null,null,null,null,null,null,null,null,0,200,"True","True","True"]
[null,null,null,null,null,null,null,null,null,null,null,0,200,"True","True","True"]
[null,null,null,null,null,null,null,null,null,null,null,0,200,"True","True","True"]
[null,null,null,null,null,null,null,null,null,null,null,0,200,"True","True","True"]
[null,null,null,null,null,null,null,null,null,null,null,0,200,"True","True","True"]
[null,null,null,null,null,null,null,null,null,null,null,0,200,"True","True","True"]
[null,null,null,null,null,null,null,null,null,null,null,0,200,"True","True","True"]
[null,null,null,null,null,null,null,null,null,null,null,0,200,"True","True","True"]
[null,null,null,null,null,null,null,null,null,null,null,0,200,"True","True","True"]
[null,null,null,null,null,null,null,null,null,null,null,0,200,"True","True","True"]
[null,null,null,null,null,null,null,null,null,null,null,0,200,"True","True","True"]
[null,null,null,null,null,null,null,null,null,null,null,{"$f":"SUM(E2339:J2339)","v":0},200,"True","True","True"]
[null,null,null,null,null,null,null,null,null,null,null,0,200,"True","True","True"]
[null,null,null,null,null,null,null,null,null,null,null,0,200,"True","True","True"]
[null,null,null,null,null,null,null,null,null,null,null,0,200,"True","True","True"]
[null,null,null,null,null,null,null,null,null,null,null,0,200,"True","True","True"]
[null,null,null,null,null,null,null,null,null,null,null,0,200,"True","True","True"]
[null,null,null,null,null,null,null,null,null,null,null,0,200,"True","True","True"]
[null,null,null,null,null,null,null,null,null,null,null,0,200,"True","True","True"]
[null,null,null,null,null,null,null,null,null,null,null,0,200,"True","True","True"]
[null,null,null,null,null,null,null,null,null,null,null,0,200,"True","True","True"]
[null,null,null,null,null,null,null,null,null,null,null,0,200,"True","True","True"]
[null,null,null,null,null,null,null,null,null,null,null,0,200,"True","True","True"]
[null,null,null,null,null,null,null,null,null,null,null,0,200,"True","True","True"]
[null,null,null,null,null,null,null,null,null,null,null,0,200,"True","True","True"]
[null,null,null,null,null,null,null,null,null,null,null,0,200,"True","True","True"]
[null,null,null,null,null,null,null,null,null,null,null,0,200,"True","True","True"]
[null,null,null,null,null,null,null,null,null,null,null,0,200,"True","True","True"]
[null,null,null,null,null,null,null,null,null,null,null,0,200,"True","True","True"]
[null,null,null,null,null,null,null,null,null,null,null,0,200,"True","True","True"]
[null,null,null,null,null,null,null,null,null,null,null,0,200,"True","True","True"]
[null,null,null,null,null,null,null,null,null,null,null,0,200,"True","True","True"]
[null,null,null,null,null,null,null,null,null,null,null,0,200,"True","True","True"]
[null,null,null,null,null,null,null,null,null,null,null,0,200,"True","True","True"]
[null,null,null,null,null,null,null,null,null,null,null,0,200,"True","True","True"]
[null,null,null,null,null,null,null,null,null,null,null,0,200,"True","True","True"]
[null,null,null,null,null,null,null,null,null,null,null,0,200,"True","True","True"]
[null,null,null,null,null,null,null,null,null,null,null,0,200,"True","True","True"]
[null,null,null,null,null,null,null,null,null,null,null,0,200,"True","True","True"]
[null,null,null,null,null,null,null,null,null,null,null,0,200,"True","True","True"]
[null,null,null,null,null,null,null,null,null,null,null,0,200,"True","True","True"]
[null,null,null,null,null,null,null,null,null,null,null,0,200,"True","True","True"]
[null,null,null,null,null,null,null,null,null,null,null,0,200,"True","True","True"]
[null,null,null,null,null,null,null,null,null,null,null,0,200,"True","True","True"]
[null,null,null,null,null,null,null,null,null,null,null,0,200,"True","True","True"]
[null,null,null,null,null,null,null,null,null,null,null,0,200,"True","True","True"]
[null,null,null,null,null,null,null,null,null,null,null,0,200,"True","True","True"]
[null,null,null,null,null,null,null,null,null,null,null,0,200,"True","True","True"]
[null,null,null,null,null,null,null,null,null,null,null,0,200,"True","True","True"]
[null,null,null,null,null,null,null,null,null,null,null,0,200,"True","True","True"]
[null,null,null,null,null,null,null,null,null,null,null,0,200,"True","True","True"]
[null,null,null,null,null,null,null,null,null,null,null,0,200,"True","True","True"]
[null,null,null,null,null,null,null,null,null,null,null,0,200,"True","True","True"]
[null,null,null,null,null,null,null,null,null,null,null,0,200,"True","True","True"]
[null,null,null,null,null,null,null,null,null,null,null,0,200,"True","True","True"]
[null,null,null,null,null,null,null,null,null,null,null,0,200,"True","True","True"]
[null,null,null,null,null,null,null,null,null,null,null,0,200,"True","True","True"]
[null,null,null,null,null,null,null,null,null,null,null,0,200,"True","True","True"]
[null,null,null,null,null,null,null,null,null,null,null,0,200,"True","True","True"]
[null,null,null,null,null,null,null,null,null,null,null,0,200,{"$f":"IF(COUNTIF(C:C,C2387)>1,\"False\",\"True\")","v":"True"},"True","True"]
[null,null,null,null,null,null,null,null,null,null,null,0,200,"True",{"$f":"IF(L2388>200,\"False\",\"True\")","v":"True"},{"$f":"IF(AND(L2388=0,C2388=\"\"),\"True\",IF(AND(L2388<>0,C2388=\"\"),\"False\",\"True\"))","v":"True"}]
[null,null,null,null,null,null,null,null,null,null,null,0,{"$f":"200-L2389","v":200},"True","True","True"]
[null,null,null,null,null,null,null,null,null,null,null,0,200,"True","True","True"]
[null,null,null,null,null,null,null,null,null,null,null,0,200,"True","True","True"]
[null,null,null,null,null,null,null,null,null,null,null,0,200,"True","True","True"]
[null,null,null,null,null,null,null,null,null,null,null,0,200,"True","True","True"]
[null,null,null,null,null,null,null,null,null,null,null,0,200,"True","True","True"]
[null,null,null,null,null,null,null,null,null,null,null,0,200,"True","True","True"]
[null,null,null,null,null,null,null,null,null,null,null,0,200,"True","True","True"]
[null,null,null,null,null,null,null,null,null,null,null,0,200,"True","True","True"]
[null,null,null,null,null,null,null,null,null,null,null,0,200,"True","True","True"]
[null,null,null,null,null,null,null,null,null,null,null,0,200,"True","True","True"]
[null,null,null,null,null,null,null,null,null,null,null,0,200,"True","True","True"]
[null,null,null,null,null,null,null,null,null,null,null,0,200,"True","True","True"]
[null,null,null,null,null,null,null,null,null,null,null,0,200,"True","True","True"]
[null,null,null,null,null,null,null,null,null,null,null,{"$f":"SUM(E2403:J2403)","v":0},200,"True","True","True"]
[null,null,null,null,null,null,null,null,null,null,null,0,200,"True","True","True"]
[null,null,null,null,null,null,null,null,null,null,null,0,200,"True","True","True"]
[null,null,null,null,null,null,null,null,null,null,null,0,200,"True","True","True"]
[null,null,null,null,null,null,null,null,null,null,null,0,200,"True","True","True"]
[null,null,null,null,null,null,null,null,null,null,null,0,200,"True","True","True"]
[null,null,null,null,null,null,null,null,null,null,null,0,200,"True","True","True"]
[null,null,null,null,null,null,null,null,null,null,null,0,200,"True","True","True"]
[null,null,null,null,null,null,null,null,null,null,null,0,200,"True","True","True"]
[null,null,null,null,null,null,null,null,null,null,null,0,200,"True","True","True"]
[null,null,null,null,null,null,null,null,null,null,null,0,200,"True","True","True"]
[null,null,null,null,null,null,null,null,null,null,null,0,200,"True","True","True"]
[null,null,null,null,null,null,null,null,null,null,null,0,200,"True","True","True"]
[null,null,null,null,null,null,null,null,null,null,null,0,200,"True","True","True"]
[null,null,null,null,null,null,null,null,null,null,null,0,200,"True","True","True"]
[null,null,null,null,null,null,null,null,null,null,null,0,200,"True","True","True"]
[null,null,null,null,null,null,null,null,null,null,null,0,200,"True","True","True"]
[null,null,null,null,null,null,null,null,null,null,null,0,200,"True","True","True"]
[null,null,null,null,null,null,null,null,null,null,null,0,200,"True","True","True"]
[null,null,null,null,null,null,null,null,null,null,null,0,200,"True","True","True"]
[null,null,null,null,null,null,null,null,null,null,null,0,200,"True","True","True"]
[null,null,null,null,null,null,null,null,null,null,null,0,200,"True","True","True"]
[null,null,null,null,null,null,null,null,null,null,null,0,200,"True","True","True"]
[null,null,null,null,null,null,null,null,null,null,null,0,200,"True","True","True"]
[null,null,null,null,null,null,null,null,null,null,null,0,200,"True","True","True"]
[null,null,null,null,null,null,null,null,null,null,null,0,200,"True","True","True"]
[null,null,null,null,null,null,null,null,null,null,null,0,200,"True","True","True"]
[null,null,null,null,null,null,null,null,null,null,null,0,200,"True","True","True"]
[null,null,null,null,null,null,null,null,null,null,null,0,200,"True","True","True"]
[null,null,null,null,null,null,null,null,null,null,null,0,200,"True","True","True"]
[null,null,null,null,null,null,null,null,null,null,null,0,200,"True","True","True"]
[null,null,null,null,null,null,null,null,null,null,null,0,200,"True","True","True"]
[null,null,null,null,null,null,null,null,null,null,null,0,200,"True","True","True"]
[null,null,null,null,null,null,null,null,null,null,null,0,200,"True","True","True"]
[null,null,null,null,null,null,null,null,null,null,null,0,200,"True","True","True"]
[null,null,null,null,null,null,null,null,null,null,null,0,200,"True","True","True"]
[null,null,null,null,null,null,null,null,null,null,null,0,200,"True","True","True"]
[null,null,null,null,null,null,null,null,null,null,null,0,200,"True","True","True"]
[null,null,null,null,null,null,null,null,null,null,null,0,200,"True","True","True"]
[null,null,null,null,null,null,null,null,null,null,null,0,200,"True","True","True"]
[null,null,null,null,null,null,null,null,null,null,null,0,200,"True","True","True"]
[null,null,null,null,null,null,null,null,null,null,null,0,200,"True","True","True"]
[null,null,null,null,null,null,null,null,null,null,null,0,200,"True","True","True"]
[null,null,null,null,null,null,null,null,null,null,null,0,200,"True","True","True"]
[null,null,null,null,null,null,null,null,null,null,null,0,200,"True","True","True"]
[null,null,null,null,null,null,null,null,null,null,null,0,200,"True","True","True"]
[null,null,null,null,null,null,null,null,null,null,null,0,200,"True","True","True"]
[null,null,null,null,null,null,null,null,null,null,null,0,200,"True","True","True"]
[null,null,null,null,null,null,null,null,null,null,null,0,200,{"$f":"IF(COUNTIF(C:C,C2451)>1,\"False\",\"True\")","v":"True"},"True","True"]
[null,null,null,null,null,null,null,null,null,null,null,0,200,"True",{"$f":"IF(L2452>200,\"False\",\"True\")","v":"True"},{"$f":"IF(AND(L2452=0,C2452=\"\"),\"True\",IF(AND(L2452<>0,C2452=\"\"),\"False\",\"True\"))","v":"True"}]
[null,null,null,null,null,null,null,null,null,null,null,0,{"$f":"200-L2453","v":200},"True","True","True"]
[null,null,null,null,null,null,null,null,null,null,null,0,200,"True","True","True"]
[null,null,null,null,null,null,null,null,null,null,null,0,200,"True","True","True"]
[null,null,null,null,null,null,null,null,null,null,null,0,200,"True","True","True"]
[null,null,null,null,null,null,null,null,null,null,null,0,200,"True","True","True"]
[null,null,null,null,null,null,null,null,null,null,null,0,200,"True","True","True"]
[null,null,null,null,null,null,null,null,null,null,null,0,200,"True","True","True"]
[null,null,null,null,null,null,null,null,null,null,null,0,200,"True","True","True"]
[null,null,null,null,null,null,null,null,null,null,null,0,200,"True","True","True"]
[null,null,null,null,null,null,null,null,null,null,null,0,200,"True","True","True"]
[null,null,null,null,null,null,null,null,null,null,null,0,200,"True","True","True"]
[null,null,null,null,null,null,null,null,null,null,null,0,200,"True","True","True"]
[null,null,null,null,null,null,null,null,null,null,null,0,200,"True","True","True"]
[null,null,null,null,null,null,null,null,null,null,null,0,200,"True","True","True"]
[null,null,null,null,null,null,null,null,null,null,null,{"$f":"SUM(E2467:J2467)","v":0},200,"True","True","True"]
[null,null,null,null,null,null,null,null,null,null,null,0,200,"True","True","True"]
[null,null,null,null,null,null,null,null,null,null,null,0,200,"True","True","True"]
[null,null,null,null,null,null,null,null,null,null,null,0,200,"True","True","True"]
[null,null,null,null,null,null,null,null,null,null,null,0,200,"True","True","True"]
[null,null,null,null,null,null,null,null,null,null,null,0,200,"True","True","True"]
[null,null,null,null,null,null,null,null,null,null,null,0,200,"True","True","True"]
[null,null,null,null,null,null,null,null,null,null,null,0,200,"True","True","True"]
[null,null,null,null,null,null,null,null,null,null,null,0,200,"True","True","True"]
[null,null,null,null,null,null,null,null,null,null,null,0,200,"True","True","True"]
[null,null,null,null,null,null,null,null,null,null,null,0,200,"True","True","True"]
[null,null,null,null,null,null,null,null,null,null,null,0,200,"True","True","True"]
[null,null,null,null,null,null,null,null,null,null,null,0,200,"True","True","True"]
[null,null,null,null,null,null,null,null,null,null,null,0,200,"True","True","True"]
[null,null,null,null,null,null,null,null,null,null,null,0,200,"True","True","True"]
[null,null,null,null,null,null,null,null,null,null,null,0,200,"True","True","True"]
[null,null,null,null,null,null,null,null,null,null,null,0,200,"True","True","True"]
[null,null,null,null,null,null,null,null,null,null,null,0,200,"True","True","True"]
[null,null,null,null,null,null,null,null,null,null,null,0,200,"True","True","True"]
[null,null,null,null,null,null,null,null,null,null,null,0,200,"True","True","True"]
[null,null,null,null,null,null,null,null,null,null,null,0,200,"True","True","True"]
[null,null,null,null,null,null,null,null,null,null,null,0,200,"True","True","True"]
[null,null,null,null,null,null,null,null,null,null,null,0,200,"True","True","True"]
[null,null,null,null,null,null,null,null,null,null,null,0,200,"True","True","True"]
[null,null,null,null,null,null,null,null,null,null,null,0,200,"True","True","True"]
[null,null,null,null,null,null,null,null,null,null,null,0,200,"True","True","True"]
[null,null,null,null,null,null,null,null,null,null,null,0,200,"True","True","True"]
[null,null,null,null,null,null,null,null,null,null,null,0,200,"True","True","True"]
[null,null,null,null,null,null,null,null,null,null,null,0,200,"True","True","True"]
[null,null,null,null,null,null,null,null,null,null,null,0,200,"True","True","True"]
[null,null,null,null,null,null,null,null,null,null,null,0,200,"True","True","True"]
[null,null,null,null,null,null,null,null,null,null,null,0,200,"True","True","True"]
[null,null,null,null,null,null,null,null,null,null,null,0,200,"True","True","True"]
[null,null,null,null,null,null,null,null,null,null,null,0,200,"True","True","True"]
[null,null,null,null,null,null,null,null,null,null,null,0,200,"True","True","True"]
[null,null,null,null,null,null,null,null,null,null,null,0,200,"True","True","True"]

{"sheet":"Schools List","index":1,"n_rows":202,"n_cols":10,"rows_kept":202,"cut":false,"hidden":true,"merged":[]}
["Please select your school from this drop-down menu. ",null,null,null,null,null,null,null,"Name","Is Pre School"]
["Acacia Hill School",null,null,null,null,null,null,null,"Acacia Hill School","Yes"]
["Adelaide River School",null,null,null,null,null,null,null,"Adelaide River School","Yes"]
["Alawa Primary School",null,null,null,null,null,null,null,"Alawa Primary School","Yes"]
["Alcoota School",null,null,null,null,null,null,null,"Alcoota School","Yes"]
["Alekarenge School",null,null,null,null,null,null,null,"Alekarenge School","Yes"]
["Alice Springs School Of The Air",null,null,null,null,null,null,null,"Alice Springs School Of The Air","Yes"]
["Alpurrurulam School",null,null,null,null,null,null,null,"Alice Springs Steiner School","Yes"]
["Alyangula Area School",null,null,null,null,null,null,null,"Alpurrurulam School","Yes"]
["Alyarrmandumanja Umbakumba School",null,null,null,null,null,null,null,"Alyangula Area School","Yes"]
["Amanbidji School",null,null,null,null,null,null,null,"Alyarrmandumanja Umbakumba School","Yes"]
["Amoonguna School",null,null,null,null,null,null,null,"Amanbidji School","Yes"]
["Ampilatwatja School",null,null,null,null,null,null,null,"Amoonguna School","No"]
["Angurugu School",null,null,null,null,null,null,null,"Ampilatwatja School","Yes"]
["Anula Primary School",null,null,null,null,null,null,null,"Angurugu School","Yes"]
["Araluen Christian College",null,null,null,null,null,null,null,"Anula Primary School","Yes"]
["Areyonga School",null,null,null,null,null,null,null,"Araluen Christian School","No"]
["Arlparra School",null,null,null,null,null,null,null,"Areyonga School","No"]
["Australian International Islamic College",null,null,null,null,null,null,null,"Arlparra School","Yes"]
["Bakewell Primary School",null,null,null,null,null,null,null,"Australian International Islamic College","No"]
["Baniyala Garrangali School",null,null,null,null,null,null,null,"Bakewell Primary School","Yes"]
["Barunga School",null,null,null,null,null,null,null,"Baniyala Garrangali School","Yes"]
["Batchelor Area School",null,null,null,null,null,null,null,"Barunga School","Yes"]
["Bees Creek Primary School",null,null,null,null,null,null,null,"Batchelor Area School","Yes"]
["Belyuen School",null,null,null,null,null,null,null,"Bees Creek Primary School","Yes"]
["Berry Springs Primary School",null,null,null,null,null,null,null,"Belyuen School","Yes"]
["Bonya School",null,null,null,null,null,null,null,"Berry Springs Primary School","Yes"]
["Borroloola School",null,null,null,null,null,null,null,"Bonya School","Yes"]
["Bradshaw Primary School",null,null,null,null,null,null,null,"Borroloola School","Yes"]
["Braitling Primary School",null,null,null,null,null,null,null,"Bradshaw Primary School","Yes"]
["Bulla Camp School",null,null,null,null,null,null,null,"Braitling Primary School","Yes"]
["Bulman School",null,null,null,null,null,null,null,"Bulla Camp School","Yes"]
["Canteen Creek School",null,null,null,null,null,null,null,"Bulman School","Yes"]
["Casuarina Senior College",null,null,null,null,null,null,null,"Canteen Creek School","Yes"]
["Casuarina Street Primary School",null,null,null,null,null,null,null,"Casuarina Senior College","No"]
["Centralian Middle School",null,null,null,null,null,null,null,"Casuarina Street Primary School","Yes"]
["Centralian Senior College",null,null,null,null,null,null,null,"Centralian Middle School","No"]
["Clyde Fenton Primary School",null,null,null,null,null,null,null,"Centralian Senior College","No"]
["Darwin High School",null,null,null,null,null,null,null,"Clyde Fenton Primary School","Yes"]
["Darwin Middle School",null,null,null,null,null,null,null,"Darwin High School","No"]
["Dhupuma Barker School",null,null,null,null,null,null,null,"Darwin Middle School","No"]
["Douglas Daly School",null,null,null,null,null,null,null,"Douglas Daly School","Yes"]
["Dripstone Middle School",null,null,null,null,null,null,null,"Dripstone Middle School","No"]
["Driver Primary School",null,null,null,null,null,null,null,"Driver Primary School","Yes"]
["Dundee Beach School",null,null,null,null,null,null,null,"Dundee Beach School","Yes"]
["Durack Primary School",null,null,null,null,null,null,null,"Durack Primary School","Yes"]
["Elliott School",null,null,null,null,null,null,null,"Elliott School","Yes"]
["Epenarra School",null,null,null,null,null,null,null,"Epenarra School","Yes"]
["Finke School",null,null,null,null,null,null,null,"Essington School","Yes"]
["Forrest Parade School",null,null,null,null,null,null,null,"Finke School","No"]
["Gapuwiyak School",null,null,null,null,null,null,null,"Forrest Parade School","No"]
["Gawa Christian School",null,null,null,null,null,null,null,"Gapuwiyak School","Yes"]
["Gillen Primary School",null,null,null,null,null,null,null,"Gawa Christian School","No"]
["Girraween Primary School",null,null,null,null,null,null,null,"Gillen Primary School","Yes"]
["Good Shepherd Lutheran College",null,null,null,null,null,null,null,"Girraween Primary School","Yes"]
["Gray Primary School",null,null,null,null,null,null,null,"Good Shepherd - Leanyer Campus","Yes"]
["Gunbalanya School",null,null,null,null,null,null,null,"Good Shepherd Lutheran College","Yes"]
["Haasts Bluff School",null,null,null,null,null,null,null,"Good Shepherd Lutheran School","No"]
["Haileybury Rendall School",null,null,null,null,null,null,null,"Gray Primary School","Yes"]
["Harts Range School",null,null,null,null,null,null,null,"Gunbalanya School","Yes"]
["Henbury School",null,null,null,null,null,null,null,"Haasts Bluff School","Yes"]
["Holy Family Catholic Primary School",null,null,null,null,null,null,null,"Haileybury Rendall School","No"]
["Holy Spirit Catholic Primary School",null,null,null,null,null,null,null,"Harts Range School","Yes"]
["Howard Springs Primary School",null,null,null,null,null,null,null,"Henbury School","No"]
["Humpty Doo Primary School",null,null,null,null,null,null,null,"Holy Family Catholic School","No"]
["Imanpa School",null,null,null,null,null,null,null,"Holy Spirit Catholic School","No"]
["Jabiru Area School",null,null,null,null,null,null,null,"Howard Springs Primary School","Yes"]
["Jilkminggan School",null,null,null,null,null,null,null,"Humpty Doo Primary School","Yes"]
["Jingili Primary School",null,null,null,null,null,null,null,"Imanpa School","No"]
["Kalkaringi School",null,null,null,null,null,null,null,"Jabiru Area School","Yes"]
["Karama Primary School",null,null,null,null,null,null,null,"Jilkminggan School","Yes"]
["Katherine High School",null,null,null,null,null,null,null,"Jingili Primary School","Yes"]
["Katherine School Of The Air",null,null,null,null,null,null,null,"Kalkaringi School","Yes"]
["Katherine South Primary School",null,null,null,null,null,null,null,"Karama Primary School","Yes"]
["Kintore Street School",null,null,null,null,null,null,null,"Katherine Flexible Learning Centre","No"]
["Lajamanu School",null,null,null,null,null,null,null,"Katherine High School","No"]
["Laramba School",null,null,null,null,null,null,null,"Katherine School Of The Air","Yes"]
["Larapinta Primary School",null,null,null,null,null,null,null,"Katherine South Primary School","Yes"]
["Larrakeyah Primary School",null,null,null,null,null,null,null,"Kiana School","Yes"]
["Laynhapuy Homelands School",null,null,null,null,null,null,null,"Kintore Street School","No"]
["Leanyer Primary School",null,null,null,null,null,null,null,"Lajamanu School","Yes"]
["Living Waters Lutheran School",null,null,null,null,null,null,null,"Laramba School","Yes"]
["Ltyentye Apurte Catholic School",null,null,null,null,null,null,null,"Larapinta Primary School","Yes"]
["Ludmilla Primary School",null,null,null,null,null,null,null,"Larrakeyah Primary School","Yes"]
["MacFarlane Primary School",null,null,null,null,null,null,null,"Laynhapuy Homelands School","No"]
["MacKillop Catholic College",null,null,null,null,null,null,null,"Leanyer Primary School","Yes"]
["Malak Primary School",null,null,null,null,null,null,null,"Living Waters Lutheran School","No"]
["Mamaruni School",null,null,null,null,null,null,null,"Ltyentye Apurte CEC","Yes"]
["Maningrida College",null,null,null,null,null,null,null,"Ludmilla Primary School","Yes"]
["Manunda Terrace Primary School",null,null,null,null,null,null,null,"MacFarlane Primary School","Yes"]
["Manyallaluk School",null,null,null,null,null,null,null,"Mackillop Catholic College","No"]
["Mäpuru Yirralka College",null,null,null,null,null,null,null,"Malak Primary School","Yes"]
["Marrara Christian College",null,null,null,null,null,null,null,"Mamaruni School","Yes"]
["Mataranka School",null,null,null,null,null,null,null,"Maningrida School","Yes"]
["Mbunghara School",null,null,null,null,null,null,null,"Manunda Terrace Primary School","Yes"]
["Middle Point School",null,null,null,null,null,null,null,"Manyallaluk School","Yes"]
["Milikapiti School",null,null,null,null,null,null,null,"Mapuru Yirralka College","No"]
["Milingimbi School",null,null,null,null,null,null,null,"Marrara Christian School","Yes"]
["Milkwood Steiner School",null,null,null,null,null,null,null,"Mataranka School","Yes"]
["Millner Primary School",null,null,null,null,null,null,null,"Mbunghara School","No"]
["Milyakburra School",null,null,null,null,null,null,null,"Middle Point School","No"]
["Minyerri School",null,null,null,null,null,null,null,"Milikapiti School","Yes"]
["Moil Primary School",null,null,null,null,null,null,null,"Milingimbi School","Yes"]
["Mother Teresa Catholic Primary School",null,null,null,null,null,null,null,"Milkwood Steiner","Yes"]
["Moulden Primary School",null,null,null,null,null,null,null,"Millner Primary School","Yes"]
["Mount Allan School",null,null,null,null,null,null,null,"Milyakburra School","Yes"]
["Mulga Bore School",null,null,null,null,null,null,null,"Minyerri School","Yes"]
["Murray Downs School",null,null,null,null,null,null,null,"Moil Pre School","Yes"]
["Murrupurtiyanuwu Catholic Primary School",null,null,null,null,null,null,null,"Moil Primary School","No"]
["Mutitjulu School",null,null,null,null,null,null,null,"Mother Teresa Catholic Primary School","No"]
["Nakara Primary School",null,null,null,null,null,null,null,"Moulden Primary School","Yes"]
["Nawarddeken Academy Kabulwarnamyo School",null,null,null,null,null,null,null,"Mount Allan School","Yes"]
["Nawarddeken Academy Mamadawerre School",null,null,null,null,null,null,null,"Mulga Bore School","Yes"]
["Nawarddeken Academy Manmoyi School",null,null,null,null,null,null,null,"Murray Downs School","Yes"]
["Nemarluk School",null,null,null,null,null,null,null,"Murrupurtiyanuwu Catholic Primary School","Yes"]
["Neutral Junction School",null,null,null,null,null,null,null,"Mutitjulu School","No"]
["Newcastle Waters School",null,null,null,null,null,null,null,"Nakara Primary School","Yes"]
["Nganambala School",null,null,null,null,null,null,null,"Nemarluk School","Yes"]
["Nganmarriyanga School",null,null,null,null,null,null,null,"Neutral Junction School","No"]
["Ngukurr School",null,null,null,null,null,null,null,"Newcastle Waters School","Yes"]
["Nhulunbuy Christian College",null,null,null,null,null,null,null,"Nganambala School","Yes"]
["Nhulunbuy High School",null,null,null,null,null,null,null,"Nganmarriyanga School","Yes"]
["Nhulunbuy Primary School",null,null,null,null,null,null,null,"Ngukurr School","Yes"]
["Nightcliff Middle School",null,null,null,null,null,null,null,"Nhulunbuy Christian School","No"]
["Nightcliff Primary School",null,null,null,null,null,null,null,"Nhulunbuy High School","No"]
["Northern Territory School of Distance Education",null,null,null,null,null,null,null,"Nhulunbuy Primary School","Yes"]
["NT Christian College",null,null,null,null,null,null,null,"Nightcliff Middle School","No"]
["Ntaria School",null,null,null,null,null,null,null,"Nightcliff Primary School","No"]
["Numbulwar School",null,null,null,null,null,null,null,"NT Music School","No"]
["Nyangatjatjara College",null,null,null,null,null,null,null,"NT School of Distance Education","No"]
["Nyirripi School",null,null,null,null,null,null,null,"Ntaria School","Yes"]
["O'Loughlin Catholic College",null,null,null,null,null,null,null,"Numbulwar School","Yes"]
["Our Lady of the Sacred Heart Catholic College",null,null,null,null,null,null,null,"Nyangatjatjara College - Docker Rvr Campus","No"]
["Our Lady of the Sacred Heart Thamarrurr Catholic College",null,null,null,null,null,null,null,"Nyangatjatjara College - Imanpa Campus","No"]
["Palmerston Christian College",null,null,null,null,null,null,null,"Nyangatjatjara College - Mutitjulu Campus","No"]
["Palmerston College",null,null,null,null,null,null,null,"Nyirripi School","No"]
["Papunya School",null,null,null,null,null,null,null,"O'Loughlin Catholic College","No"]
["Parap Primary School",null,null,null,null,null,null,null,"OLSH College - Sadadeen Campus","No"]
["Peppimenarti School",null,null,null,null,null,null,null,"OLSH College - Traeger Campus","No"]
["Pigeon Hole School",null,null,null,null,null,null,null,"OLSH Primary School","No"]
["Pine Creek School",null,null,null,null,null,null,null,"OLSH Thamarrurr Catholic College","Yes"]
["Pularumpi School",null,null,null,null,null,null,null,"Palmerston Christian School","No"]
["Ramingining School",null,null,null,null,null,null,null,"Palmerston College","No"]
["Robinson River School",null,null,null,null,null,null,null,"Papunya School","Yes"]
["Rockhampton Downs School",null,null,null,null,null,null,null,"Parap Primary School","Yes"]
["Rosebery Primary School",null,null,null,null,null,null,null,"Peppimenarti School","Yes"]
["Ross Park Primary School",null,null,null,null,null,null,null,"Pigeon Hole School","Yes"]
["Sacred Heart Catholic Primary School",null,null,null,null,null,null,null,"Pine Creek School","Yes"]
["Sadadeen Primary School",null,null,null,null,null,null,null,"Pularumpi School","Yes"]
["Sanderson Middle School",null,null,null,null,null,null,null,"Ramingining School","Yes"]
["Sattler Christian College",null,null,null,null,null,null,null,"Robinson River School","Yes"]
["SEDA College NT",null,null,null,null,null,null,null,"Rockhampton Downs School","No"]
["Shepherdson College",null,null,null,null,null,null,null,"Rosebery Primary School","Yes"]
["St Francis of Assisi Catholic Primary School",null,null,null,null,null,null,null,"Ross Park Primary School","Yes"]
["St Francis Xavier Catholic School",null,null,null,null,null,null,null,"Sacred Heart Primary School","No"]
["St John's Catholic College",null,null,null,null,null,null,null,"Sadadeen Primary School","Yes"]
["St Joseph's Catholic College",null,null,null,null,null,null,null,"Sanderson Middle School","No"]
["St Joseph's Flexible Learning Centre",null,null,null,null,null,null,null,"Sattler Christian College","No"]
["St Mary's Catholic Primary School",null,null,null,null,null,null,null,"SEDA College NT","No"]
["St Paul's Catholic Primary School",null,null,null,null,null,null,null,"Shepherdson College","Yes"]
["St Philip's College",null,null,null,null,null,null,null,"St Francis of Assisi Catholic Primary School","No"]
["Stirling School",null,null,null,null,null,null,null,"St Francis Xavier School","Yes"]
["Stuart Park Primary School",null,null,null,null,null,null,null,"St Johns Catholic College","No"]
["Taminmin College",null,null,null,null,null,null,null,"St Joseph's Catholic College","No"]
["Tennant Creek High School",null,null,null,null,null,null,null,"St Joseph's Flexible Learning Centre","No"]
["Tennant Creek Primary School",null,null,null,null,null,null,null,"St Mary's Catholic School","No"]
["The Alice Springs Steiner School",null,null,null,null,null,null,null,"St Pauls Catholic School","No"]
["The Essington School",null,null,null,null,null,null,null,"St Philip's College","No"]
["Ti Tree School",null,null,null,null,null,null,null,"Stirling School","Yes"]
["Timber Creek School",null,null,null,null,null,null,null,"Stuart Park Primary School","Yes"]
["Tipperary Station School",null,null,null,null,null,null,null,"Taminmin College","No"]
["Titjikala School",null,null,null,null,null,null,null,"Tennant Creek High School","No"]
["Tiwi College",null,null,null,null,null,null,null,"Tennant Creek Primary School","Yes"]
["Top End School of Flexible Learning",null,null,null,null,null,null,null,"Ti Tree School","Yes"]
["Urapunga School",null,null,null,null,null,null,null,"Timber Creek School","Yes"]
["Wagaman Primary School",null,null,null,null,null,null,null,"Tipperary Station School","No"]
["Wallace Rockhole School",null,null,null,null,null,null,null,"Titjikala School","Yes"]
["Walungurru School",null,null,null,null,null,null,null,"Tivendale School","No"]
["Wanguri Primary School",null,null,null,null,null,null,null,"Tiwi College","No"]
["Warruwi School",null,null,null,null,null,null,null,"Top End School of Flexible Learning","No"]
["Watiyawanu School",null,null,null,null,null,null,null,"Urapunga School","Yes"]
["Willowra School",null,null,null,null,null,null,null,"Wagaman Primary School","Yes"]
["Woodroffe Primary School",null,null,null,null,null,null,null,"Wallace Rockhole School","Yes"]
["Woolaning School",null,null,null,null,null,null,null,"Walungurru School","Yes"]
["Woolianna School",null,null,null,null,null,null,null,"Wanguri Primary School","Yes"]
["Wugularr School",null,null,null,null,null,null,null,"Warruwi School","Yes"]
["Wulagi Primary School",null,null,null,null,null,null,null,"Watarrka School","No"]
["Xavier Catholic College",null,null,null,null,null,null,null,"Watiyawanu School","Yes"]
["Yarralin School",null,null,null,null,null,null,null,"Willowra School","No"]
["Yipirinya School",null,null,null,null,null,null,null,"Woodroffe Primary School","Yes"]
["Yirara College",null,null,null,null,null,null,null,"Woolaning School","No"]
["Yirrkala School",null,null,null,null,null,null,null,"Woolianna School","Yes"]
["Yuendumu School",null,null,null,null,null,null,null,"Wugularr School","Yes"]
["Yulara School",null,null,null,null,null,null,null,"Wulagi Primary School","Yes"]
["Zuccoli Primary School",null,null,null,null,null,null,null,"Xavier CEC","No"]
[null,null,null,null,null,null,null,null,"Yarralin School","Yes"]
[null,null,null,null,null,null,null,null,"Yipirinya School","Yes"]
[null,null,null,null,null,null,null,null,"Yirara College","No"]
[null,null,null,null,null,null,null,null,"Yirrkala School","Yes"]
[null,null,null,null,null,null,null,null,"Yuendumu School","Yes"]
[null,null,null,null,null,null,null,null,"Yulara School","Yes"]
[null,null,null,null,null,null,null,null,"Zuccoli Primary School","No"]